Workbook

Sheet KEZDÉS
B1: A SABLON ISMERTETÉSE
B2: Ezzel az üzleti költségvetéssel nyilvántarthatja a tervezett és a tényleges költségeket, illetve különbségüket.
B3: Adja meg cég neve, és szúrja be a cég emblémáját.
B4: Írja be a részletes adatokat a Tervezett költségek és a Tényleges költségek munkalap táblázataiba.
B5: A Költségek eltérései munkalap táblázatai, illetve a Költségek elemzése munkalap diagramjai automatikusan frissülnek.
B6: Megjegyzés:
B7: Mindegyik munkalap A oszlopában további útmutatást olvashat. Ez a szöveg szándékosan van elrejtve. Ha törölni szeretné a szöveget, jelölje ki az A oszlopot, majd nyomja le a DELETE billentyűt. Ha láthatóvá szeretné tenni a szöveget, jelölje ki az A oszlopot, majd módosítsa a betűszínt.
B8: Ha többet szeretne megtudni a táblázatokról, nyomja le a SHIFT+F10 billentyűkombinációt egy táblázaton belül, válassza a TÁBLÁZAT parancsot, majd a HELYETTESÍTŐ SZÖVEG elemet.

Sheet TERVEZETT KÖLTSÉGEK
A1: Ennek a munkalapnak a megfelelő táblázataiban adhatja meg a tervezett alkalmazotti költségek, irodaköltségek, marketingköltségek, valamint a képzés és utazás költségeket. Az összesen automatikusan kiszámítja a sablon. Ennek az oszlopnak a celláiban a munkalap használatát megkönnyítő útmutatás olvasható. Első lépésként nyomja le a lefelé nyilat.
A2: Írja be a cég neve a jobbra lévő cellába, és szúrja be az emblémáját az N2 cellába. A munkalap címe a K2 cellában található. | B2: Cég neve | K2: Részletes költségbecslés | N2: Ebben a cellában az embléma helyőrzője található.
A3: A K3 cellában egy hasznos tanács szerepel. | K3: Az árnyékolt cellák számítások.
A4: A jobbra lévő cellában a Tervezett költségek felirat olvasható, a C4 és az N4 cella között a hónapok vannak felsorolva, az O4 cella az Év oszlopfejlécet tartalmazza, az R4 cellában pedig a sablon használatát bemutató szöveg található. | B4: TERVEZETT KÖLTSÉGEK | C4: JAN. | D4: FEBR. | E4: MÁRC. | F4: ÁPR. | G4: MÁJ. | H4: JÚN. | I4: JÚL. | J4: AUG. | K4: SZEPT. | L4: OKT. | M4: NOV. | N4: DEC. | O4: ÉV | R4: Tipp: A SABLON HASZNÁLATA Írja be az adatokat a TERVEZETT KÖLTSÉGEK és a TÉNYLEGES KÖLTSÉGEK munkalap fehér celláiba, a sablon pedig kiszámítja a KÖLTSÉGEK ELTÉRÉSEI és a KÖLTSÉGEK ELEMZÉSE munkalap tartalmát. Ha hozzáad egy sort egy munkalaphoz, a többi munkalapot is hozzá kell igazítania.
A5: Írja be az alkalmazotti költségek a jobbra lévő cellában kezdődő táblázatba Alkalmazotti tervezett táblázatba. A következő utasítás az A10 cellában található. | B5: Alkalmazotti költségek | C5: Jan. | D5: Febr. | E5: Márc. | F5: Ápr. | G5: Máj. | H5: Jún. | I5: Júl. | J5: Aug. | K5: Szept. | L5: Okt. | M5: Nov. | N5: Dec. | O5: ÉV
B6: Bérek | C6: 85,000.00 Ft | D6: 85,000.00 Ft | E6: 85,000.00 Ft | F6: 87,500.00 Ft | G6: 87,500.00 Ft | H6: 87,500.00 Ft | I6: 87,500.00 Ft | J6: 92,400.00 Ft | K6: 92,400.00 Ft | L6: 92,400.00 Ft | M6: 92,400.00 Ft | N6: 92,400.00 Ft | O6: =SUM(C6:N6) -> 1,067,000.00 Ft
B7: Juttatások | C7: =C6*0.27 -> 22,950.00 Ft | D7: 22,950.00 Ft | E7: 22,950.00 Ft | F7: 23,625.00 Ft | G7: 23,625.00 Ft | H7: 23,625.00 Ft | I7: 23,625.00 Ft | J7: 24,948.00 Ft | K7: 24,948.00 Ft | L7: 24,948.00 Ft | M7: 24,948.00 Ft | N7: 24,948.00 Ft | O7: =SUM(C7:N7) -> 288,090.00 Ft
B8: Részösszeg | C8: =SUBTOTAL(109,AlkalmazottiTervezett[Jan.]) -> 107,950.00 Ft | D8: =SUBTOTAL(109,AlkalmazottiTervezett[Febr.]) -> 107,950.00 Ft | E8: =SUBTOTAL(109,AlkalmazottiTervezett[Márc.]) -> 107,950.00 Ft | F8: =SUBTOTAL(109,AlkalmazottiTervezett[Ápr.]) -> 111,125.00 Ft | G8: =SUBTOTAL(109,AlkalmazottiTervezett[Máj.]) -> 111,125.00 Ft | H8: =SUBTOTAL(109,AlkalmazottiTervezett[Jún.]) -> 111,125.00 Ft | I8: =SUBTOTAL(109,AlkalmazottiTervezett[Júl.]) -> 111,125.00 Ft | J8: =SUBTOTAL(109,AlkalmazottiTervezett[Aug.]) -> 117,348.00 Ft | K8: =SUBTOTAL(109,AlkalmazottiTervezett[Szept.]) -> 117,348.00 Ft | L8: =SUBTOTAL(109,AlkalmazottiTervezett[Okt.]) -> 117,348.00 Ft | M8: =SUBTOTAL(109,AlkalmazottiTervezett[Nov.]) -> 117,348.00 Ft | N8: =SUBTOTAL(109,AlkalmazottiTervezett[Dec.]) -> 117,348.00 Ft | O8: =SUBTOTAL(109,AlkalmazottiTervezett[ÉV]) -> 1,355,090.00 Ft
A10: Írja be az irodaköltségek jobbra lévő cellában kezdődő Irodai tervezett táblázatba. A következő utasítás az A21 cellában található. | B10: Irodaköltségek | C10: Jan. | D10: Febr. | E10: Márc. | F10: Ápr. | G10: Máj. | H10: Jún. | I10: Júl. | J10: Aug. | K10: Szept. | L10: Okt. | M10: Nov. | N10: Dec. | O10: ÉV
B11: Irodabérlési díj | C11: 9,800.00 Ft | D11: 9,800.00 Ft | E11: 9,800.00 Ft | F11: 9,800.00 Ft | G11: 9,800.00 Ft | H11: 9,800.00 Ft | I11: 9,800.00 Ft | J11: 9,800.00 Ft | K11: 9,800.00 Ft | L11: 9,800.00 Ft | M11: 9,800.00 Ft | N11: 9,800.00 Ft | O11: =SUM(C11:N11) -> 117,600.00 Ft
B12: Gáz | D12: 400.00 Ft | E12: 400.00 Ft | F12: 100.00 Ft | G12: 100.00 Ft | H12: 100.00 Ft | I12: 100.00 Ft | J12: 100.00 Ft | K12: 100.00 Ft | L12: 100.00 Ft | M12: 400.00 Ft | N12: 400.00 Ft | O12: 2,300.00 Ft
B13: Áram | C13: 300.00 Ft | D13: 300.00 Ft | E13: 300.00 Ft | F13: 300.00 Ft | G13: 300.00 Ft | H13: 300.00 Ft | I13: 300.00 Ft | J13: 300.00 Ft | K13: 300.00 Ft | L13: 300.00 Ft | M13: 300.00 Ft | N13: 300.00 Ft | O13: 3,600.00 Ft
B14: Víz | C14: 40.00 Ft | D14: 40.00 Ft | E14: 40.00 Ft | F14: 40.00 Ft | G14: 40.00 Ft | H14: 40.00 Ft | I14: 40.00 Ft | J14: 40.00 Ft | K14: 40.00 Ft | L14: 40.00 Ft | M14: 40.00 Ft | N14: 40.00 Ft | O14: 480.00 Ft
B15: Telefon | C15: 250.00 Ft | D15: 250.00 Ft | E15: 250.00 Ft | F15: 250.00 Ft | G15: 250.00 Ft | H15: 250.00 Ft | I15: 250.00 Ft | J15: 250.00 Ft | K15: 250.00 Ft | L15: 250.00 Ft | M15: 250.00 Ft | N15: 250.00 Ft | O15: 3,000.00 Ft
B16: Internetkapcsolat | C16: 180.00 Ft | D16: 180.00 Ft | E16: 180.00 Ft | F16: 180.00 Ft | G16: 180.00 Ft | H16: 180.00 Ft | I16: 180.00 Ft | J16: 180.00 Ft | K16: 180.00 Ft | L16: 180.00 Ft | M16: 180.00 Ft | N16: 180.00 Ft | O16: 2,160.00 Ft
B17: Irodai kellékek | C17: 200.00 Ft | D17: 200.00 Ft | E17: 200.00 Ft | F17: 200.00 Ft | G17: 200.00 Ft | H17: 200.00 Ft | I17: 200.00 Ft | J17: 200.00 Ft | K17: 200.00 Ft | L17: 200.00 Ft | M17: 200.00 Ft | N17: 200.00 Ft | O17: 2,400.00 Ft
B18: Biztonság | C18: 600.00 Ft | D18: 600.00 Ft | E18: 600.00 Ft | F18: 600.00 Ft | G18: 600.00 Ft | H18: 600.00 Ft | I18: 600.00 Ft | J18: 600.00 Ft | K18: 600.00 Ft | L18: 600.00 Ft | M18: 600.00 Ft | N18: 600.00 Ft | O18: 7,200.00 Ft
B19: Részösszeg | C19: =SUBTOTAL(109,IrodaiTervezett[Jan.]) -> 11,370.00 Ft | D19: =SUBTOTAL(109,IrodaiTervezett[Febr.]) -> 11,770.00 Ft | E19: =SUBTOTAL(109,IrodaiTervezett[Márc.]) -> 11,770.00 Ft | F19: =SUBTOTAL(109,IrodaiTervezett[Ápr.]) -> 11,470.00 Ft | G19: =SUBTOTAL(109,IrodaiTervezett[Máj.]) -> 11,470.00 Ft | H19: =SUBTOTAL(109,IrodaiTervezett[Jún.]) -> 11,470.00 Ft | I19: =SUBTOTAL(109,IrodaiTervezett[Júl.]) -> 11,470.00 Ft | J19: =SUBTOTAL(109,IrodaiTervezett[Aug.]) -> 11,470.00 Ft | K19: =SUBTOTAL(109,IrodaiTervezett[Szept.]) -> 11,470.00 Ft | L19: =SUBTOTAL(109,IrodaiTervezett[Okt.]) -> 11,470.00 Ft | M19: =SUBTOTAL(109,IrodaiTervezett[Nov.]) -> 11,770.00 Ft | N19: =SUBTOTAL(109,IrodaiTervezett[Dec.]) -> 11,770.00 Ft | O19: =SUBTOTAL(109,IrodaiTervezett[ÉV]) -> 138,740.00 Ft
A21: Írja be a marketingköltségek jobbra lévő cellában kezdődő Marketing tervezett táblázatba. A következő utasítás az A30 cellában található. | B21: Marketingköltségek | C21: Jan. | D21: Febr. | E21: Márc. | F21: Ápr. | G21: Máj. | H21: Jún. | I21: Júl. | J21: Aug. | K21: Szept. | L21: Okt. | M21: Nov. | N21: Dec. | O21: ÉV
B22: Webhely-üzemeltetés | C22: 500.00 Ft | D22: 500.00 Ft | E22: 500.00 Ft | F22: 500.00 Ft | G22: 500.00 Ft | H22: 500.00 Ft | I22: 500.00 Ft | J22: 500.00 Ft | K22: 500.00 Ft | L22: 500.00 Ft | M22: 500.00 Ft | N22: 500.00 Ft | O22: =SUM(C22:N22) -> 6,000.00 Ft
B23: A webhely frissítései | C23: 200.00 Ft | D23: 200.00 Ft | E23: 200.00 Ft | F23: 200.00 Ft | G23: 200.00 Ft | H23: 1,000.00 Ft | I23: 200.00 Ft | J23: 200.00 Ft | K23: 200.00 Ft | L23: 200.00 Ft | M23: 200.00 Ft | N23: 1,000.00 Ft | O23: 4,000.00 Ft
B24: Segédanyagok előkészítése | C24: 5,000.00 Ft | D24: 0.00 Ft | E24: 0.00 Ft | F24: 5,000.00 Ft | G24: 0.00 Ft | H24: 0.00 Ft | I24: 5,000.00 Ft | J24: 0.00 Ft | K24: 0.00 Ft | L24: 5,000.00 Ft | M24: 0.00 Ft | N24: 0.00 Ft | O24: 20,000.00 Ft
B25: Segédanyagok nyomtatása | C25: 200.00 Ft | D25: 200.00 Ft | E25: 200.00 Ft | F25: 200.00 Ft | G25: 200.00 Ft | H25: 200.00 Ft | I25: 200.00 Ft | J25: 200.00 Ft | K25: 200.00 Ft | L25: 200.00 Ft | M25: 200.00 Ft | N25: 200.00 Ft | O25: 2,400.00 Ft
B26: Marketingrendezvények | C26: 2,000.00 Ft | D26: 2,000.00 Ft | E26: 2,000.00 Ft | F26: 5,000.00 Ft | G26: 2,000.00 Ft | H26: 2,000.00 Ft | I26: 2,000.00 Ft | J26: 5,000.00 Ft | K26: 2,000.00 Ft | L26: 2,000.00 Ft | M26: 2,000.00 Ft | N26: 5,000.00 Ft | O26: 33,000.00 Ft
B27: Vegyes költségek | C27: 200.00 Ft | D27: 200.00 Ft | E27: 200.00 Ft | F27: 200.00 Ft | G27: 200.00 Ft | H27: 200.00 Ft | I27: 200.00 Ft | J27: 200.00 Ft | K27: 200.00 Ft | L27: 200.00 Ft | M27: 200.00 Ft | N27: 200.00 Ft | O27: 2,400.00 Ft
B28: Részösszeg | C28: =SUBTOTAL(109,MarketingTervezett[Jan.]) -> 8,100.00 Ft | D28: =SUBTOTAL(109,MarketingTervezett[Febr.]) -> 3,100.00 Ft | E28: =SUBTOTAL(109,MarketingTervezett[Márc.]) -> 3,100.00 Ft | F28: =SUBTOTAL(109,MarketingTervezett[Ápr.]) -> 11,100.00 Ft | G28: =SUBTOTAL(109,MarketingTervezett[Máj.]) -> 3,100.00 Ft | H28: =SUBTOTAL(109,MarketingTervezett[Jún.]) -> 3,900.00 Ft | I28: =SUBTOTAL(109,MarketingTervezett[Júl.]) -> 8,100.00 Ft | J28: =SUBTOTAL(109,MarketingTervezett[Aug.]) -> 6,100.00 Ft | K28: =SUBTOTAL(109,MarketingTervezett[Szept.]) -> 3,100.00 Ft | L28: =SUBTOTAL(109,MarketingTervezett[Okt.]) -> 8,100.00 Ft | M28: =SUBTOTAL(109,MarketingTervezett[Nov.]) -> 3,100.00 Ft | N28: =SUBTOTAL(109,MarketingTervezett[Dec.]) -> 6,900.00 Ft | O28: =SUBTOTAL(109,MarketingTervezett[ÉV]) -> 67,800.00 Ft
A30: Írja be a képzési és az utazási költségeket jobbra lévő cellában kezdődő Képzési és utazási tervezett táblázatba. A következő utasítás az A35 cellában található. | B30: Képzés/utazás | C30: Jan. | D30: Febr. | E30: Márc. | F30: Ápr. | G30: Máj. | H30: Jún. | I30: Júl. | J30: Aug. | K30: Szept. | L30: Okt. | M30: Nov. | N30: Dec. | O30: ÉV
B31: Tanfolyamok | C31: 2,000.00 Ft | D31: 2,000.00 Ft | E31: 2,000.00 Ft | F31: 2,000.00 Ft | G31: 2,000.00 Ft | H31: 2,000.00 Ft | I31: 2,000.00 Ft | J31: 2,000.00 Ft | K31: 2,000.00 Ft | L31: 2,000.00 Ft | M31: 2,000.00 Ft | N31: 2,000.00 Ft | O31: =SUM(C31:N31) -> 24,000.00 Ft
B32: Képzéshez kapcsolódó utazási költségek | C32: 2,000.00 Ft | D32: 2,000.00 Ft | E32: 2,000.00 Ft | F32: 2,000.00 Ft | G32: 2,000.00 Ft | H32: 2,000.00 Ft | I32: 2,000.00 Ft | J32: 2,000.00 Ft | K32: 2,000.00 Ft | L32: 2,000.00 Ft | M32: 2,000.00 Ft | N32: 2,000.00 Ft | O32: =SUM(C32:N32) -> 24,000.00 Ft
B33: Részösszeg | C33: =SUBTOTAL(109,KépzésiÉsUtazásiTervezett[Jan.]) -> 4,000.00 Ft | D33: =SUBTOTAL(109,KépzésiÉsUtazásiTervezett[Febr.]) -> 4,000.00 Ft | E33: =SUBTOTAL(109,KépzésiÉsUtazásiTervezett[Márc.]) -> 4,000.00 Ft | F33: =SUBTOTAL(109,KépzésiÉsUtazásiTervezett[Ápr.]) -> 4,000.00 Ft | G33: =SUBTOTAL(109,KépzésiÉsUtazásiTervezett[Máj.]) -> 4,000.00 Ft | H33: =SUBTOTAL(109,KépzésiÉsUtazásiTervezett[Jún.]) -> 4,000.00 Ft | I33: =SUBTOTAL(109,KépzésiÉsUtazásiTervezett[Júl.]) -> 4,000.00 Ft | J33: =SUBTOTAL(109,KépzésiÉsUtazásiTervezett[Aug.]) -> 4,000.00 Ft | K33: =SUBTOTAL(109,KépzésiÉsUtazásiTervezett[Szept.]) -> 4,000.00 Ft | L33: =SUBTOTAL(109,KépzésiÉsUtazásiTervezett[Okt.]) -> 4,000.00 Ft | M33: =SUBTOTAL(109,KépzésiÉsUtazásiTervezett[Nov.]) -> 4,000.00 Ft | N33: =SUBTOTAL(109,KépzésiÉsUtazásiTervezett[Dec.]) -> 4,000.00 Ft | O33: =SUBTOTAL(109,KépzésiÉsUtazásiTervezett[ÉV]) -> 48,000.00 Ft
A35: A jobbra lévő cellában kezdődő Tervezett összesen táblázatban a sablon automatikusan összesíti az adatokat. | B35: ÖSSZESEN | C35: Jan. | D35: Febr. | E35: Márc. | F35: Ápr. | G35: Máj. | H35: Jún. | I35: Júl. | J35: Aug. | K35: Szept. | L35: Okt. | M35: Nov. | N35: Dec. | O35: Év
B36: TERVEZETT HAVI KÖLTSÉG | C36: =KépzésiÉsUtazásiTervezett[[#Totals],[Jan.]]+MarketingTervezett[[#Totals],[Jan.]]+IrodaiTervezett[[#Totals],[Jan.]]+AlkalmazottiTervezett[[#Totals],[Jan.]] -> 131,420.00 Ft | D36: =KépzésiÉsUtazásiTervezett[[#Totals],[Febr.]]+MarketingTervezett[[#Totals],[Febr.]]+IrodaiTervezett[[#Totals],[Febr.]]+AlkalmazottiTervezett[[#Totals],[Febr.]] -> 126,820.00 Ft | E36: =KépzésiÉsUtazásiTervezett[[#Totals],[Márc.]]+MarketingTervezett[[#Totals],[Márc.]]+IrodaiTervezett[[#Totals],[Márc.]]+AlkalmazottiTervezett[[#Totals],[Márc.]] -> 126,820.00 Ft | F36: =KépzésiÉsUtazásiTervezett[[#Totals],[Ápr.]]+MarketingTervezett[[#Totals],[Ápr.]]+IrodaiTervezett[[#Totals],[Ápr.]]+AlkalmazottiTervezett[[#Totals],[Ápr.]] -> 137,695.00 Ft | G36: =KépzésiÉsUtazásiTervezett[[#Totals],[Máj.]]+MarketingTervezett[[#Totals],[Máj.]]+IrodaiTervezett[[#Totals],[Máj.]]+AlkalmazottiTervezett[[#Totals],[Máj.]] -> 129,695.00 Ft | H36: =KépzésiÉsUtazásiTervezett[[#Totals],[Jún.]]+MarketingTervezett[[#Totals],[Jún.]]+IrodaiTervezett[[#Totals],[Jún.]]+AlkalmazottiTervezett[[#Totals],[Jún.]] -> 130,495.00 Ft | I36: =KépzésiÉsUtazásiTervezett[[#Totals],[Júl.]]+MarketingTervezett[[#Totals],[Júl.]]+IrodaiTervezett[[#Totals],[Júl.]]+AlkalmazottiTervezett[[#Totals],[Júl.]] -> 134,695.00 Ft | J36: =KépzésiÉsUtazásiTervezett[[#Totals],[Aug.]]+MarketingTervezett[[#Totals],[Aug.]]+IrodaiTervezett[[#Totals],[Aug.]]+AlkalmazottiTervezett[[#Totals],[Aug.]] -> 138,918.00 Ft | K36: =KépzésiÉsUtazásiTervezett[[#Totals],[Szept.]]+MarketingTervezett[[#Totals],[Szept.]]+IrodaiTervezett[[#Totals],[Szept.]]+AlkalmazottiTervezett[[#Totals],[Szept.]] -> 135,918.00 Ft | L36: =KépzésiÉsUtazásiTervezett[[#Totals],[Okt.]]+MarketingTervezett[[#Totals],[Okt.]]+IrodaiTervezett[[#Totals],[Okt.]]+AlkalmazottiTervezett[[#Totals],[Okt.]] -> 140,918.00 Ft | M36: =KépzésiÉsUtazásiTervezett[[#Totals],[Nov.]]+MarketingTervezett[[#Totals],[Nov.]]+IrodaiTervezett[[#Totals],[Nov.]]+AlkalmazottiTervezett[[#Totals],[Nov.]] -> 136,218.00 Ft | N36: =KépzésiÉsUtazásiTervezett[[#Totals],[Dec.]]+MarketingTervezett[[#Totals],[Dec.]]+IrodaiTervezett[[#Totals],[Dec.]]+AlkalmazottiTervezett[[#Totals],[Dec.]] -> 140,018.00 Ft | O36: =KépzésiÉsUtazásiTervezett[[#Totals],[ÉV]]+MarketingTervezett[[#Totals],[ÉV]]+IrodaiTervezett[[#Totals],[ÉV]]+AlkalmazottiTervezett[[#Totals],[ÉV]] -> 1,609,630.00 Ft
B37: ÖSSZES TERVEZETT KÖLTSÉG | C37: =SUM($C$36:C36) -> 131,420.00 Ft | D37: =SUM($C$36:D36) -> 258,240.00 Ft | E37: =SUM($C$36:E36) -> 385,060.00 Ft | F37: =SUM($C$36:F36) -> 522,755.00 Ft | G37: =SUM($C$36:G36) -> 652,450.00 Ft | H37: =SUM($C$36:H36) -> 782,945.00 Ft | I37: =SUM($C$36:I36) -> 917,640.00 Ft | J37: =SUM($C$36:J36) -> 1,056,558.00 Ft | K37: =SUM($C$36:K36) -> 1,192,476.00 Ft | L37: =SUM($C$36:L36) -> 1,333,394.00 Ft | M37: =SUM($C$36:M36) -> 1,469,612.00 Ft | N37: =SUM($C$36:N36) -> 1,609,630.00 Ft

Sheet TÉNYLEGES KÖLTSÉGEK
A1: Ennek a munkalapnak a megfelelő táblázataiban adhatja meg a tényleges alkalmazotti költségek, irodaköltségek, marketingköltségeket, valamint a képzési és utazási költségeket. Az összegeket automatikusan kiszámítja a sablon. Ennek az oszlopnak a celláiban a munkalap használatát megkönnyítő útmutatás olvasható. Első lépésként nyomja le a lefelé nyilat.
A2: A jobbra lévő cellában automatikusan frissül a cég neve. A munkalap címe a K2 cellában található. Szúrja be az emblémát az N2 cellába. | B2: ='TERVEZETT KÖLTSÉGEK'!B2:D3 -> Cég neve | K2: =munkalap_címe -> Részletes költségbecslés | N2: Ebben a cellában az embléma helyőrzője található.
A3: A K3 cellában egy hasznos tanács szerepel. | K3: Az árnyékolt cellák számítások.
A4: A jobbra lévő cellában a Tényleges költségek felirat olvasható, a C4 és az N4 cella között a hónapok vannak felsorolva, az O4 cella az Év oszlopfejlécet tartalmazza. | B4: TÉNYLEGES KÖLTSÉGEK | C4: JAN. | D4: FEBR. | E4: MÁRC. | F4: ÁPR. | G4: MÁJ. | H4: JÚN. | I4: JÚL. | J4: AUG. | K4: SZEPT. | L4: OKT. | M4: NOV. | N4: DEC. | O4: ÉV
A5: Írja be az alkalmazotti költségek jobbra lévő cellában kezdődő Alkalmazotti tényleges táblázatba. A következő utasítás az A10 cellában található. | B5: Alkalmazotti költségek | C5: Jan. | D5: Febr. | E5: Márc. | F5: Ápr. | G5: Máj. | H5: Jún. | I5: Júl. | J5: Aug. | K5: Szept. | L5: Okt. | M5: Nov. | N5: Dec. | O5: ÉV
B6: Bérek | C6: 85,000.00 Ft | D6: 85,000.00 Ft | E6: 85,000.00 Ft | F6: 88,000.00 Ft | G6: 88,000.00 Ft | H6: 88,000.00 Ft | O6: =SUM(C6:N6) -> 519,000.00 Ft
B7: Juttatások | C7: =C6*0.27 -> 22,950.00 Ft | D7: 22,950.00 Ft | E7: 22,950.00 Ft | F7: 23,760.00 Ft | G7: 23,760.00 Ft | H7: 23,760.00 Ft | I7: 0.00 Ft | J7: 0.00 Ft | K7: 0.00 Ft | L7: 0.00 Ft | M7: 0.00 Ft | N7: 0.00 Ft | O7: =SUM(C7:N7) -> 140,130.00 Ft
B8: Részösszeg | C8: =SUBTOTAL(109,AlkalmazottiTényleges[Jan.]) -> 107,950.00 Ft | D8: =SUBTOTAL(109,AlkalmazottiTényleges[Febr.]) -> 107,950.00 Ft | E8: =SUBTOTAL(109,AlkalmazottiTényleges[Márc.]) -> 107,950.00 Ft | F8: =SUBTOTAL(109,AlkalmazottiTényleges[Ápr.]) -> 111,760.00 Ft | G8: =SUBTOTAL(109,AlkalmazottiTényleges[Máj.]) -> 111,760.00 Ft | H8: =SUBTOTAL(109,AlkalmazottiTényleges[Jún.]) -> 111,760.00 Ft | I8: =SUBTOTAL(109,AlkalmazottiTényleges[Júl.]) -> 0.00 Ft | J8: =SUBTOTAL(109,AlkalmazottiTényleges[Aug.]) -> 0.00 Ft | K8: =SUBTOTAL(109,AlkalmazottiTényleges[Szept.]) -> 0.00 Ft | L8: =SUBTOTAL(109,AlkalmazottiTényleges[Okt.]) -> 0.00 Ft | M8: =SUBTOTAL(109,AlkalmazottiTényleges[Nov.]) -> 0.00 Ft | N8: =SUBTOTAL(109,AlkalmazottiTényleges[Dec.]) -> 0.00 Ft | O8: =SUBTOTAL(109,AlkalmazottiTényleges[ÉV]) -> 659,130.00 Ft
A10: Írja be az irodaköltségek jobbra lévő cellában kezdődő Irodai tényleges táblázatba. A következő utasítás az A21 cellában található. | B10: Irodaköltségek | C10: Jan. | D10: Febr. | E10: Márc. | F10: Ápr. | G10: Máj. | H10: Jún. | I10: Júl. | J10: Aug. | K10: Szept. | L10: Okt. | M10: Nov. | N10: Dec. | O10: ÉV
B11: Irodabérlési díj | C11: 9,800.00 Ft | D11: 9,800.00 Ft | E11: 9,800.00 Ft | F11: 9,800.00 Ft | G11: 9,800.00 Ft | H11: 9,800.00 Ft | O11: =SUM(C11:N11) -> 58,800.00 Ft
B12: Gáz | C12: 4.00 Ft | D12: 430.00 Ft | E12: 385.00 Ft | F12: 230.00 Ft | G12: 87.00 Ft | H12: 88.00 Ft | O12: 1,224.00 Ft
B13: Áram | C13: 288.00 Ft | D13: 278.00 Ft | E13: 268.00 Ft | F13: 299.00 Ft | G13: 306.00 Ft | H13: 290.00 Ft | O13: 1,729.00 Ft
B14: Víz | C14: 35.00 Ft | D14: 33.00 Ft | E14: 34.00 Ft | F14: 36.00 Ft | G14: 34.00 Ft | H14: 36.00 Ft | O14: 208.00 Ft
B15: Telefon | C15: 224.00 Ft | D15: 235.00 Ft | E15: 265.00 Ft | F15: 245.00 Ft | G15: 245.00 Ft | H15: 220.00 Ft | O15: 1,434.00 Ft
B16: Internetkapcsolat | C16: 180.00 Ft | D16: 180.00 Ft | E16: 180.00 Ft | F16: 180.00 Ft | G16: 180.00 Ft | H16: 180.00 Ft | O16: 1,080.00 Ft
B17: Irodai kellékek | C17: 256.00 Ft | D17: 142.00 Ft | E17: 160.00 Ft | F17: 221.00 Ft | G17: 256.00 Ft | H17: 240.00 Ft | O17: 1,275.00 Ft
B18: Biztonság | C18: 600.00 Ft | D18: 600.00 Ft | E18: 600.00 Ft | F18: 600.00 Ft | G18: 600.00 Ft | H18: 600.00 Ft | O18: 3,600.00 Ft
B19: Részösszeg | C19: =SUBTOTAL(109,IrodaiTényleges[Jan.]) -> 11,387.00 Ft | D19: =SUBTOTAL(109,IrodaiTényleges[Febr.]) -> 11,698.00 Ft | E19: =SUBTOTAL(109,IrodaiTényleges[Márc.]) -> 11,692.00 Ft | F19: =SUBTOTAL(109,IrodaiTényleges[Ápr.]) -> 11,611.00 Ft | G19: =SUBTOTAL(109,IrodaiTényleges[Máj.]) -> 11,508.00 Ft | H19: =SUBTOTAL(109,IrodaiTényleges[Jún.]) -> 11,454.00 Ft | I19: =SUBTOTAL(109,IrodaiTényleges[Júl.]) -> 0.00 Ft | J19: =SUBTOTAL(109,IrodaiTényleges[Aug.]) -> 0.00 Ft | K19: =SUBTOTAL(109,IrodaiTényleges[Szept.]) -> 0.00 Ft | L19: =SUBTOTAL(109,IrodaiTényleges[Okt.]) -> 0.00 Ft | M19: =SUBTOTAL(109,IrodaiTényleges[Nov.]) -> 0.00 Ft | N19: =SUBTOTAL(109,IrodaiTényleges[Dec.]) -> 0.00 Ft | O19: =SUBTOTAL(109,IrodaiTényleges[ÉV]) -> 69,350.00 Ft
A21: Írja be a marketingköltségek jobbra lévő cellában kezdődő Marketing tényleges táblázatba. A következő utasítás az A30 cellában található. | B21: Marketingköltségek | C21: Jan. | D21: Febr. | E21: Márc. | F21: Ápr. | G21: Máj. | H21: Jún. | I21: Júl. | J21: Aug. | K21: Szept. | L21: Okt. | M21: Nov. | N21: Dec. | O21: ÉV
B22: Webhely-üzemeltetés | C22: 500.00 Ft | D22: 500.00 Ft | E22: 500.00 Ft | F22: 500.00 Ft | G22: 500.00 Ft | H22: 500.00 Ft | O22: =SUM(C22:N22) -> 3,000.00 Ft
B23: A webhely frissítései | C23: 200.00 Ft | D23: 200.00 Ft | E23: 200.00 Ft | F23: 200.00 Ft | G23: 200.00 Ft | H23: 1,500.00 Ft | O23: 2,500.00 Ft
B24: Segédanyagok előkészítése | C24: 4,800.00 Ft | D24: 0.00 Ft | E24: 0.00 Ft | F24: 5,500.00 Ft | G24: 0.00 Ft | H24: 0.00 Ft | O24: 10,300.00 Ft
B25: Segédanyagok nyomtatása | C25: 100.00 Ft | D25: 500.00 Ft | E25: 100.00 Ft | F25: 100.00 Ft | G25: 600.00 Ft | H25: 180.00 Ft | O25: 1,580.00 Ft
B26: Marketingrendezvények | C26: 1,800.00 Ft | D26: 2,200.00 Ft | E26: 2,200.00 Ft | F26: 4,700.00 Ft | G26: 1,500.00 Ft | H26: 2,300.00 Ft | O26: 14,700.00 Ft
B27: Vegyes költségek | C27: 145.00 Ft | D27: 156.00 Ft | E27: 123.00 Ft | F27: 223.00 Ft | G27: 187.00 Ft | H27: 245.00 Ft | O27: 1,079.00 Ft
B28: Részösszeg | C28: =SUBTOTAL(109,MarketingTényleges[Jan.]) -> 7,545.00 Ft | D28: =SUBTOTAL(109,MarketingTényleges[Febr.]) -> 3,556.00 Ft | E28: =SUBTOTAL(109,MarketingTényleges[Márc.]) -> 3,123.00 Ft | F28: =SUBTOTAL(109,MarketingTényleges[Ápr.]) -> 11,223.00 Ft | G28: =SUBTOTAL(109,MarketingTényleges[Máj.]) -> 2,987.00 Ft | H28: =SUBTOTAL(109,MarketingTényleges[Jún.]) -> 4,725.00 Ft | I28: =SUBTOTAL(109,MarketingTényleges[Júl.]) -> 0.00 Ft | J28: =SUBTOTAL(109,MarketingTényleges[Aug.]) -> 0.00 Ft | K28: =SUBTOTAL(109,MarketingTényleges[Szept.]) -> 0.00 Ft | L28: =SUBTOTAL(109,MarketingTényleges[Okt.]) -> 0.00 Ft | M28: =SUBTOTAL(109,MarketingTényleges[Nov.]) -> 0.00 Ft | N28: =SUBTOTAL(109,MarketingTényleges[Dec.]) -> 0.00 Ft | O28: =SUBTOTAL(109,MarketingTényleges[ÉV]) -> 33,159.00 Ft
A30: Írja be a képzési és az utazási költségeket jobbra lévő cellában kezdődő Képzési és utazási tényleges táblázatba. A következő utasítás az A35 cellában található. | B30: Képzés/utazás | C30: Jan. | D30: Febr. | E30: Márc. | F30: Ápr. | G30: Máj. | H30: Jún. | I30: Júl. | J30: Aug. | K30: Szept. | L30: Okt. | M30: Nov. | N30: Dec. | O30: ÉV
B31: Tanfolyamok | C31: 1,600.00 Ft | D31: 2,400.00 Ft | E31: 1,400.00 Ft | F31: 1,600.00 Ft | G31: 1,200.00 Ft | H31: 2,800.00 Ft | O31: =SUM(C31:N31) -> 11,000.00 Ft
B32: Képzéshez kapcsolódó utazási költségek | C32: 1,200.00 Ft | D32: 2,200.00 Ft | E32: 1,400.00 Ft | F32: 1,200.00 Ft | G32: 800.00 Ft | H32: 3,500.00 Ft | O32: =SUM(C32:N32) -> 10,300.00 Ft
B33: Részösszeg | C33: =SUBTOTAL(109,KépzésiÉsUtazásiTényleges[Jan.]) -> 2,800.00 Ft | D33: =SUBTOTAL(109,KépzésiÉsUtazásiTényleges[Febr.]) -> 4,600.00 Ft | E33: =SUBTOTAL(109,KépzésiÉsUtazásiTényleges[Márc.]) -> 2,800.00 Ft | F33: =SUBTOTAL(109,KépzésiÉsUtazásiTényleges[Ápr.]) -> 2,800.00 Ft | G33: =SUBTOTAL(109,KépzésiÉsUtazásiTényleges[Máj.]) -> 2,000.00 Ft | H33: =SUBTOTAL(109,KépzésiÉsUtazásiTényleges[Jún.]) -> 6,300.00 Ft | I33: =SUBTOTAL(109,KépzésiÉsUtazásiTényleges[Júl.]) -> 0.00 Ft | J33: =SUBTOTAL(109,KépzésiÉsUtazásiTényleges[Aug.]) -> 0.00 Ft | K33: =SUBTOTAL(109,KépzésiÉsUtazásiTényleges[Szept.]) -> 0.00 Ft | L33: =SUBTOTAL(109,KépzésiÉsUtazásiTényleges[Okt.]) -> 0.00 Ft | M33: =SUBTOTAL(109,KépzésiÉsUtazásiTényleges[Nov.]) -> 0.00 Ft | N33: =SUBTOTAL(109,KépzésiÉsUtazásiTényleges[Dec.]) -> 0.00 Ft | O33: =SUBTOTAL(109,KépzésiÉsUtazásiTényleges[ÉV]) -> 21,300.00 Ft
A35: A jobbra lévő cellában kezdődő Tényleges összes tényleges táblázatban a sablon automatikusan összes tényleges költség. | B35: ÖSSZES TERVEZETT KÖLTSÉG | C35: Jan. | D35: Febr. | E35: Márc. | F35: Ápr. | G35: Máj. | H35: Jún. | I35: Júl. | J35: Aug. | K35: Szept. | L35: Okt. | M35: Nov. | N35: Dec. | O35: Év
B36: Tényleges havi költség | C36: =KépzésiÉsUtazásiTényleges[[#Totals],[Jan.]]+MarketingTényleges[[#Totals],[Jan.]]+IrodaiTényleges[[#Totals],[Jan.]]+AlkalmazottiTényleges[[#Totals],[Jan.]] -> 129,682.00 Ft | D36: =KépzésiÉsUtazásiTényleges[[#Totals],[Febr.]]+MarketingTényleges[[#Totals],[Febr.]]+IrodaiTényleges[[#Totals],[Febr.]]+AlkalmazottiTényleges[[#Totals],[Febr.]] -> 127,804.00 Ft | E36: =KépzésiÉsUtazásiTényleges[[#Totals],[Márc.]]+MarketingTényleges[[#Totals],[Márc.]]+IrodaiTényleges[[#Totals],[Márc.]]+AlkalmazottiTényleges[[#Totals],[Márc.]] -> 125,565.00 Ft | F36: =KépzésiÉsUtazásiTényleges[[#Totals],[Ápr.]]+MarketingTényleges[[#Totals],[Ápr.]]+IrodaiTényleges[[#Totals],[Ápr.]]+AlkalmazottiTényleges[[#Totals],[Ápr.]] -> 137,394.00 Ft | G36: =KépzésiÉsUtazásiTényleges[[#Totals],[Máj.]]+MarketingTényleges[[#Totals],[Máj.]]+IrodaiTényleges[[#Totals],[Máj.]]+AlkalmazottiTényleges[[#Totals],[Máj.]] -> 128,255.00 Ft | H36: =KépzésiÉsUtazásiTényleges[[#Totals],[Jún.]]+MarketingTényleges[[#Totals],[Jún.]]+IrodaiTényleges[[#Totals],[Jún.]]+AlkalmazottiTényleges[[#Totals],[Jún.]] -> 134,239.00 Ft | I36: =KépzésiÉsUtazásiTényleges[[#Totals],[Júl.]]+MarketingTényleges[[#Totals],[Júl.]]+IrodaiTényleges[[#Totals],[Júl.]]+AlkalmazottiTényleges[[#Totals],[Júl.]] -> 0.00 Ft | J36: =KépzésiÉsUtazásiTényleges[[#Totals],[Aug.]]+MarketingTényleges[[#Totals],[Aug.]]+IrodaiTényleges[[#Totals],[Aug.]]+AlkalmazottiTényleges[[#Totals],[Aug.]] -> 0.00 Ft | K36: =KépzésiÉsUtazásiTényleges[[#Totals],[Szept.]]+MarketingTényleges[[#Totals],[Szept.]]+IrodaiTényleges[[#Totals],[Szept.]]+AlkalmazottiTényleges[[#Totals],[Szept.]] -> 0.00 Ft | L36: =KépzésiÉsUtazásiTényleges[[#Totals],[Okt.]]+MarketingTényleges[[#Totals],[Okt.]]+IrodaiTényleges[[#Totals],[Okt.]]+AlkalmazottiTényleges[[#Totals],[Okt.]] -> 0.00 Ft | M36: =KépzésiÉsUtazásiTényleges[[#Totals],[Nov.]]+MarketingTényleges[[#Totals],[Nov.]]+IrodaiTényleges[[#Totals],[Nov.]]+AlkalmazottiTényleges[[#Totals],[Nov.]] -> 0.00 Ft | N36: =KépzésiÉsUtazásiTényleges[[#Totals],[Dec.]]+MarketingTényleges[[#Totals],[Dec.]]+IrodaiTényleges[[#Totals],[Dec.]]+AlkalmazottiTényleges[[#Totals],[Dec.]] -> 0.00 Ft | O36: =KépzésiÉsUtazásiTényleges[[#Totals],[ÉV]]+MarketingTényleges[[#Totals],[ÉV]]+IrodaiTényleges[[#Totals],[ÉV]]+AlkalmazottiTényleges[[#Totals],[ÉV]] -> 782,939.00 Ft
B37: ÖSSZES Tényleges költség | C37: =SUM($C$36:C36) -> 129,682.00 Ft | D37: =SUM($C$36:D36) -> 257,486.00 Ft | E37: =SUM($C$36:E36) -> 383,051.00 Ft | F37: =SUM($C$36:F36) -> 520,445.00 Ft | G37: =SUM($C$36:G36) -> 648,700.00 Ft | H37: =SUM($C$36:H36) -> 782,939.00 Ft | I37: =SUM($C$36:I36) -> 782,939.00 Ft | J37: =SUM($C$36:J36) -> 782,939.00 Ft | K37: =SUM($C$36:K36) -> 782,939.00 Ft | L37: =SUM($C$36:L36) -> 782,939.00 Ft | M37: =SUM($C$36:M36) -> 782,939.00 Ft | N37: =SUM($C$36:N36) -> 782,939.00 Ft

Sheet KÖLTSÉGEK ELTÉRÉSEI
A1: Ennek a munkalapnak a megfelelő táblázataiban a sablon automatikusan kiszámítja az alkalmazotti költségek, az irodaköltségek, a marketingköltségek, valamint a képzési és utazási költségek tervezett és tényleges adatai közötti eltérést. Ennek az oszlopnak a celláiban a munkalap használatát megkönnyítő útmutatás olvasható. Első lépésként nyomja le a lefelé nyilat.
A2: A jobbra lévő cellában automatikusan frissül a cég neve. A munkalap címe a K2 cellában található. Szúrja be az emblémát az N2 cellába. | B2: ='TERVEZETT KÖLTSÉGEK'!B2:D3 -> Cég neve | K2: =munkalap_címe -> Részletes költségbecslés | N2: Ebben a cellában az embléma helyőrzője található.
A3: A K3 cellában egy hasznos tanács szerepel. | K3: Az árnyékolt cellák számítások.
A4: A jobbra lévő cellában a Költségek eltérései felirat olvasható, a C4 és az N4 cella között a hónapok vannak felsorolva, az O4 cella az Év oszlopfejlécet tartalmazza. | B4: KÖLTSÉGEK ELTÉRÉSEI | C4: JAN. | D4: FEBR. | E4: MÁRC. | F4: ÁPR. | G4: MÁJ. | H4: JÚN. | I4: JÚL. | J4: AUG. | K4: SZEPT. | L4: OKT. | M4: NOV. | N4: DEC. | O4: ÉV
A5: A jobbra lévő cellában kezdődő Alkalmazotti eltérés táblázatban a sablon automatikusan kiszámítja az alkalmazotti költségek eltérését. A következő utasítás az A10 cellában található. | B5: Alkalmazotti költségek | C5: Jan. | D5: Febr. | E5: Márc. | F5: Ápr. | G5: Máj. | H5: Jún. | I5: Júl. | J5: Aug. | K5: Szept. | L5: Okt. | M5: Nov. | N5: Dec. | O5: ÉV
B6: Bérek | C6: =INDEX(AlkalmazottiTervezett[],MATCH(INDEX(AlkalmazottiEltérés[],ROW()-ROW(AlkalmazottiEltérés[[#Headers],[Jan.]]),1),INDEX(AlkalmazottiTervezett[],,1),0),MATCH(AlkalmazottiEltérés[[#Headers],[Jan.]],AlkalmazottiTervezett[#Headers],0))-INDEX(AlkalmazottiTényleges[],MATCH(INDEX(AlkalmazottiEltérés[],ROW()-ROW(AlkalmazottiEltérés[[#Headers],[Jan.]]),1),INDEX(AlkalmazottiTervezett[],,1),0),MATCH(AlkalmazottiEltérés[[#Headers],[Jan.]],AlkalmazottiTényleges[#Headers],0)) -> 0.00 Ft | D6: =INDEX(AlkalmazottiTervezett[],MATCH(INDEX(AlkalmazottiEltérés[],ROW()-ROW(AlkalmazottiEltérés[[#Headers],[Febr.]]),1),INDEX(AlkalmazottiTervezett[],,1),0),MATCH(AlkalmazottiEltérés[[#Headers],[Febr.]],AlkalmazottiTervezett[#Headers],0))-INDEX(AlkalmazottiTényleges[],MATCH(INDEX(AlkalmazottiEltérés[],ROW()-ROW(AlkalmazottiEltérés[[#Headers],[Febr.]]),1),INDEX(AlkalmazottiTervezett[],,1),0),MATCH(AlkalmazottiEltérés[[#Headers],[Febr.]],AlkalmazottiTényleges[#Headers],0)) -> 0.00 Ft | E6: =INDEX(AlkalmazottiTervezett[],MATCH(INDEX(AlkalmazottiEltérés[],ROW()-ROW(AlkalmazottiEltérés[[#Headers],[Márc.]]),1),INDEX(AlkalmazottiTervezett[],,1),0),MATCH(AlkalmazottiEltérés[[#Headers],[Márc.]],AlkalmazottiTervezett[#Headers],0))-INDEX(AlkalmazottiTényleges[],MATCH(INDEX(AlkalmazottiEltérés[],ROW()-ROW(AlkalmazottiEltérés[[#Headers],[Márc.]]),1),INDEX(AlkalmazottiTervezett[],,1),0),MATCH(AlkalmazottiEltérés[[#Headers],[Márc.]],AlkalmazottiTényleges[#Headers],0)) -> 0.00 Ft | F6: =INDEX(AlkalmazottiTervezett[],MATCH(INDEX(AlkalmazottiEltérés[],ROW()-ROW(AlkalmazottiEltérés[[#Headers],[Ápr.]]),1),INDEX(AlkalmazottiTervezett[],,1),0),MATCH(AlkalmazottiEltérés[[#Headers],[Ápr.]],AlkalmazottiTervezett[#Headers],0))-INDEX(AlkalmazottiTényleges[],MATCH(INDEX(AlkalmazottiEltérés[],ROW()-ROW(AlkalmazottiEltérés[[#Headers],[Ápr.]]),1),INDEX(AlkalmazottiTervezett[],,1),0),MATCH(AlkalmazottiEltérés[[#Headers],[Ápr.]],AlkalmazottiTényleges[#Headers],0)) -> -500.00 Ft | G6: =INDEX(AlkalmazottiTervezett[],MATCH(INDEX(AlkalmazottiEltérés[],ROW()-ROW(AlkalmazottiEltérés[[#Headers],[Máj.]]),1),INDEX(AlkalmazottiTervezett[],,1),0),MATCH(AlkalmazottiEltérés[[#Headers],[Máj.]],AlkalmazottiTervezett[#Headers],0))-INDEX(AlkalmazottiTényleges[],MATCH(INDEX(AlkalmazottiEltérés[],ROW()-ROW(AlkalmazottiEltérés[[#Headers],[Máj.]]),1),INDEX(AlkalmazottiTervezett[],,1),0),MATCH(AlkalmazottiEltérés[[#Headers],[Máj.]],AlkalmazottiTényleges[#Headers],0)) -> -500.00 Ft | H6: =INDEX(AlkalmazottiTervezett[],MATCH(INDEX(AlkalmazottiEltérés[],ROW()-ROW(AlkalmazottiEltérés[[#Headers],[Jún.]]),1),INDEX(AlkalmazottiTervezett[],,1),0),MATCH(AlkalmazottiEltérés[[#Headers],[Jún.]],AlkalmazottiTervezett[#Headers],0))-INDEX(AlkalmazottiTényleges[],MATCH(INDEX(AlkalmazottiEltérés[],ROW()-ROW(AlkalmazottiEltérés[[#Headers],[Jún.]]),1),INDEX(AlkalmazottiTervezett[],,1),0),MATCH(AlkalmazottiEltérés[[#Headers],[Jún.]],AlkalmazottiTényleges[#Headers],0)) -> -500.00 Ft | I6: =INDEX(AlkalmazottiTervezett[],MATCH(INDEX(AlkalmazottiEltérés[],ROW()-ROW(AlkalmazottiEltérés[[#Headers],[Júl.]]),1),INDEX(AlkalmazottiTervezett[],,1),0),MATCH(AlkalmazottiEltérés[[#Headers],[Júl.]],AlkalmazottiTervezett[#Headers],0))-INDEX(AlkalmazottiTényleges[],MATCH(INDEX(AlkalmazottiEltérés[],ROW()-ROW(AlkalmazottiEltérés[[#Headers],[Júl.]]),1),INDEX(AlkalmazottiTervezett[],,1),0),MATCH(AlkalmazottiEltérés[[#Headers],[Júl.]],AlkalmazottiTényleges[#Headers],0)) -> 87,500.00 Ft | J6: =INDEX(AlkalmazottiTervezett[],MATCH(INDEX(AlkalmazottiEltérés[],ROW()-ROW(AlkalmazottiEltérés[[#Headers],[Aug.]]),1),INDEX(AlkalmazottiTervezett[],,1),0),MATCH(AlkalmazottiEltérés[[#Headers],[Aug.]],AlkalmazottiTervezett[#Headers],0))-INDEX(AlkalmazottiTényleges[],MATCH(INDEX(AlkalmazottiEltérés[],ROW()-ROW(AlkalmazottiEltérés[[#Headers],[Aug.]]),1),INDEX(AlkalmazottiTervezett[],,1),0),MATCH(AlkalmazottiEltérés[[#Headers],[Aug.]],AlkalmazottiTényleges[#Headers],0)) -> 92,400.00 Ft | K6: =INDEX(AlkalmazottiTervezett[],MATCH(INDEX(AlkalmazottiEltérés[],ROW()-ROW(AlkalmazottiEltérés[[#Headers],[Szept.]]),1),INDEX(AlkalmazottiTervezett[],,1),0),MATCH(AlkalmazottiEltérés[[#Headers],[Szept.]],AlkalmazottiTervezett[#Headers],0))-INDEX(AlkalmazottiTényleges[],MATCH(INDEX(AlkalmazottiEltérés[],ROW()-ROW(AlkalmazottiEltérés[[#Headers],[Szept.]]),1),INDEX(AlkalmazottiTervezett[],,1),0),MATCH(AlkalmazottiEltérés[[#Headers],[Szept.]],AlkalmazottiTényleges[#Headers],0)) -> 92,400.00 Ft | L6: =INDEX(AlkalmazottiTervezett[],MATCH(INDEX(AlkalmazottiEltérés[],ROW()-ROW(AlkalmazottiEltérés[[#Headers],[Okt.]]),1),INDEX(AlkalmazottiTervezett[],,1),0),MATCH(AlkalmazottiEltérés[[#Headers],[Okt.]],AlkalmazottiTervezett[#Headers],0))-INDEX(AlkalmazottiTényleges[],MATCH(INDEX(AlkalmazottiEltérés[],ROW()-ROW(AlkalmazottiEltérés[[#Headers],[Okt.]]),1),INDEX(AlkalmazottiTervezett[],,1),0),MATCH(AlkalmazottiEltérés[[#Headers],[Okt.]],AlkalmazottiTényleges[#Headers],0)) -> 92,400.00 Ft | M6: =INDEX(AlkalmazottiTervezett[],MATCH(INDEX(AlkalmazottiEltérés[],ROW()-ROW(AlkalmazottiEltérés[[#Headers],[Nov.]]),1),INDEX(AlkalmazottiTervezett[],,1),0),MATCH(AlkalmazottiEltérés[[#Headers],[Nov.]],AlkalmazottiTervezett[#Headers],0))-INDEX(AlkalmazottiTényleges[],MATCH(INDEX(AlkalmazottiEltérés[],ROW()-ROW(AlkalmazottiEltérés[[#Headers],[Nov.]]),1),INDEX(AlkalmazottiTervezett[],,1),0),MATCH(AlkalmazottiEltérés[[#Headers],[Nov.]],AlkalmazottiTényleges[#Headers],0)) -> 92,400.00 Ft | N6: =INDEX(AlkalmazottiTervezett[],MATCH(INDEX(AlkalmazottiEltérés[],ROW()-ROW(AlkalmazottiEltérés[[#Headers],[Dec.]]),1),INDEX(AlkalmazottiTervezett[],,1),0),MATCH(AlkalmazottiEltérés[[#Headers],[Dec.]],AlkalmazottiTervezett[#Headers],0))-INDEX(AlkalmazottiTényleges[],MATCH(INDEX(AlkalmazottiEltérés[],ROW()-ROW(AlkalmazottiEltérés[[#Headers],[Dec.]]),1),INDEX(AlkalmazottiTervezett[],,1),0),MATCH(AlkalmazottiEltérés[[#Headers],[Dec.]],AlkalmazottiTényleges[#Headers],0)) -> 92,400.00 Ft | O6: =SUM(AlkalmazottiEltérés[[#This Row],[Jan.]:[Dec.]]) -> 548,000.00 Ft
B7: Juttatások | C7: =INDEX(AlkalmazottiTervezett[],MATCH(INDEX(AlkalmazottiEltérés[],ROW()-ROW(AlkalmazottiEltérés[[#Headers],[Jan.]]),1),INDEX(AlkalmazottiTervezett[],,1),0),MATCH(AlkalmazottiEltérés[[#Headers],[Jan.]],AlkalmazottiTervezett[#Headers],0))-INDEX(AlkalmazottiTényleges[],MATCH(INDEX(AlkalmazottiEltérés[],ROW()-ROW(AlkalmazottiEltérés[[#Headers],[Jan.]]),1),INDEX(AlkalmazottiTervezett[],,1),0),MATCH(AlkalmazottiEltérés[[#Headers],[Jan.]],AlkalmazottiTényleges[#Headers],0)) -> 0.00 Ft | D7: =INDEX(AlkalmazottiTervezett[],MATCH(INDEX(AlkalmazottiEltérés[],ROW()-ROW(AlkalmazottiEltérés[[#Headers],[Febr.]]),1),INDEX(AlkalmazottiTervezett[],,1),0),MATCH(AlkalmazottiEltérés[[#Headers],[Febr.]],AlkalmazottiTervezett[#Headers],0))-INDEX(AlkalmazottiTényleges[],MATCH(INDEX(AlkalmazottiEltérés[],ROW()-ROW(AlkalmazottiEltérés[[#Headers],[Febr.]]),1),INDEX(AlkalmazottiTervezett[],,1),0),MATCH(AlkalmazottiEltérés[[#Headers],[Febr.]],AlkalmazottiTényleges[#Headers],0)) -> 0.00 Ft | E7: =INDEX(AlkalmazottiTervezett[],MATCH(INDEX(AlkalmazottiEltérés[],ROW()-ROW(AlkalmazottiEltérés[[#Headers],[Márc.]]),1),INDEX(AlkalmazottiTervezett[],,1),0),MATCH(AlkalmazottiEltérés[[#Headers],[Márc.]],AlkalmazottiTervezett[#Headers],0))-INDEX(AlkalmazottiTényleges[],MATCH(INDEX(AlkalmazottiEltérés[],ROW()-ROW(AlkalmazottiEltérés[[#Headers],[Márc.]]),1),INDEX(AlkalmazottiTervezett[],,1),0),MATCH(AlkalmazottiEltérés[[#Headers],[Márc.]],AlkalmazottiTényleges[#Headers],0)) -> 0.00 Ft | F7: =INDEX(AlkalmazottiTervezett[],MATCH(INDEX(AlkalmazottiEltérés[],ROW()-ROW(AlkalmazottiEltérés[[#Headers],[Ápr.]]),1),INDEX(AlkalmazottiTervezett[],,1),0),MATCH(AlkalmazottiEltérés[[#Headers],[Ápr.]],AlkalmazottiTervezett[#Headers],0))-INDEX(AlkalmazottiTényleges[],MATCH(INDEX(AlkalmazottiEltérés[],ROW()-ROW(AlkalmazottiEltérés[[#Headers],[Ápr.]]),1),INDEX(AlkalmazottiTervezett[],,1),0),MATCH(AlkalmazottiEltérés[[#Headers],[Ápr.]],AlkalmazottiTényleges[#Headers],0)) -> -135.00 Ft | G7: =INDEX(AlkalmazottiTervezett[],MATCH(INDEX(AlkalmazottiEltérés[],ROW()-ROW(AlkalmazottiEltérés[[#Headers],[Máj.]]),1),INDEX(AlkalmazottiTervezett[],,1),0),MATCH(AlkalmazottiEltérés[[#Headers],[Máj.]],AlkalmazottiTervezett[#Headers],0))-INDEX(AlkalmazottiTényleges[],MATCH(INDEX(AlkalmazottiEltérés[],ROW()-ROW(AlkalmazottiEltérés[[#Headers],[Máj.]]),1),INDEX(AlkalmazottiTervezett[],,1),0),MATCH(AlkalmazottiEltérés[[#Headers],[Máj.]],AlkalmazottiTényleges[#Headers],0)) -> -135.00 Ft | H7: =INDEX(AlkalmazottiTervezett[],MATCH(INDEX(AlkalmazottiEltérés[],ROW()-ROW(AlkalmazottiEltérés[[#Headers],[Jún.]]),1),INDEX(AlkalmazottiTervezett[],,1),0),MATCH(AlkalmazottiEltérés[[#Headers],[Jún.]],AlkalmazottiTervezett[#Headers],0))-INDEX(AlkalmazottiTényleges[],MATCH(INDEX(AlkalmazottiEltérés[],ROW()-ROW(AlkalmazottiEltérés[[#Headers],[Jún.]]),1),INDEX(AlkalmazottiTervezett[],,1),0),MATCH(AlkalmazottiEltérés[[#Headers],[Jún.]],AlkalmazottiTényleges[#Headers],0)) -> -135.00 Ft | I7: =INDEX(AlkalmazottiTervezett[],MATCH(INDEX(AlkalmazottiEltérés[],ROW()-ROW(AlkalmazottiEltérés[[#Headers],[Júl.]]),1),INDEX(AlkalmazottiTervezett[],,1),0),MATCH(AlkalmazottiEltérés[[#Headers],[Júl.]],AlkalmazottiTervezett[#Headers],0))-INDEX(AlkalmazottiTényleges[],MATCH(INDEX(AlkalmazottiEltérés[],ROW()-ROW(AlkalmazottiEltérés[[#Headers],[Júl.]]),1),INDEX(AlkalmazottiTervezett[],,1),0),MATCH(AlkalmazottiEltérés[[#Headers],[Júl.]],AlkalmazottiTényleges[#Headers],0)) -> 23,625.00 Ft | J7: =INDEX(AlkalmazottiTervezett[],MATCH(INDEX(AlkalmazottiEltérés[],ROW()-ROW(AlkalmazottiEltérés[[#Headers],[Aug.]]),1),INDEX(AlkalmazottiTervezett[],,1),0),MATCH(AlkalmazottiEltérés[[#Headers],[Aug.]],AlkalmazottiTervezett[#Headers],0))-INDEX(AlkalmazottiTényleges[],MATCH(INDEX(AlkalmazottiEltérés[],ROW()-ROW(AlkalmazottiEltérés[[#Headers],[Aug.]]),1),INDEX(AlkalmazottiTervezett[],,1),0),MATCH(AlkalmazottiEltérés[[#Headers],[Aug.]],AlkalmazottiTényleges[#Headers],0)) -> 24,948.00 Ft | K7: =INDEX(AlkalmazottiTervezett[],MATCH(INDEX(AlkalmazottiEltérés[],ROW()-ROW(AlkalmazottiEltérés[[#Headers],[Szept.]]),1),INDEX(AlkalmazottiTervezett[],,1),0),MATCH(AlkalmazottiEltérés[[#Headers],[Szept.]],AlkalmazottiTervezett[#Headers],0))-INDEX(AlkalmazottiTényleges[],MATCH(INDEX(AlkalmazottiEltérés[],ROW()-ROW(AlkalmazottiEltérés[[#Headers],[Szept.]]),1),INDEX(AlkalmazottiTervezett[],,1),0),MATCH(AlkalmazottiEltérés[[#Headers],[Szept.]],AlkalmazottiTényleges[#Headers],0)) -> 24,948.00 Ft | L7: =INDEX(AlkalmazottiTervezett[],MATCH(INDEX(AlkalmazottiEltérés[],ROW()-ROW(AlkalmazottiEltérés[[#Headers],[Okt.]]),1),INDEX(AlkalmazottiTervezett[],,1),0),MATCH(AlkalmazottiEltérés[[#Headers],[Okt.]],AlkalmazottiTervezett[#Headers],0))-INDEX(AlkalmazottiTényleges[],MATCH(INDEX(AlkalmazottiEltérés[],ROW()-ROW(AlkalmazottiEltérés[[#Headers],[Okt.]]),1),INDEX(AlkalmazottiTervezett[],,1),0),MATCH(AlkalmazottiEltérés[[#Headers],[Okt.]],AlkalmazottiTényleges[#Headers],0)) -> 24,948.00 Ft | M7: =INDEX(AlkalmazottiTervezett[],MATCH(INDEX(AlkalmazottiEltérés[],ROW()-ROW(AlkalmazottiEltérés[[#Headers],[Nov.]]),1),INDEX(AlkalmazottiTervezett[],,1),0),MATCH(AlkalmazottiEltérés[[#Headers],[Nov.]],AlkalmazottiTervezett[#Headers],0))-INDEX(AlkalmazottiTényleges[],MATCH(INDEX(AlkalmazottiEltérés[],ROW()-ROW(AlkalmazottiEltérés[[#Headers],[Nov.]]),1),INDEX(AlkalmazottiTervezett[],,1),0),MATCH(AlkalmazottiEltérés[[#Headers],[Nov.]],AlkalmazottiTényleges[#Headers],0)) -> 24,948.00 Ft | N7: =INDEX(AlkalmazottiTervezett[],MATCH(INDEX(AlkalmazottiEltérés[],ROW()-ROW(AlkalmazottiEltérés[[#Headers],[Dec.]]),1),INDEX(AlkalmazottiTervezett[],,1),0),MATCH(AlkalmazottiEltérés[[#Headers],[Dec.]],AlkalmazottiTervezett[#Headers],0))-INDEX(AlkalmazottiTényleges[],MATCH(INDEX(AlkalmazottiEltérés[],ROW()-ROW(AlkalmazottiEltérés[[#Headers],[Dec.]]),1),INDEX(AlkalmazottiTervezett[],,1),0),MATCH(AlkalmazottiEltérés[[#Headers],[Dec.]],AlkalmazottiTényleges[#Headers],0)) -> 24,948.00 Ft | O7: =SUM(AlkalmazottiEltérés[[#This Row],[Jan.]:[Dec.]]) -> 147,960.00 Ft
B8: Részösszeg | C8: =SUBTOTAL(109,AlkalmazottiEltérés[Jan.]) -> 0.00 Ft | D8: =SUBTOTAL(109,AlkalmazottiEltérés[Febr.]) -> 0.00 Ft | E8: =SUBTOTAL(109,AlkalmazottiEltérés[Márc.]) -> 0.00 Ft | F8: =SUBTOTAL(109,AlkalmazottiEltérés[Ápr.]) -> -635.00 Ft | G8: =SUBTOTAL(109,AlkalmazottiEltérés[Máj.]) -> -635.00 Ft | H8: =SUBTOTAL(109,AlkalmazottiEltérés[Jún.]) -> -635.00 Ft | I8: =SUBTOTAL(109,AlkalmazottiEltérés[Júl.]) -> 111,125.00 Ft | J8: =SUBTOTAL(109,AlkalmazottiEltérés[Aug.]) -> 117,348.00 Ft | K8: =SUBTOTAL(109,AlkalmazottiEltérés[Szept.]) -> 117,348.00 Ft | L8: =SUBTOTAL(109,AlkalmazottiEltérés[Okt.]) -> 117,348.00 Ft | M8: =SUBTOTAL(109,AlkalmazottiEltérés[Nov.]) -> 117,348.00 Ft | N8: =SUBTOTAL(109,AlkalmazottiEltérés[Dec.]) -> 117,348.00 Ft | O8: =SUBTOTAL(109,AlkalmazottiEltérés[ÉV]) -> 695,960.00 Ft
A10: A jobbra lévő cellában kezdődő Irodai eltérések táblázatban a sablon automatikusan kiszámítja az irodaköltségek eltérését. A következő utasítás az A21 cellában található. | B10: Irodaköltségek | C10: Jan. | D10: Febr. | E10: Márc. | F10: Ápr. | G10: Máj. | H10: Jún. | I10: Júl. | J10: Aug. | K10: Szept. | L10: Okt. | M10: Nov. | N10: Dec. | O10: ÉV
B11: Irodabérlési díj | C11: =INDEX(IrodaiTervezett[],MATCH(INDEX(IrodaiEltérések[],ROW()-ROW(IrodaiEltérések[[#Headers],[Jan.]]),1),INDEX(IrodaiTervezett[],,1),0),MATCH(IrodaiEltérések[[#Headers],[Jan.]],IrodaiTervezett[#Headers],0))-INDEX(IrodaiTényleges[],MATCH(INDEX(IrodaiEltérések[],ROW()-ROW(IrodaiEltérések[[#Headers],[Jan.]]),1),INDEX(IrodaiTervezett[],,1),0),MATCH(IrodaiEltérések[[#Headers],[Jan.]],IrodaiTényleges[#Headers],0)) -> 0.00 Ft | D11: =INDEX(IrodaiTervezett[],MATCH(INDEX(IrodaiEltérések[],ROW()-ROW(IrodaiEltérések[[#Headers],[Febr.]]),1),INDEX(IrodaiTervezett[],,1),0),MATCH(IrodaiEltérések[[#Headers],[Febr.]],IrodaiTervezett[#Headers],0))-INDEX(IrodaiTényleges[],MATCH(INDEX(IrodaiEltérések[],ROW()-ROW(IrodaiEltérések[[#Headers],[Febr.]]),1),INDEX(IrodaiTervezett[],,1),0),MATCH(IrodaiEltérések[[#Headers],[Febr.]],IrodaiTényleges[#Headers],0)) -> 0.00 Ft | E11: =INDEX(IrodaiTervezett[],MATCH(INDEX(IrodaiEltérések[],ROW()-ROW(IrodaiEltérések[[#Headers],[Márc.]]),1),INDEX(IrodaiTervezett[],,1),0),MATCH(IrodaiEltérések[[#Headers],[Márc.]],IrodaiTervezett[#Headers],0))-INDEX(IrodaiTényleges[],MATCH(INDEX(IrodaiEltérések[],ROW()-ROW(IrodaiEltérések[[#Headers],[Márc.]]),1),INDEX(IrodaiTervezett[],,1),0),MATCH(IrodaiEltérések[[#Headers],[Márc.]],IrodaiTényleges[#Headers],0)) -> 0.00 Ft | F11: =INDEX(IrodaiTervezett[],MATCH(INDEX(IrodaiEltérések[],ROW()-ROW(IrodaiEltérések[[#Headers],[Ápr.]]),1),INDEX(IrodaiTervezett[],,1),0),MATCH(IrodaiEltérések[[#Headers],[Ápr.]],IrodaiTervezett[#Headers],0))-INDEX(IrodaiTényleges[],MATCH(INDEX(IrodaiEltérések[],ROW()-ROW(IrodaiEltérések[[#Headers],[Ápr.]]),1),INDEX(IrodaiTervezett[],,1),0),MATCH(IrodaiEltérések[[#Headers],[Ápr.]],IrodaiTényleges[#Headers],0)) -> 0.00 Ft | G11: =INDEX(IrodaiTervezett[],MATCH(INDEX(IrodaiEltérések[],ROW()-ROW(IrodaiEltérések[[#Headers],[Máj.]]),1),INDEX(IrodaiTervezett[],,1),0),MATCH(IrodaiEltérések[[#Headers],[Máj.]],IrodaiTervezett[#Headers],0))-INDEX(IrodaiTényleges[],MATCH(INDEX(IrodaiEltérések[],ROW()-ROW(IrodaiEltérések[[#Headers],[Máj.]]),1),INDEX(IrodaiTervezett[],,1),0),MATCH(IrodaiEltérések[[#Headers],[Máj.]],IrodaiTényleges[#Headers],0)) -> 0.00 Ft | H11: =INDEX(IrodaiTervezett[],MATCH(INDEX(IrodaiEltérések[],ROW()-ROW(IrodaiEltérések[[#Headers],[Jún.]]),1),INDEX(IrodaiTervezett[],,1),0),MATCH(IrodaiEltérések[[#Headers],[Jún.]],IrodaiTervezett[#Headers],0))-INDEX(IrodaiTényleges[],MATCH(INDEX(IrodaiEltérések[],ROW()-ROW(IrodaiEltérések[[#Headers],[Jún.]]),1),INDEX(IrodaiTervezett[],,1),0),MATCH(IrodaiEltérések[[#Headers],[Jún.]],IrodaiTényleges[#Headers],0)) -> 0.00 Ft | I11: =INDEX(IrodaiTervezett[],MATCH(INDEX(IrodaiEltérések[],ROW()-ROW(IrodaiEltérések[[#Headers],[Júl.]]),1),INDEX(IrodaiTervezett[],,1),0),MATCH(IrodaiEltérések[[#Headers],[Júl.]],IrodaiTervezett[#Headers],0))-INDEX(IrodaiTényleges[],MATCH(INDEX(IrodaiEltérések[],ROW()-ROW(IrodaiEltérések[[#Headers],[Júl.]]),1),INDEX(IrodaiTervezett[],,1),0),MATCH(IrodaiEltérések[[#Headers],[Júl.]],IrodaiTényleges[#Headers],0)) -> 9,800.00 Ft | J11: =INDEX(IrodaiTervezett[],MATCH(INDEX(IrodaiEltérések[],ROW()-ROW(IrodaiEltérések[[#Headers],[Aug.]]),1),INDEX(IrodaiTervezett[],,1),0),MATCH(IrodaiEltérések[[#Headers],[Aug.]],IrodaiTervezett[#Headers],0))-INDEX(IrodaiTényleges[],MATCH(INDEX(IrodaiEltérések[],ROW()-ROW(IrodaiEltérések[[#Headers],[Aug.]]),1),INDEX(IrodaiTervezett[],,1),0),MATCH(IrodaiEltérések[[#Headers],[Aug.]],IrodaiTényleges[#Headers],0)) -> 9,800.00 Ft | K11: =INDEX(IrodaiTervezett[],MATCH(INDEX(IrodaiEltérések[],ROW()-ROW(IrodaiEltérések[[#Headers],[Szept.]]),1),INDEX(IrodaiTervezett[],,1),0),MATCH(IrodaiEltérések[[#Headers],[Szept.]],IrodaiTervezett[#Headers],0))-INDEX(IrodaiTényleges[],MATCH(INDEX(IrodaiEltérések[],ROW()-ROW(IrodaiEltérések[[#Headers],[Szept.]]),1),INDEX(IrodaiTervezett[],,1),0),MATCH(IrodaiEltérések[[#Headers],[Szept.]],IrodaiTényleges[#Headers],0)) -> 9,800.00 Ft | L11: =INDEX(IrodaiTervezett[],MATCH(INDEX(IrodaiEltérések[],ROW()-ROW(IrodaiEltérések[[#Headers],[Okt.]]),1),INDEX(IrodaiTervezett[],,1),0),MATCH(IrodaiEltérések[[#Headers],[Okt.]],IrodaiTervezett[#Headers],0))-INDEX(IrodaiTényleges[],MATCH(INDEX(IrodaiEltérések[],ROW()-ROW(IrodaiEltérések[[#Headers],[Okt.]]),1),INDEX(IrodaiTervezett[],,1),0),MATCH(IrodaiEltérések[[#Headers],[Okt.]],IrodaiTényleges[#Headers],0)) -> 9,800.00 Ft | M11: =INDEX(IrodaiTervezett[],MATCH(INDEX(IrodaiEltérések[],ROW()-ROW(IrodaiEltérések[[#Headers],[Nov.]]),1),INDEX(IrodaiTervezett[],,1),0),MATCH(IrodaiEltérések[[#Headers],[Nov.]],IrodaiTervezett[#Headers],0))-INDEX(IrodaiTényleges[],MATCH(INDEX(IrodaiEltérések[],ROW()-ROW(IrodaiEltérések[[#Headers],[Nov.]]),1),INDEX(IrodaiTervezett[],,1),0),MATCH(IrodaiEltérések[[#Headers],[Nov.]],IrodaiTényleges[#Headers],0)) -> 9,800.00 Ft | N11: =INDEX(IrodaiTervezett[],MATCH(INDEX(IrodaiEltérések[],ROW()-ROW(IrodaiEltérések[[#Headers],[Dec.]]),1),INDEX(IrodaiTervezett[],,1),0),MATCH(IrodaiEltérések[[#Headers],[Dec.]],IrodaiTervezett[#Headers],0))-INDEX(IrodaiTényleges[],MATCH(INDEX(IrodaiEltérések[],ROW()-ROW(IrodaiEltérések[[#Headers],[Dec.]]),1),INDEX(IrodaiTervezett[],,1),0),MATCH(IrodaiEltérések[[#Headers],[Dec.]],IrodaiTényleges[#Headers],0)) -> 9,800.00 Ft | O11: =SUM(IrodaiEltérések[[#This Row],[Jan.]:[Dec.]]) -> 58,800.00 Ft
B12: Gáz | C12: =INDEX(IrodaiTervezett[],MATCH(INDEX(IrodaiEltérések[],ROW()-ROW(IrodaiEltérések[[#Headers],[Jan.]]),1),INDEX(IrodaiTervezett[],,1),0),MATCH(IrodaiEltérések[[#Headers],[Jan.]],IrodaiTervezett[#Headers],0))-INDEX(IrodaiTényleges[],MATCH(INDEX(IrodaiEltérések[],ROW()-ROW(IrodaiEltérések[[#Headers],[Jan.]]),1),INDEX(IrodaiTervezett[],,1),0),MATCH(IrodaiEltérések[[#Headers],[Jan.]],IrodaiTényleges[#Headers],0)) -> -4.00 Ft | D12: =INDEX(IrodaiTervezett[],MATCH(INDEX(IrodaiEltérések[],ROW()-ROW(IrodaiEltérések[[#Headers],[Febr.]]),1),INDEX(IrodaiTervezett[],,1),0),MATCH(IrodaiEltérések[[#Headers],[Febr.]],IrodaiTervezett[#Headers],0))-INDEX(IrodaiTényleges[],MATCH(INDEX(IrodaiEltérések[],ROW()-ROW(IrodaiEltérések[[#Headers],[Febr.]]),1),INDEX(IrodaiTervezett[],,1),0),MATCH(IrodaiEltérések[[#Headers],[Febr.]],IrodaiTényleges[#Headers],0)) -> -30.00 Ft | E12: =INDEX(IrodaiTervezett[],MATCH(INDEX(IrodaiEltérések[],ROW()-ROW(IrodaiEltérések[[#Headers],[Márc.]]),1),INDEX(IrodaiTervezett[],,1),0),MATCH(IrodaiEltérések[[#Headers],[Márc.]],IrodaiTervezett[#Headers],0))-INDEX(IrodaiTényleges[],MATCH(INDEX(IrodaiEltérések[],ROW()-ROW(IrodaiEltérések[[#Headers],[Márc.]]),1),INDEX(IrodaiTervezett[],,1),0),MATCH(IrodaiEltérések[[#Headers],[Márc.]],IrodaiTényleges[#Headers],0)) -> 15.00 Ft | F12: =INDEX(IrodaiTervezett[],MATCH(INDEX(IrodaiEltérések[],ROW()-ROW(IrodaiEltérések[[#Headers],[Ápr.]]),1),INDEX(IrodaiTervezett[],,1),0),MATCH(IrodaiEltérések[[#Headers],[Ápr.]],IrodaiTervezett[#Headers],0))-INDEX(IrodaiTényleges[],MATCH(INDEX(IrodaiEltérések[],ROW()-ROW(IrodaiEltérések[[#Headers],[Ápr.]]),1),INDEX(IrodaiTervezett[],,1),0),MATCH(IrodaiEltérések[[#Headers],[Ápr.]],IrodaiTényleges[#Headers],0)) -> -130.00 Ft | G12: =INDEX(IrodaiTervezett[],MATCH(INDEX(IrodaiEltérések[],ROW()-ROW(IrodaiEltérések[[#Headers],[Máj.]]),1),INDEX(IrodaiTervezett[],,1),0),MATCH(IrodaiEltérések[[#Headers],[Máj.]],IrodaiTervezett[#Headers],0))-INDEX(IrodaiTényleges[],MATCH(INDEX(IrodaiEltérések[],ROW()-ROW(IrodaiEltérések[[#Headers],[Máj.]]),1),INDEX(IrodaiTervezett[],,1),0),MATCH(IrodaiEltérések[[#Headers],[Máj.]],IrodaiTényleges[#Headers],0)) -> 13.00 Ft | H12: =INDEX(IrodaiTervezett[],MATCH(INDEX(IrodaiEltérések[],ROW()-ROW(IrodaiEltérések[[#Headers],[Jún.]]),1),INDEX(IrodaiTervezett[],,1),0),MATCH(IrodaiEltérések[[#Headers],[Jún.]],IrodaiTervezett[#Headers],0))-INDEX(IrodaiTényleges[],MATCH(INDEX(IrodaiEltérések[],ROW()-ROW(IrodaiEltérések[[#Headers],[Jún.]]),1),INDEX(IrodaiTervezett[],,1),0),MATCH(IrodaiEltérések[[#Headers],[Jún.]],IrodaiTényleges[#Headers],0)) -> 12.00 Ft | I12: =INDEX(IrodaiTervezett[],MATCH(INDEX(IrodaiEltérések[],ROW()-ROW(IrodaiEltérések[[#Headers],[Júl.]]),1),INDEX(IrodaiTervezett[],,1),0),MATCH(IrodaiEltérések[[#Headers],[Júl.]],IrodaiTervezett[#Headers],0))-INDEX(IrodaiTényleges[],MATCH(INDEX(IrodaiEltérések[],ROW()-ROW(IrodaiEltérések[[#Headers],[Júl.]]),1),INDEX(IrodaiTervezett[],,1),0),MATCH(IrodaiEltérések[[#Headers],[Júl.]],IrodaiTényleges[#Headers],0)) -> 100.00 Ft | J12: =INDEX(IrodaiTervezett[],MATCH(INDEX(IrodaiEltérések[],ROW()-ROW(IrodaiEltérések[[#Headers],[Aug.]]),1),INDEX(IrodaiTervezett[],,1),0),MATCH(IrodaiEltérések[[#Headers],[Aug.]],IrodaiTervezett[#Headers],0))-INDEX(IrodaiTényleges[],MATCH(INDEX(IrodaiEltérések[],ROW()-ROW(IrodaiEltérések[[#Headers],[Aug.]]),1),INDEX(IrodaiTervezett[],,1),0),MATCH(IrodaiEltérések[[#Headers],[Aug.]],IrodaiTényleges[#Headers],0)) -> 100.00 Ft | K12: =INDEX(IrodaiTervezett[],MATCH(INDEX(IrodaiEltérések[],ROW()-ROW(IrodaiEltérések[[#Headers],[Szept.]]),1),INDEX(IrodaiTervezett[],,1),0),MATCH(IrodaiEltérések[[#Headers],[Szept.]],IrodaiTervezett[#Headers],0))-INDEX(IrodaiTényleges[],MATCH(INDEX(IrodaiEltérések[],ROW()-ROW(IrodaiEltérések[[#Headers],[Szept.]]),1),INDEX(IrodaiTervezett[],,1),0),MATCH(IrodaiEltérések[[#Headers],[Szept.]],IrodaiTényleges[#Headers],0)) -> 100.00 Ft | L12: =INDEX(IrodaiTervezett[],MATCH(INDEX(IrodaiEltérések[],ROW()-ROW(IrodaiEltérések[[#Headers],[Okt.]]),1),INDEX(IrodaiTervezett[],,1),0),MATCH(IrodaiEltérések[[#Headers],[Okt.]],IrodaiTervezett[#Headers],0))-INDEX(IrodaiTényleges[],MATCH(INDEX(IrodaiEltérések[],ROW()-ROW(IrodaiEltérések[[#Headers],[Okt.]]),1),INDEX(IrodaiTervezett[],,1),0),MATCH(IrodaiEltérések[[#Headers],[Okt.]],IrodaiTényleges[#Headers],0)) -> 100.00 Ft | M12: =INDEX(IrodaiTervezett[],MATCH(INDEX(IrodaiEltérések[],ROW()-ROW(IrodaiEltérések[[#Headers],[Nov.]]),1),INDEX(IrodaiTervezett[],,1),0),MATCH(IrodaiEltérések[[#Headers],[Nov.]],IrodaiTervezett[#Headers],0))-INDEX(IrodaiTényleges[],MATCH(INDEX(IrodaiEltérések[],ROW()-ROW(IrodaiEltérések[[#Headers],[Nov.]]),1),INDEX(IrodaiTervezett[],,1),0),MATCH(IrodaiEltérések[[#Headers],[Nov.]],IrodaiTényleges[#Headers],0)) -> 400.00 Ft | N12: =INDEX(IrodaiTervezett[],MATCH(INDEX(IrodaiEltérések[],ROW()-ROW(IrodaiEltérések[[#Headers],[Dec.]]),1),INDEX(IrodaiTervezett[],,1),0),MATCH(IrodaiEltérések[[#Headers],[Dec.]],IrodaiTervezett[#Headers],0))-INDEX(IrodaiTényleges[],MATCH(INDEX(IrodaiEltérések[],ROW()-ROW(IrodaiEltérések[[#Headers],[Dec.]]),1),INDEX(IrodaiTervezett[],,1),0),MATCH(IrodaiEltérések[[#Headers],[Dec.]],IrodaiTényleges[#Headers],0)) -> 400.00 Ft | O12: =SUM(IrodaiEltérések[[#This Row],[Jan.]:[Dec.]]) -> 1,076.00 Ft
B13: Áram | C13: =INDEX(IrodaiTervezett[],MATCH(INDEX(IrodaiEltérések[],ROW()-ROW(IrodaiEltérések[[#Headers],[Jan.]]),1),INDEX(IrodaiTervezett[],,1),0),MATCH(IrodaiEltérések[[#Headers],[Jan.]],IrodaiTervezett[#Headers],0))-INDEX(IrodaiTényleges[],MATCH(INDEX(IrodaiEltérések[],ROW()-ROW(IrodaiEltérések[[#Headers],[Jan.]]),1),INDEX(IrodaiTervezett[],,1),0),MATCH(IrodaiEltérések[[#Headers],[Jan.]],IrodaiTényleges[#Headers],0)) -> 12.00 Ft | D13: =INDEX(IrodaiTervezett[],MATCH(INDEX(IrodaiEltérések[],ROW()-ROW(IrodaiEltérések[[#Headers],[Febr.]]),1),INDEX(IrodaiTervezett[],,1),0),MATCH(IrodaiEltérések[[#Headers],[Febr.]],IrodaiTervezett[#Headers],0))-INDEX(IrodaiTényleges[],MATCH(INDEX(IrodaiEltérések[],ROW()-ROW(IrodaiEltérések[[#Headers],[Febr.]]),1),INDEX(IrodaiTervezett[],,1),0),MATCH(IrodaiEltérések[[#Headers],[Febr.]],IrodaiTényleges[#Headers],0)) -> 22.00 Ft | E13: =INDEX(IrodaiTervezett[],MATCH(INDEX(IrodaiEltérések[],ROW()-ROW(IrodaiEltérések[[#Headers],[Márc.]]),1),INDEX(IrodaiTervezett[],,1),0),MATCH(IrodaiEltérések[[#Headers],[Márc.]],IrodaiTervezett[#Headers],0))-INDEX(IrodaiTényleges[],MATCH(INDEX(IrodaiEltérések[],ROW()-ROW(IrodaiEltérések[[#Headers],[Márc.]]),1),INDEX(IrodaiTervezett[],,1),0),MATCH(IrodaiEltérések[[#Headers],[Márc.]],IrodaiTényleges[#Headers],0)) -> 32.00 Ft | F13: =INDEX(IrodaiTervezett[],MATCH(INDEX(IrodaiEltérések[],ROW()-ROW(IrodaiEltérések[[#Headers],[Ápr.]]),1),INDEX(IrodaiTervezett[],,1),0),MATCH(IrodaiEltérések[[#Headers],[Ápr.]],IrodaiTervezett[#Headers],0))-INDEX(IrodaiTényleges[],MATCH(INDEX(IrodaiEltérések[],ROW()-ROW(IrodaiEltérések[[#Headers],[Ápr.]]),1),INDEX(IrodaiTervezett[],,1),0),MATCH(IrodaiEltérések[[#Headers],[Ápr.]],IrodaiTényleges[#Headers],0)) -> 1.00 Ft | G13: =INDEX(IrodaiTervezett[],MATCH(INDEX(IrodaiEltérések[],ROW()-ROW(IrodaiEltérések[[#Headers],[Máj.]]),1),INDEX(IrodaiTervezett[],,1),0),MATCH(IrodaiEltérések[[#Headers],[Máj.]],IrodaiTervezett[#Headers],0))-INDEX(IrodaiTényleges[],MATCH(INDEX(IrodaiEltérések[],ROW()-ROW(IrodaiEltérések[[#Headers],[Máj.]]),1),INDEX(IrodaiTervezett[],,1),0),MATCH(IrodaiEltérések[[#Headers],[Máj.]],IrodaiTényleges[#Headers],0)) -> -6.00 Ft | H13: =INDEX(IrodaiTervezett[],MATCH(INDEX(IrodaiEltérések[],ROW()-ROW(IrodaiEltérések[[#Headers],[Jún.]]),1),INDEX(IrodaiTervezett[],,1),0),MATCH(IrodaiEltérések[[#Headers],[Jún.]],IrodaiTervezett[#Headers],0))-INDEX(IrodaiTényleges[],MATCH(INDEX(IrodaiEltérések[],ROW()-ROW(IrodaiEltérések[[#Headers],[Jún.]]),1),INDEX(IrodaiTervezett[],,1),0),MATCH(IrodaiEltérések[[#Headers],[Jún.]],IrodaiTényleges[#Headers],0)) -> 10.00 Ft | I13: =INDEX(IrodaiTervezett[],MATCH(INDEX(IrodaiEltérések[],ROW()-ROW(IrodaiEltérések[[#Headers],[Júl.]]),1),INDEX(IrodaiTervezett[],,1),0),MATCH(IrodaiEltérések[[#Headers],[Júl.]],IrodaiTervezett[#Headers],0))-INDEX(IrodaiTényleges[],MATCH(INDEX(IrodaiEltérések[],ROW()-ROW(IrodaiEltérések[[#Headers],[Júl.]]),1),INDEX(IrodaiTervezett[],,1),0),MATCH(IrodaiEltérések[[#Headers],[Júl.]],IrodaiTényleges[#Headers],0)) -> 300.00 Ft | J13: =INDEX(IrodaiTervezett[],MATCH(INDEX(IrodaiEltérések[],ROW()-ROW(IrodaiEltérések[[#Headers],[Aug.]]),1),INDEX(IrodaiTervezett[],,1),0),MATCH(IrodaiEltérések[[#Headers],[Aug.]],IrodaiTervezett[#Headers],0))-INDEX(IrodaiTényleges[],MATCH(INDEX(IrodaiEltérések[],ROW()-ROW(IrodaiEltérések[[#Headers],[Aug.]]),1),INDEX(IrodaiTervezett[],,1),0),MATCH(IrodaiEltérések[[#Headers],[Aug.]],IrodaiTényleges[#Headers],0)) -> 300.00 Ft | K13: =INDEX(IrodaiTervezett[],MATCH(INDEX(IrodaiEltérések[],ROW()-ROW(IrodaiEltérések[[#Headers],[Szept.]]),1),INDEX(IrodaiTervezett[],,1),0),MATCH(IrodaiEltérések[[#Headers],[Szept.]],IrodaiTervezett[#Headers],0))-INDEX(IrodaiTényleges[],MATCH(INDEX(IrodaiEltérések[],ROW()-ROW(IrodaiEltérések[[#Headers],[Szept.]]),1),INDEX(IrodaiTervezett[],,1),0),MATCH(IrodaiEltérések[[#Headers],[Szept.]],IrodaiTényleges[#Headers],0)) -> 300.00 Ft | L13: =INDEX(IrodaiTervezett[],MATCH(INDEX(IrodaiEltérések[],ROW()-ROW(IrodaiEltérések[[#Headers],[Okt.]]),1),INDEX(IrodaiTervezett[],,1),0),MATCH(IrodaiEltérések[[#Headers],[Okt.]],IrodaiTervezett[#Headers],0))-INDEX(IrodaiTényleges[],MATCH(INDEX(IrodaiEltérések[],ROW()-ROW(IrodaiEltérések[[#Headers],[Okt.]]),1),INDEX(IrodaiTervezett[],,1),0),MATCH(IrodaiEltérések[[#Headers],[Okt.]],IrodaiTényleges[#Headers],0)) -> 300.00 Ft | M13: =INDEX(IrodaiTervezett[],MATCH(INDEX(IrodaiEltérések[],ROW()-ROW(IrodaiEltérések[[#Headers],[Nov.]]),1),INDEX(IrodaiTervezett[],,1),0),MATCH(IrodaiEltérések[[#Headers],[Nov.]],IrodaiTervezett[#Headers],0))-INDEX(IrodaiTényleges[],MATCH(INDEX(IrodaiEltérések[],ROW()-ROW(IrodaiEltérések[[#Headers],[Nov.]]),1),INDEX(IrodaiTervezett[],,1),0),MATCH(IrodaiEltérések[[#Headers],[Nov.]],IrodaiTényleges[#Headers],0)) -> 300.00 Ft | N13: =INDEX(IrodaiTervezett[],MATCH(INDEX(IrodaiEltérések[],ROW()-ROW(IrodaiEltérések[[#Headers],[Dec.]]),1),INDEX(IrodaiTervezett[],,1),0),MATCH(IrodaiEltérések[[#Headers],[Dec.]],IrodaiTervezett[#Headers],0))-INDEX(IrodaiTényleges[],MATCH(INDEX(IrodaiEltérések[],ROW()-ROW(IrodaiEltérések[[#Headers],[Dec.]]),1),INDEX(IrodaiTervezett[],,1),0),MATCH(IrodaiEltérések[[#Headers],[Dec.]],IrodaiTényleges[#Headers],0)) -> 300.00 Ft | O13: =SUM(IrodaiEltérések[[#This Row],[Jan.]:[Dec.]]) -> 1,871.00 Ft
B14: Víz | C14: =INDEX(IrodaiTervezett[],MATCH(INDEX(IrodaiEltérések[],ROW()-ROW(IrodaiEltérések[[#Headers],[Jan.]]),1),INDEX(IrodaiTervezett[],,1),0),MATCH(IrodaiEltérések[[#Headers],[Jan.]],IrodaiTervezett[#Headers],0))-INDEX(IrodaiTényleges[],MATCH(INDEX(IrodaiEltérések[],ROW()-ROW(IrodaiEltérések[[#Headers],[Jan.]]),1),INDEX(IrodaiTervezett[],,1),0),MATCH(IrodaiEltérések[[#Headers],[Jan.]],IrodaiTényleges[#Headers],0)) -> 5.00 Ft | D14: =INDEX(IrodaiTervezett[],MATCH(INDEX(IrodaiEltérések[],ROW()-ROW(IrodaiEltérések[[#Headers],[Febr.]]),1),INDEX(IrodaiTervezett[],,1),0),MATCH(IrodaiEltérések[[#Headers],[Febr.]],IrodaiTervezett[#Headers],0))-INDEX(IrodaiTényleges[],MATCH(INDEX(IrodaiEltérések[],ROW()-ROW(IrodaiEltérések[[#Headers],[Febr.]]),1),INDEX(IrodaiTervezett[],,1),0),MATCH(IrodaiEltérések[[#Headers],[Febr.]],IrodaiTényleges[#Headers],0)) -> 7.00 Ft | E14: =INDEX(IrodaiTervezett[],MATCH(INDEX(IrodaiEltérések[],ROW()-ROW(IrodaiEltérések[[#Headers],[Márc.]]),1),INDEX(IrodaiTervezett[],,1),0),MATCH(IrodaiEltérések[[#Headers],[Márc.]],IrodaiTervezett[#Headers],0))-INDEX(IrodaiTényleges[],MATCH(INDEX(IrodaiEltérések[],ROW()-ROW(IrodaiEltérések[[#Headers],[Márc.]]),1),INDEX(IrodaiTervezett[],,1),0),MATCH(IrodaiEltérések[[#Headers],[Márc.]],IrodaiTényleges[#Headers],0)) -> 6.00 Ft | F14: =INDEX(IrodaiTervezett[],MATCH(INDEX(IrodaiEltérések[],ROW()-ROW(IrodaiEltérések[[#Headers],[Ápr.]]),1),INDEX(IrodaiTervezett[],,1),0),MATCH(IrodaiEltérések[[#Headers],[Ápr.]],IrodaiTervezett[#Headers],0))-INDEX(IrodaiTényleges[],MATCH(INDEX(IrodaiEltérések[],ROW()-ROW(IrodaiEltérések[[#Headers],[Ápr.]]),1),INDEX(IrodaiTervezett[],,1),0),MATCH(IrodaiEltérések[[#Headers],[Ápr.]],IrodaiTényleges[#Headers],0)) -> 4.00 Ft | G14: =INDEX(IrodaiTervezett[],MATCH(INDEX(IrodaiEltérések[],ROW()-ROW(IrodaiEltérések[[#Headers],[Máj.]]),1),INDEX(IrodaiTervezett[],,1),0),MATCH(IrodaiEltérések[[#Headers],[Máj.]],IrodaiTervezett[#Headers],0))-INDEX(IrodaiTényleges[],MATCH(INDEX(IrodaiEltérések[],ROW()-ROW(IrodaiEltérések[[#Headers],[Máj.]]),1),INDEX(IrodaiTervezett[],,1),0),MATCH(IrodaiEltérések[[#Headers],[Máj.]],IrodaiTényleges[#Headers],0)) -> 6.00 Ft | H14: =INDEX(IrodaiTervezett[],MATCH(INDEX(IrodaiEltérések[],ROW()-ROW(IrodaiEltérések[[#Headers],[Jún.]]),1),INDEX(IrodaiTervezett[],,1),0),MATCH(IrodaiEltérések[[#Headers],[Jún.]],IrodaiTervezett[#Headers],0))-INDEX(IrodaiTényleges[],MATCH(INDEX(IrodaiEltérések[],ROW()-ROW(IrodaiEltérések[[#Headers],[Jún.]]),1),INDEX(IrodaiTervezett[],,1),0),MATCH(IrodaiEltérések[[#Headers],[Jún.]],IrodaiTényleges[#Headers],0)) -> 4.00 Ft | I14: =INDEX(IrodaiTervezett[],MATCH(INDEX(IrodaiEltérések[],ROW()-ROW(IrodaiEltérések[[#Headers],[Júl.]]),1),INDEX(IrodaiTervezett[],,1),0),MATCH(IrodaiEltérések[[#Headers],[Júl.]],IrodaiTervezett[#Headers],0))-INDEX(IrodaiTényleges[],MATCH(INDEX(IrodaiEltérések[],ROW()-ROW(IrodaiEltérések[[#Headers],[Júl.]]),1),INDEX(IrodaiTervezett[],,1),0),MATCH(IrodaiEltérések[[#Headers],[Júl.]],IrodaiTényleges[#Headers],0)) -> 40.00 Ft | J14: =INDEX(IrodaiTervezett[],MATCH(INDEX(IrodaiEltérések[],ROW()-ROW(IrodaiEltérések[[#Headers],[Aug.]]),1),INDEX(IrodaiTervezett[],,1),0),MATCH(IrodaiEltérések[[#Headers],[Aug.]],IrodaiTervezett[#Headers],0))-INDEX(IrodaiTényleges[],MATCH(INDEX(IrodaiEltérések[],ROW()-ROW(IrodaiEltérések[[#Headers],[Aug.]]),1),INDEX(IrodaiTervezett[],,1),0),MATCH(IrodaiEltérések[[#Headers],[Aug.]],IrodaiTényleges[#Headers],0)) -> 40.00 Ft | K14: =INDEX(IrodaiTervezett[],MATCH(INDEX(IrodaiEltérések[],ROW()-ROW(IrodaiEltérések[[#Headers],[Szept.]]),1),INDEX(IrodaiTervezett[],,1),0),MATCH(IrodaiEltérések[[#Headers],[Szept.]],IrodaiTervezett[#Headers],0))-INDEX(IrodaiTényleges[],MATCH(INDEX(IrodaiEltérések[],ROW()-ROW(IrodaiEltérések[[#Headers],[Szept.]]),1),INDEX(IrodaiTervezett[],,1),0),MATCH(IrodaiEltérések[[#Headers],[Szept.]],IrodaiTényleges[#Headers],0)) -> 40.00 Ft | L14: =INDEX(IrodaiTervezett[],MATCH(INDEX(IrodaiEltérések[],ROW()-ROW(IrodaiEltérések[[#Headers],[Okt.]]),1),INDEX(IrodaiTervezett[],,1),0),MATCH(IrodaiEltérések[[#Headers],[Okt.]],IrodaiTervezett[#Headers],0))-INDEX(IrodaiTényleges[],MATCH(INDEX(IrodaiEltérések[],ROW()-ROW(IrodaiEltérések[[#Headers],[Okt.]]),1),INDEX(IrodaiTervezett[],,1),0),MATCH(IrodaiEltérések[[#Headers],[Okt.]],IrodaiTényleges[#Headers],0)) -> 40.00 Ft | M14: =INDEX(IrodaiTervezett[],MATCH(INDEX(IrodaiEltérések[],ROW()-ROW(IrodaiEltérések[[#Headers],[Nov.]]),1),INDEX(IrodaiTervezett[],,1),0),MATCH(IrodaiEltérések[[#Headers],[Nov.]],IrodaiTervezett[#Headers],0))-INDEX(IrodaiTényleges[],MATCH(INDEX(IrodaiEltérések[],ROW()-ROW(IrodaiEltérések[[#Headers],[Nov.]]),1),INDEX(IrodaiTervezett[],,1),0),MATCH(IrodaiEltérések[[#Headers],[Nov.]],IrodaiTényleges[#Headers],0)) -> 40.00 Ft | N14: =INDEX(IrodaiTervezett[],MATCH(INDEX(IrodaiEltérések[],ROW()-ROW(IrodaiEltérések[[#Headers],[Dec.]]),1),INDEX(IrodaiTervezett[],,1),0),MATCH(IrodaiEltérések[[#Headers],[Dec.]],IrodaiTervezett[#Headers],0))-INDEX(IrodaiTényleges[],MATCH(INDEX(IrodaiEltérések[],ROW()-ROW(IrodaiEltérések[[#Headers],[Dec.]]),1),INDEX(IrodaiTervezett[],,1),0),MATCH(IrodaiEltérések[[#Headers],[Dec.]],IrodaiTényleges[#Headers],0)) -> 40.00 Ft | O14: =SUM(IrodaiEltérések[[#This Row],[Jan.]:[Dec.]]) -> 272.00 Ft
B15: Telefon | C15: =INDEX(IrodaiTervezett[],MATCH(INDEX(IrodaiEltérések[],ROW()-ROW(IrodaiEltérések[[#Headers],[Jan.]]),1),INDEX(IrodaiTervezett[],,1),0),MATCH(IrodaiEltérések[[#Headers],[Jan.]],IrodaiTervezett[#Headers],0))-INDEX(IrodaiTényleges[],MATCH(INDEX(IrodaiEltérések[],ROW()-ROW(IrodaiEltérések[[#Headers],[Jan.]]),1),INDEX(IrodaiTervezett[],,1),0),MATCH(IrodaiEltérések[[#Headers],[Jan.]],IrodaiTényleges[#Headers],0)) -> 26.00 Ft | D15: =INDEX(IrodaiTervezett[],MATCH(INDEX(IrodaiEltérések[],ROW()-ROW(IrodaiEltérések[[#Headers],[Febr.]]),1),INDEX(IrodaiTervezett[],,1),0),MATCH(IrodaiEltérések[[#Headers],[Febr.]],IrodaiTervezett[#Headers],0))-INDEX(IrodaiTényleges[],MATCH(INDEX(IrodaiEltérések[],ROW()-ROW(IrodaiEltérések[[#Headers],[Febr.]]),1),INDEX(IrodaiTervezett[],,1),0),MATCH(IrodaiEltérések[[#Headers],[Febr.]],IrodaiTényleges[#Headers],0)) -> 15.00 Ft | E15: =INDEX(IrodaiTervezett[],MATCH(INDEX(IrodaiEltérések[],ROW()-ROW(IrodaiEltérések[[#Headers],[Márc.]]),1),INDEX(IrodaiTervezett[],,1),0),MATCH(IrodaiEltérések[[#Headers],[Márc.]],IrodaiTervezett[#Headers],0))-INDEX(IrodaiTényleges[],MATCH(INDEX(IrodaiEltérések[],ROW()-ROW(IrodaiEltérések[[#Headers],[Márc.]]),1),INDEX(IrodaiTervezett[],,1),0),MATCH(IrodaiEltérések[[#Headers],[Márc.]],IrodaiTényleges[#Headers],0)) -> -15.00 Ft | F15: =INDEX(IrodaiTervezett[],MATCH(INDEX(IrodaiEltérések[],ROW()-ROW(IrodaiEltérések[[#Headers],[Ápr.]]),1),INDEX(IrodaiTervezett[],,1),0),MATCH(IrodaiEltérések[[#Headers],[Ápr.]],IrodaiTervezett[#Headers],0))-INDEX(IrodaiTényleges[],MATCH(INDEX(IrodaiEltérések[],ROW()-ROW(IrodaiEltérések[[#Headers],[Ápr.]]),1),INDEX(IrodaiTervezett[],,1),0),MATCH(IrodaiEltérések[[#Headers],[Ápr.]],IrodaiTényleges[#Headers],0)) -> 5.00 Ft | G15: =INDEX(IrodaiTervezett[],MATCH(INDEX(IrodaiEltérések[],ROW()-ROW(IrodaiEltérések[[#Headers],[Máj.]]),1),INDEX(IrodaiTervezett[],,1),0),MATCH(IrodaiEltérések[[#Headers],[Máj.]],IrodaiTervezett[#Headers],0))-INDEX(IrodaiTényleges[],MATCH(INDEX(IrodaiEltérések[],ROW()-ROW(IrodaiEltérések[[#Headers],[Máj.]]),1),INDEX(IrodaiTervezett[],,1),0),MATCH(IrodaiEltérések[[#Headers],[Máj.]],IrodaiTényleges[#Headers],0)) -> 5.00 Ft | H15: =INDEX(IrodaiTervezett[],MATCH(INDEX(IrodaiEltérések[],ROW()-ROW(IrodaiEltérések[[#Headers],[Jún.]]),1),INDEX(IrodaiTervezett[],,1),0),MATCH(IrodaiEltérések[[#Headers],[Jún.]],IrodaiTervezett[#Headers],0))-INDEX(IrodaiTényleges[],MATCH(INDEX(IrodaiEltérések[],ROW()-ROW(IrodaiEltérések[[#Headers],[Jún.]]),1),INDEX(IrodaiTervezett[],,1),0),MATCH(IrodaiEltérések[[#Headers],[Jún.]],IrodaiTényleges[#Headers],0)) -> 30.00 Ft | I15: =INDEX(IrodaiTervezett[],MATCH(INDEX(IrodaiEltérések[],ROW()-ROW(IrodaiEltérések[[#Headers],[Júl.]]),1),INDEX(IrodaiTervezett[],,1),0),MATCH(IrodaiEltérések[[#Headers],[Júl.]],IrodaiTervezett[#Headers],0))-INDEX(IrodaiTényleges[],MATCH(INDEX(IrodaiEltérések[],ROW()-ROW(IrodaiEltérések[[#Headers],[Júl.]]),1),INDEX(IrodaiTervezett[],,1),0),MATCH(IrodaiEltérések[[#Headers],[Júl.]],IrodaiTényleges[#Headers],0)) -> 250.00 Ft | J15: =INDEX(IrodaiTervezett[],MATCH(INDEX(IrodaiEltérések[],ROW()-ROW(IrodaiEltérések[[#Headers],[Aug.]]),1),INDEX(IrodaiTervezett[],,1),0),MATCH(IrodaiEltérések[[#Headers],[Aug.]],IrodaiTervezett[#Headers],0))-INDEX(IrodaiTényleges[],MATCH(INDEX(IrodaiEltérések[],ROW()-ROW(IrodaiEltérések[[#Headers],[Aug.]]),1),INDEX(IrodaiTervezett[],,1),0),MATCH(IrodaiEltérések[[#Headers],[Aug.]],IrodaiTényleges[#Headers],0)) -> 250.00 Ft | K15: =INDEX(IrodaiTervezett[],MATCH(INDEX(IrodaiEltérések[],ROW()-ROW(IrodaiEltérések[[#Headers],[Szept.]]),1),INDEX(IrodaiTervezett[],,1),0),MATCH(IrodaiEltérések[[#Headers],[Szept.]],IrodaiTervezett[#Headers],0))-INDEX(IrodaiTényleges[],MATCH(INDEX(IrodaiEltérések[],ROW()-ROW(IrodaiEltérések[[#Headers],[Szept.]]),1),INDEX(IrodaiTervezett[],,1),0),MATCH(IrodaiEltérések[[#Headers],[Szept.]],IrodaiTényleges[#Headers],0)) -> 250.00 Ft | L15: =INDEX(IrodaiTervezett[],MATCH(INDEX(IrodaiEltérések[],ROW()-ROW(IrodaiEltérések[[#Headers],[Okt.]]),1),INDEX(IrodaiTervezett[],,1),0),MATCH(IrodaiEltérések[[#Headers],[Okt.]],IrodaiTervezett[#Headers],0))-INDEX(IrodaiTényleges[],MATCH(INDEX(IrodaiEltérések[],ROW()-ROW(IrodaiEltérések[[#Headers],[Okt.]]),1),INDEX(IrodaiTervezett[],,1),0),MATCH(IrodaiEltérések[[#Headers],[Okt.]],IrodaiTényleges[#Headers],0)) -> 250.00 Ft | M15: =INDEX(IrodaiTervezett[],MATCH(INDEX(IrodaiEltérések[],ROW()-ROW(IrodaiEltérések[[#Headers],[Nov.]]),1),INDEX(IrodaiTervezett[],,1),0),MATCH(IrodaiEltérések[[#Headers],[Nov.]],IrodaiTervezett[#Headers],0))-INDEX(IrodaiTényleges[],MATCH(INDEX(IrodaiEltérések[],ROW()-ROW(IrodaiEltérések[[#Headers],[Nov.]]),1),INDEX(IrodaiTervezett[],,1),0),MATCH(IrodaiEltérések[[#Headers],[Nov.]],IrodaiTényleges[#Headers],0)) -> 250.00 Ft | N15: =INDEX(IrodaiTervezett[],MATCH(INDEX(IrodaiEltérések[],ROW()-ROW(IrodaiEltérések[[#Headers],[Dec.]]),1),INDEX(IrodaiTervezett[],,1),0),MATCH(IrodaiEltérések[[#Headers],[Dec.]],IrodaiTervezett[#Headers],0))-INDEX(IrodaiTényleges[],MATCH(INDEX(IrodaiEltérések[],ROW()-ROW(IrodaiEltérések[[#Headers],[Dec.]]),1),INDEX(IrodaiTervezett[],,1),0),MATCH(IrodaiEltérések[[#Headers],[Dec.]],IrodaiTényleges[#Headers],0)) -> 250.00 Ft | O15: =SUM(IrodaiEltérések[[#This Row],[Jan.]:[Dec.]]) -> 1,566.00 Ft
B16: Internetkapcsolat | C16: =INDEX(IrodaiTervezett[],MATCH(INDEX(IrodaiEltérések[],ROW()-ROW(IrodaiEltérések[[#Headers],[Jan.]]),1),INDEX(IrodaiTervezett[],,1),0),MATCH(IrodaiEltérések[[#Headers],[Jan.]],IrodaiTervezett[#Headers],0))-INDEX(IrodaiTényleges[],MATCH(INDEX(IrodaiEltérések[],ROW()-ROW(IrodaiEltérések[[#Headers],[Jan.]]),1),INDEX(IrodaiTervezett[],,1),0),MATCH(IrodaiEltérések[[#Headers],[Jan.]],IrodaiTényleges[#Headers],0)) -> 0.00 Ft | D16: =INDEX(IrodaiTervezett[],MATCH(INDEX(IrodaiEltérések[],ROW()-ROW(IrodaiEltérések[[#Headers],[Febr.]]),1),INDEX(IrodaiTervezett[],,1),0),MATCH(IrodaiEltérések[[#Headers],[Febr.]],IrodaiTervezett[#Headers],0))-INDEX(IrodaiTényleges[],MATCH(INDEX(IrodaiEltérések[],ROW()-ROW(IrodaiEltérések[[#Headers],[Febr.]]),1),INDEX(IrodaiTervezett[],,1),0),MATCH(IrodaiEltérések[[#Headers],[Febr.]],IrodaiTényleges[#Headers],0)) -> 0.00 Ft | E16: =INDEX(IrodaiTervezett[],MATCH(INDEX(IrodaiEltérések[],ROW()-ROW(IrodaiEltérések[[#Headers],[Márc.]]),1),INDEX(IrodaiTervezett[],,1),0),MATCH(IrodaiEltérések[[#Headers],[Márc.]],IrodaiTervezett[#Headers],0))-INDEX(IrodaiTényleges[],MATCH(INDEX(IrodaiEltérések[],ROW()-ROW(IrodaiEltérések[[#Headers],[Márc.]]),1),INDEX(IrodaiTervezett[],,1),0),MATCH(IrodaiEltérések[[#Headers],[Márc.]],IrodaiTényleges[#Headers],0)) -> 0.00 Ft | F16: =INDEX(IrodaiTervezett[],MATCH(INDEX(IrodaiEltérések[],ROW()-ROW(IrodaiEltérések[[#Headers],[Ápr.]]),1),INDEX(IrodaiTervezett[],,1),0),MATCH(IrodaiEltérések[[#Headers],[Ápr.]],IrodaiTervezett[#Headers],0))-INDEX(IrodaiTényleges[],MATCH(INDEX(IrodaiEltérések[],ROW()-ROW(IrodaiEltérések[[#Headers],[Ápr.]]),1),INDEX(IrodaiTervezett[],,1),0),MATCH(IrodaiEltérések[[#Headers],[Ápr.]],IrodaiTényleges[#Headers],0)) -> 0.00 Ft | G16: =INDEX(IrodaiTervezett[],MATCH(INDEX(IrodaiEltérések[],ROW()-ROW(IrodaiEltérések[[#Headers],[Máj.]]),1),INDEX(IrodaiTervezett[],,1),0),MATCH(IrodaiEltérések[[#Headers],[Máj.]],IrodaiTervezett[#Headers],0))-INDEX(IrodaiTényleges[],MATCH(INDEX(IrodaiEltérések[],ROW()-ROW(IrodaiEltérések[[#Headers],[Máj.]]),1),INDEX(IrodaiTervezett[],,1),0),MATCH(IrodaiEltérések[[#Headers],[Máj.]],IrodaiTényleges[#Headers],0)) -> 0.00 Ft | H16: =INDEX(IrodaiTervezett[],MATCH(INDEX(IrodaiEltérések[],ROW()-ROW(IrodaiEltérések[[#Headers],[Jún.]]),1),INDEX(IrodaiTervezett[],,1),0),MATCH(IrodaiEltérések[[#Headers],[Jún.]],IrodaiTervezett[#Headers],0))-INDEX(IrodaiTényleges[],MATCH(INDEX(IrodaiEltérések[],ROW()-ROW(IrodaiEltérések[[#Headers],[Jún.]]),1),INDEX(IrodaiTervezett[],,1),0),MATCH(IrodaiEltérések[[#Headers],[Jún.]],IrodaiTényleges[#Headers],0)) -> 0.00 Ft | I16: =INDEX(IrodaiTervezett[],MATCH(INDEX(IrodaiEltérések[],ROW()-ROW(IrodaiEltérések[[#Headers],[Júl.]]),1),INDEX(IrodaiTervezett[],,1),0),MATCH(IrodaiEltérések[[#Headers],[Júl.]],IrodaiTervezett[#Headers],0))-INDEX(IrodaiTényleges[],MATCH(INDEX(IrodaiEltérések[],ROW()-ROW(IrodaiEltérések[[#Headers],[Júl.]]),1),INDEX(IrodaiTervezett[],,1),0),MATCH(IrodaiEltérések[[#Headers],[Júl.]],IrodaiTényleges[#Headers],0)) -> 180.00 Ft | J16: =INDEX(IrodaiTervezett[],MATCH(INDEX(IrodaiEltérések[],ROW()-ROW(IrodaiEltérések[[#Headers],[Aug.]]),1),INDEX(IrodaiTervezett[],,1),0),MATCH(IrodaiEltérések[[#Headers],[Aug.]],IrodaiTervezett[#Headers],0))-INDEX(IrodaiTényleges[],MATCH(INDEX(IrodaiEltérések[],ROW()-ROW(IrodaiEltérések[[#Headers],[Aug.]]),1),INDEX(IrodaiTervezett[],,1),0),MATCH(IrodaiEltérések[[#Headers],[Aug.]],IrodaiTényleges[#Headers],0)) -> 180.00 Ft | K16: =INDEX(IrodaiTervezett[],MATCH(INDEX(IrodaiEltérések[],ROW()-ROW(IrodaiEltérések[[#Headers],[Szept.]]),1),INDEX(IrodaiTervezett[],,1),0),MATCH(IrodaiEltérések[[#Headers],[Szept.]],IrodaiTervezett[#Headers],0))-INDEX(IrodaiTényleges[],MATCH(INDEX(IrodaiEltérések[],ROW()-ROW(IrodaiEltérések[[#Headers],[Szept.]]),1),INDEX(IrodaiTervezett[],,1),0),MATCH(IrodaiEltérések[[#Headers],[Szept.]],IrodaiTényleges[#Headers],0)) -> 180.00 Ft | L16: =INDEX(IrodaiTervezett[],MATCH(INDEX(IrodaiEltérések[],ROW()-ROW(IrodaiEltérések[[#Headers],[Okt.]]),1),INDEX(IrodaiTervezett[],,1),0),MATCH(IrodaiEltérések[[#Headers],[Okt.]],IrodaiTervezett[#Headers],0))-INDEX(IrodaiTényleges[],MATCH(INDEX(IrodaiEltérések[],ROW()-ROW(IrodaiEltérések[[#Headers],[Okt.]]),1),INDEX(IrodaiTervezett[],,1),0),MATCH(IrodaiEltérések[[#Headers],[Okt.]],IrodaiTényleges[#Headers],0)) -> 180.00 Ft | M16: =INDEX(IrodaiTervezett[],MATCH(INDEX(IrodaiEltérések[],ROW()-ROW(IrodaiEltérések[[#Headers],[Nov.]]),1),INDEX(IrodaiTervezett[],,1),0),MATCH(IrodaiEltérések[[#Headers],[Nov.]],IrodaiTervezett[#Headers],0))-INDEX(IrodaiTényleges[],MATCH(INDEX(IrodaiEltérések[],ROW()-ROW(IrodaiEltérések[[#Headers],[Nov.]]),1),INDEX(IrodaiTervezett[],,1),0),MATCH(IrodaiEltérések[[#Headers],[Nov.]],IrodaiTényleges[#Headers],0)) -> 180.00 Ft | N16: =INDEX(IrodaiTervezett[],MATCH(INDEX(IrodaiEltérések[],ROW()-ROW(IrodaiEltérések[[#Headers],[Dec.]]),1),INDEX(IrodaiTervezett[],,1),0),MATCH(IrodaiEltérések[[#Headers],[Dec.]],IrodaiTervezett[#Headers],0))-INDEX(IrodaiTényleges[],MATCH(INDEX(IrodaiEltérések[],ROW()-ROW(IrodaiEltérések[[#Headers],[Dec.]]),1),INDEX(IrodaiTervezett[],,1),0),MATCH(IrodaiEltérések[[#Headers],[Dec.]],IrodaiTényleges[#Headers],0)) -> 180.00 Ft | O16: =SUM(IrodaiEltérések[[#This Row],[Jan.]:[Dec.]]) -> 1,080.00 Ft
B17: Irodai kellékek | C17: =INDEX(IrodaiTervezett[],MATCH(INDEX(IrodaiEltérések[],ROW()-ROW(IrodaiEltérések[[#Headers],[Jan.]]),1),INDEX(IrodaiTervezett[],,1),0),MATCH(IrodaiEltérések[[#Headers],[Jan.]],IrodaiTervezett[#Headers],0))-INDEX(IrodaiTényleges[],MATCH(INDEX(IrodaiEltérések[],ROW()-ROW(IrodaiEltérések[[#Headers],[Jan.]]),1),INDEX(IrodaiTervezett[],,1),0),MATCH(IrodaiEltérések[[#Headers],[Jan.]],IrodaiTényleges[#Headers],0)) -> -56.00 Ft | D17: =INDEX(IrodaiTervezett[],MATCH(INDEX(IrodaiEltérések[],ROW()-ROW(IrodaiEltérések[[#Headers],[Febr.]]),1),INDEX(IrodaiTervezett[],,1),0),MATCH(IrodaiEltérések[[#Headers],[Febr.]],IrodaiTervezett[#Headers],0))-INDEX(IrodaiTényleges[],MATCH(INDEX(IrodaiEltérések[],ROW()-ROW(IrodaiEltérések[[#Headers],[Febr.]]),1),INDEX(IrodaiTervezett[],,1),0),MATCH(IrodaiEltérések[[#Headers],[Febr.]],IrodaiTényleges[#Headers],0)) -> 58.00 Ft | E17: =INDEX(IrodaiTervezett[],MATCH(INDEX(IrodaiEltérések[],ROW()-ROW(IrodaiEltérések[[#Headers],[Márc.]]),1),INDEX(IrodaiTervezett[],,1),0),MATCH(IrodaiEltérések[[#Headers],[Márc.]],IrodaiTervezett[#Headers],0))-INDEX(IrodaiTényleges[],MATCH(INDEX(IrodaiEltérések[],ROW()-ROW(IrodaiEltérések[[#Headers],[Márc.]]),1),INDEX(IrodaiTervezett[],,1),0),MATCH(IrodaiEltérések[[#Headers],[Márc.]],IrodaiTényleges[#Headers],0)) -> 40.00 Ft | F17: =INDEX(IrodaiTervezett[],MATCH(INDEX(IrodaiEltérések[],ROW()-ROW(IrodaiEltérések[[#Headers],[Ápr.]]),1),INDEX(IrodaiTervezett[],,1),0),MATCH(IrodaiEltérések[[#Headers],[Ápr.]],IrodaiTervezett[#Headers],0))-INDEX(IrodaiTényleges[],MATCH(INDEX(IrodaiEltérések[],ROW()-ROW(IrodaiEltérések[[#Headers],[Ápr.]]),1),INDEX(IrodaiTervezett[],,1),0),MATCH(IrodaiEltérések[[#Headers],[Ápr.]],IrodaiTényleges[#Headers],0)) -> -21.00 Ft | G17: =INDEX(IrodaiTervezett[],MATCH(INDEX(IrodaiEltérések[],ROW()-ROW(IrodaiEltérések[[#Headers],[Máj.]]),1),INDEX(IrodaiTervezett[],,1),0),MATCH(IrodaiEltérések[[#Headers],[Máj.]],IrodaiTervezett[#Headers],0))-INDEX(IrodaiTényleges[],MATCH(INDEX(IrodaiEltérések[],ROW()-ROW(IrodaiEltérések[[#Headers],[Máj.]]),1),INDEX(IrodaiTervezett[],,1),0),MATCH(IrodaiEltérések[[#Headers],[Máj.]],IrodaiTényleges[#Headers],0)) -> -56.00 Ft | H17: =INDEX(IrodaiTervezett[],MATCH(INDEX(IrodaiEltérések[],ROW()-ROW(IrodaiEltérések[[#Headers],[Jún.]]),1),INDEX(IrodaiTervezett[],,1),0),MATCH(IrodaiEltérések[[#Headers],[Jún.]],IrodaiTervezett[#Headers],0))-INDEX(IrodaiTényleges[],MATCH(INDEX(IrodaiEltérések[],ROW()-ROW(IrodaiEltérések[[#Headers],[Jún.]]),1),INDEX(IrodaiTervezett[],,1),0),MATCH(IrodaiEltérések[[#Headers],[Jún.]],IrodaiTényleges[#Headers],0)) -> -40.00 Ft | I17: =INDEX(IrodaiTervezett[],MATCH(INDEX(IrodaiEltérések[],ROW()-ROW(IrodaiEltérések[[#Headers],[Júl.]]),1),INDEX(IrodaiTervezett[],,1),0),MATCH(IrodaiEltérések[[#Headers],[Júl.]],IrodaiTervezett[#Headers],0))-INDEX(IrodaiTényleges[],MATCH(INDEX(IrodaiEltérések[],ROW()-ROW(IrodaiEltérések[[#Headers],[Júl.]]),1),INDEX(IrodaiTervezett[],,1),0),MATCH(IrodaiEltérések[[#Headers],[Júl.]],IrodaiTényleges[#Headers],0)) -> 200.00 Ft | J17: =INDEX(IrodaiTervezett[],MATCH(INDEX(IrodaiEltérések[],ROW()-ROW(IrodaiEltérések[[#Headers],[Aug.]]),1),INDEX(IrodaiTervezett[],,1),0),MATCH(IrodaiEltérések[[#Headers],[Aug.]],IrodaiTervezett[#Headers],0))-INDEX(IrodaiTényleges[],MATCH(INDEX(IrodaiEltérések[],ROW()-ROW(IrodaiEltérések[[#Headers],[Aug.]]),1),INDEX(IrodaiTervezett[],,1),0),MATCH(IrodaiEltérések[[#Headers],[Aug.]],IrodaiTényleges[#Headers],0)) -> 200.00 Ft | K17: =INDEX(IrodaiTervezett[],MATCH(INDEX(IrodaiEltérések[],ROW()-ROW(IrodaiEltérések[[#Headers],[Szept.]]),1),INDEX(IrodaiTervezett[],,1),0),MATCH(IrodaiEltérések[[#Headers],[Szept.]],IrodaiTervezett[#Headers],0))-INDEX(IrodaiTényleges[],MATCH(INDEX(IrodaiEltérések[],ROW()-ROW(IrodaiEltérések[[#Headers],[Szept.]]),1),INDEX(IrodaiTervezett[],,1),0),MATCH(IrodaiEltérések[[#Headers],[Szept.]],IrodaiTényleges[#Headers],0)) -> 200.00 Ft | L17: =INDEX(IrodaiTervezett[],MATCH(INDEX(IrodaiEltérések[],ROW()-ROW(IrodaiEltérések[[#Headers],[Okt.]]),1),INDEX(IrodaiTervezett[],,1),0),MATCH(IrodaiEltérések[[#Headers],[Okt.]],IrodaiTervezett[#Headers],0))-INDEX(IrodaiTényleges[],MATCH(INDEX(IrodaiEltérések[],ROW()-ROW(IrodaiEltérések[[#Headers],[Okt.]]),1),INDEX(IrodaiTervezett[],,1),0),MATCH(IrodaiEltérések[[#Headers],[Okt.]],IrodaiTényleges[#Headers],0)) -> 200.00 Ft | M17: =INDEX(IrodaiTervezett[],MATCH(INDEX(IrodaiEltérések[],ROW()-ROW(IrodaiEltérések[[#Headers],[Nov.]]),1),INDEX(IrodaiTervezett[],,1),0),MATCH(IrodaiEltérések[[#Headers],[Nov.]],IrodaiTervezett[#Headers],0))-INDEX(IrodaiTényleges[],MATCH(INDEX(IrodaiEltérések[],ROW()-ROW(IrodaiEltérések[[#Headers],[Nov.]]),1),INDEX(IrodaiTervezett[],,1),0),MATCH(IrodaiEltérések[[#Headers],[Nov.]],IrodaiTényleges[#Headers],0)) -> 200.00 Ft | N17: =INDEX(IrodaiTervezett[],MATCH(INDEX(IrodaiEltérések[],ROW()-ROW(IrodaiEltérések[[#Headers],[Dec.]]),1),INDEX(IrodaiTervezett[],,1),0),MATCH(IrodaiEltérések[[#Headers],[Dec.]],IrodaiTervezett[#Headers],0))-INDEX(IrodaiTényleges[],MATCH(INDEX(IrodaiEltérések[],ROW()-ROW(IrodaiEltérések[[#Headers],[Dec.]]),1),INDEX(IrodaiTervezett[],,1),0),MATCH(IrodaiEltérések[[#Headers],[Dec.]],IrodaiTényleges[#Headers],0)) -> 200.00 Ft | O17: =SUM(IrodaiEltérések[[#This Row],[Jan.]:[Dec.]]) -> 1,125.00 Ft
B18: Biztonság | C18: =INDEX(IrodaiTervezett[],MATCH(INDEX(IrodaiEltérések[],ROW()-ROW(IrodaiEltérések[[#Headers],[Jan.]]),1),INDEX(IrodaiTervezett[],,1),0),MATCH(IrodaiEltérések[[#Headers],[Jan.]],IrodaiTervezett[#Headers],0))-INDEX(IrodaiTényleges[],MATCH(INDEX(IrodaiEltérések[],ROW()-ROW(IrodaiEltérések[[#Headers],[Jan.]]),1),INDEX(IrodaiTervezett[],,1),0),MATCH(IrodaiEltérések[[#Headers],[Jan.]],IrodaiTényleges[#Headers],0)) -> 0.00 Ft | D18: =INDEX(IrodaiTervezett[],MATCH(INDEX(IrodaiEltérések[],ROW()-ROW(IrodaiEltérések[[#Headers],[Febr.]]),1),INDEX(IrodaiTervezett[],,1),0),MATCH(IrodaiEltérések[[#Headers],[Febr.]],IrodaiTervezett[#Headers],0))-INDEX(IrodaiTényleges[],MATCH(INDEX(IrodaiEltérések[],ROW()-ROW(IrodaiEltérések[[#Headers],[Febr.]]),1),INDEX(IrodaiTervezett[],,1),0),MATCH(IrodaiEltérések[[#Headers],[Febr.]],IrodaiTényleges[#Headers],0)) -> 0.00 Ft | E18: =INDEX(IrodaiTervezett[],MATCH(INDEX(IrodaiEltérések[],ROW()-ROW(IrodaiEltérések[[#Headers],[Márc.]]),1),INDEX(IrodaiTervezett[],,1),0),MATCH(IrodaiEltérések[[#Headers],[Márc.]],IrodaiTervezett[#Headers],0))-INDEX(IrodaiTényleges[],MATCH(INDEX(IrodaiEltérések[],ROW()-ROW(IrodaiEltérések[[#Headers],[Márc.]]),1),INDEX(IrodaiTervezett[],,1),0),MATCH(IrodaiEltérések[[#Headers],[Márc.]],IrodaiTényleges[#Headers],0)) -> 0.00 Ft | F18: =INDEX(IrodaiTervezett[],MATCH(INDEX(IrodaiEltérések[],ROW()-ROW(IrodaiEltérések[[#Headers],[Ápr.]]),1),INDEX(IrodaiTervezett[],,1),0),MATCH(IrodaiEltérések[[#Headers],[Ápr.]],IrodaiTervezett[#Headers],0))-INDEX(IrodaiTényleges[],MATCH(INDEX(IrodaiEltérések[],ROW()-ROW(IrodaiEltérések[[#Headers],[Ápr.]]),1),INDEX(IrodaiTervezett[],,1),0),MATCH(IrodaiEltérések[[#Headers],[Ápr.]],IrodaiTényleges[#Headers],0)) -> 0.00 Ft | G18: =INDEX(IrodaiTervezett[],MATCH(INDEX(IrodaiEltérések[],ROW()-ROW(IrodaiEltérések[[#Headers],[Máj.]]),1),INDEX(IrodaiTervezett[],,1),0),MATCH(IrodaiEltérések[[#Headers],[Máj.]],IrodaiTervezett[#Headers],0))-INDEX(IrodaiTényleges[],MATCH(INDEX(IrodaiEltérések[],ROW()-ROW(IrodaiEltérések[[#Headers],[Máj.]]),1),INDEX(IrodaiTervezett[],,1),0),MATCH(IrodaiEltérések[[#Headers],[Máj.]],IrodaiTényleges[#Headers],0)) -> 0.00 Ft | H18: =INDEX(IrodaiTervezett[],MATCH(INDEX(IrodaiEltérések[],ROW()-ROW(IrodaiEltérések[[#Headers],[Jún.]]),1),INDEX(IrodaiTervezett[],,1),0),MATCH(IrodaiEltérések[[#Headers],[Jún.]],IrodaiTervezett[#Headers],0))-INDEX(IrodaiTényleges[],MATCH(INDEX(IrodaiEltérések[],ROW()-ROW(IrodaiEltérések[[#Headers],[Jún.]]),1),INDEX(IrodaiTervezett[],,1),0),MATCH(IrodaiEltérések[[#Headers],[Jún.]],IrodaiTényleges[#Headers],0)) -> 0.00 Ft | I18: =INDEX(IrodaiTervezett[],MATCH(INDEX(IrodaiEltérések[],ROW()-ROW(IrodaiEltérések[[#Headers],[Júl.]]),1),INDEX(IrodaiTervezett[],,1),0),MATCH(IrodaiEltérések[[#Headers],[Júl.]],IrodaiTervezett[#Headers],0))-INDEX(IrodaiTényleges[],MATCH(INDEX(IrodaiEltérések[],ROW()-ROW(IrodaiEltérések[[#Headers],[Júl.]]),1),INDEX(IrodaiTervezett[],,1),0),MATCH(IrodaiEltérések[[#Headers],[Júl.]],IrodaiTényleges[#Headers],0)) -> 600.00 Ft | J18: =INDEX(IrodaiTervezett[],MATCH(INDEX(IrodaiEltérések[],ROW()-ROW(IrodaiEltérések[[#Headers],[Aug.]]),1),INDEX(IrodaiTervezett[],,1),0),MATCH(IrodaiEltérések[[#Headers],[Aug.]],IrodaiTervezett[#Headers],0))-INDEX(IrodaiTényleges[],MATCH(INDEX(IrodaiEltérések[],ROW()-ROW(IrodaiEltérések[[#Headers],[Aug.]]),1),INDEX(IrodaiTervezett[],,1),0),MATCH(IrodaiEltérések[[#Headers],[Aug.]],IrodaiTényleges[#Headers],0)) -> 600.00 Ft | K18: =INDEX(IrodaiTervezett[],MATCH(INDEX(IrodaiEltérések[],ROW()-ROW(IrodaiEltérések[[#Headers],[Szept.]]),1),INDEX(IrodaiTervezett[],,1),0),MATCH(IrodaiEltérések[[#Headers],[Szept.]],IrodaiTervezett[#Headers],0))-INDEX(IrodaiTényleges[],MATCH(INDEX(IrodaiEltérések[],ROW()-ROW(IrodaiEltérések[[#Headers],[Szept.]]),1),INDEX(IrodaiTervezett[],,1),0),MATCH(IrodaiEltérések[[#Headers],[Szept.]],IrodaiTényleges[#Headers],0)) -> 600.00 Ft | L18: =INDEX(IrodaiTervezett[],MATCH(INDEX(IrodaiEltérések[],ROW()-ROW(IrodaiEltérések[[#Headers],[Okt.]]),1),INDEX(IrodaiTervezett[],,1),0),MATCH(IrodaiEltérések[[#Headers],[Okt.]],IrodaiTervezett[#Headers],0))-INDEX(IrodaiTényleges[],MATCH(INDEX(IrodaiEltérések[],ROW()-ROW(IrodaiEltérések[[#Headers],[Okt.]]),1),INDEX(IrodaiTervezett[],,1),0),MATCH(IrodaiEltérések[[#Headers],[Okt.]],IrodaiTényleges[#Headers],0)) -> 600.00 Ft | M18: =INDEX(IrodaiTervezett[],MATCH(INDEX(IrodaiEltérések[],ROW()-ROW(IrodaiEltérések[[#Headers],[Nov.]]),1),INDEX(IrodaiTervezett[],,1),0),MATCH(IrodaiEltérések[[#Headers],[Nov.]],IrodaiTervezett[#Headers],0))-INDEX(IrodaiTényleges[],MATCH(INDEX(IrodaiEltérések[],ROW()-ROW(IrodaiEltérések[[#Headers],[Nov.]]),1),INDEX(IrodaiTervezett[],,1),0),MATCH(IrodaiEltérések[[#Headers],[Nov.]],IrodaiTényleges[#Headers],0)) -> 600.00 Ft | N18: =INDEX(IrodaiTervezett[],MATCH(INDEX(IrodaiEltérések[],ROW()-ROW(IrodaiEltérések[[#Headers],[Dec.]]),1),INDEX(IrodaiTervezett[],,1),0),MATCH(IrodaiEltérések[[#Headers],[Dec.]],IrodaiTervezett[#Headers],0))-INDEX(IrodaiTényleges[],MATCH(INDEX(IrodaiEltérések[],ROW()-ROW(IrodaiEltérések[[#Headers],[Dec.]]),1),INDEX(IrodaiTervezett[],,1),0),MATCH(IrodaiEltérések[[#Headers],[Dec.]],IrodaiTényleges[#Headers],0)) -> 600.00 Ft | O18: =SUM(IrodaiEltérések[[#This Row],[Jan.]:[Dec.]]) -> 3,600.00 Ft
B19: Részösszeg | C19: =SUBTOTAL(109,IrodaiEltérések[Jan.]) -> -17.00 Ft | D19: =SUBTOTAL(109,IrodaiEltérések[Febr.]) -> 72.00 Ft | E19: =SUBTOTAL(109,IrodaiEltérések[Márc.]) -> 78.00 Ft | F19: =SUBTOTAL(109,IrodaiEltérések[Ápr.]) -> -141.00 Ft | G19: =SUBTOTAL(109,IrodaiEltérések[Máj.]) -> -38.00 Ft | H19: =SUBTOTAL(109,IrodaiEltérések[Jún.]) -> 16.00 Ft | I19: =SUBTOTAL(109,IrodaiEltérések[Júl.]) -> 11,470.00 Ft | J19: =SUBTOTAL(109,IrodaiEltérések[Aug.]) -> 11,470.00 Ft | K19: =SUBTOTAL(109,IrodaiEltérések[Szept.]) -> 11,470.00 Ft | L19: =SUBTOTAL(109,IrodaiEltérések[Okt.]) -> 11,470.00 Ft | M19: =SUBTOTAL(109,IrodaiEltérések[Nov.]) -> 11,770.00 Ft | N19: =SUBTOTAL(109,IrodaiEltérések[Dec.]) -> 11,770.00 Ft | O19: =SUBTOTAL(109,IrodaiEltérések[ÉV]) -> 69,390.00 Ft
A21: A jobbra lévő cellában kezdődő Marketinges eltérések táblázatban a sablon automatikusan kiszámítja a marketingköltségek eltérését. A következő utasítás az A30 cellában található. | B21: Marketingköltségek | C21: Jan. | D21: Febr. | E21: Márc. | F21: Ápr. | G21: Máj. | H21: Jún. | I21: Júl. | J21: Aug. | K21: Szept. | L21: Okt. | M21: Nov. | N21: Dec. | O21: ÉV
B22: Webhely-üzemeltetés | C22: =INDEX(MarketingTervezett[],MATCH(INDEX(MarketingEltérések[],ROW()-ROW(MarketingEltérések[[#Headers],[Jan.]]),1),INDEX(MarketingTervezett[],,1),0),MATCH(MarketingEltérések[[#Headers],[Jan.]],MarketingTervezett[#Headers],0))-INDEX(MarketingTényleges[],MATCH(INDEX(MarketingEltérések[],ROW()-ROW(MarketingEltérések[[#Headers],[Jan.]]),1),INDEX(MarketingTervezett[],,1),0),MATCH(MarketingEltérések[[#Headers],[Jan.]],MarketingTényleges[#Headers],0)) -> 0.00 Ft | D22: =INDEX(MarketingTervezett[],MATCH(INDEX(MarketingEltérések[],ROW()-ROW(MarketingEltérések[[#Headers],[Febr.]]),1),INDEX(MarketingTervezett[],,1),0),MATCH(MarketingEltérések[[#Headers],[Febr.]],MarketingTervezett[#Headers],0))-INDEX(MarketingTényleges[],MATCH(INDEX(MarketingEltérések[],ROW()-ROW(MarketingEltérések[[#Headers],[Febr.]]),1),INDEX(MarketingTervezett[],,1),0),MATCH(MarketingEltérések[[#Headers],[Febr.]],MarketingTényleges[#Headers],0)) -> 0.00 Ft | E22: =INDEX(MarketingTervezett[],MATCH(INDEX(MarketingEltérések[],ROW()-ROW(MarketingEltérések[[#Headers],[Márc.]]),1),INDEX(MarketingTervezett[],,1),0),MATCH(MarketingEltérések[[#Headers],[Márc.]],MarketingTervezett[#Headers],0))-INDEX(MarketingTényleges[],MATCH(INDEX(MarketingEltérések[],ROW()-ROW(MarketingEltérések[[#Headers],[Márc.]]),1),INDEX(MarketingTervezett[],,1),0),MATCH(MarketingEltérések[[#Headers],[Márc.]],MarketingTényleges[#Headers],0)) -> 0.00 Ft | F22: =INDEX(MarketingTervezett[],MATCH(INDEX(MarketingEltérések[],ROW()-ROW(MarketingEltérések[[#Headers],[Ápr.]]),1),INDEX(MarketingTervezett[],,1),0),MATCH(MarketingEltérések[[#Headers],[Ápr.]],MarketingTervezett[#Headers],0))-INDEX(MarketingTényleges[],MATCH(INDEX(MarketingEltérések[],ROW()-ROW(MarketingEltérések[[#Headers],[Ápr.]]),1),INDEX(MarketingTervezett[],,1),0),MATCH(MarketingEltérések[[#Headers],[Ápr.]],MarketingTényleges[#Headers],0)) -> 0.00 Ft | G22: =INDEX(MarketingTervezett[],MATCH(INDEX(MarketingEltérések[],ROW()-ROW(MarketingEltérések[[#Headers],[Máj.]]),1),INDEX(MarketingTervezett[],,1),0),MATCH(MarketingEltérések[[#Headers],[Máj.]],MarketingTervezett[#Headers],0))-INDEX(MarketingTényleges[],MATCH(INDEX(MarketingEltérések[],ROW()-ROW(MarketingEltérések[[#Headers],[Máj.]]),1),INDEX(MarketingTervezett[],,1),0),MATCH(MarketingEltérések[[#Headers],[Máj.]],MarketingTényleges[#Headers],0)) -> 0.00 Ft | H22: =INDEX(MarketingTervezett[],MATCH(INDEX(MarketingEltérések[],ROW()-ROW(MarketingEltérések[[#Headers],[Jún.]]),1),INDEX(MarketingTervezett[],,1),0),MATCH(MarketingEltérések[[#Headers],[Jún.]],MarketingTervezett[#Headers],0))-INDEX(MarketingTényleges[],MATCH(INDEX(MarketingEltérések[],ROW()-ROW(MarketingEltérések[[#Headers],[Jún.]]),1),INDEX(MarketingTervezett[],,1),0),MATCH(MarketingEltérések[[#Headers],[Jún.]],MarketingTényleges[#Headers],0)) -> 0.00 Ft | I22: =INDEX(MarketingTervezett[],MATCH(INDEX(MarketingEltérések[],ROW()-ROW(MarketingEltérések[[#Headers],[Júl.]]),1),INDEX(MarketingTervezett[],,1),0),MATCH(MarketingEltérések[[#Headers],[Júl.]],MarketingTervezett[#Headers],0))-INDEX(MarketingTényleges[],MATCH(INDEX(MarketingEltérések[],ROW()-ROW(MarketingEltérések[[#Headers],[Júl.]]),1),INDEX(MarketingTervezett[],,1),0),MATCH(MarketingEltérések[[#Headers],[Júl.]],MarketingTényleges[#Headers],0)) -> 500.00 Ft | J22: =INDEX(MarketingTervezett[],MATCH(INDEX(MarketingEltérések[],ROW()-ROW(MarketingEltérések[[#Headers],[Aug.]]),1),INDEX(MarketingTervezett[],,1),0),MATCH(MarketingEltérések[[#Headers],[Aug.]],MarketingTervezett[#Headers],0))-INDEX(MarketingTényleges[],MATCH(INDEX(MarketingEltérések[],ROW()-ROW(MarketingEltérések[[#Headers],[Aug.]]),1),INDEX(MarketingTervezett[],,1),0),MATCH(MarketingEltérések[[#Headers],[Aug.]],MarketingTényleges[#Headers],0)) -> 500.00 Ft | K22: =INDEX(MarketingTervezett[],MATCH(INDEX(MarketingEltérések[],ROW()-ROW(MarketingEltérések[[#Headers],[Szept.]]),1),INDEX(MarketingTervezett[],,1),0),MATCH(MarketingEltérések[[#Headers],[Szept.]],MarketingTervezett[#Headers],0))-INDEX(MarketingTényleges[],MATCH(INDEX(MarketingEltérések[],ROW()-ROW(MarketingEltérések[[#Headers],[Szept.]]),1),INDEX(MarketingTervezett[],,1),0),MATCH(MarketingEltérések[[#Headers],[Szept.]],MarketingTényleges[#Headers],0)) -> 500.00 Ft | L22: =INDEX(MarketingTervezett[],MATCH(INDEX(MarketingEltérések[],ROW()-ROW(MarketingEltérések[[#Headers],[Okt.]]),1),INDEX(MarketingTervezett[],,1),0),MATCH(MarketingEltérések[[#Headers],[Okt.]],MarketingTervezett[#Headers],0))-INDEX(MarketingTényleges[],MATCH(INDEX(MarketingEltérések[],ROW()-ROW(MarketingEltérések[[#Headers],[Okt.]]),1),INDEX(MarketingTervezett[],,1),0),MATCH(MarketingEltérések[[#Headers],[Okt.]],MarketingTényleges[#Headers],0)) -> 500.00 Ft | M22: =INDEX(MarketingTervezett[],MATCH(INDEX(MarketingEltérések[],ROW()-ROW(MarketingEltérések[[#Headers],[Nov.]]),1),INDEX(MarketingTervezett[],,1),0),MATCH(MarketingEltérések[[#Headers],[Nov.]],MarketingTervezett[#Headers],0))-INDEX(MarketingTényleges[],MATCH(INDEX(MarketingEltérések[],ROW()-ROW(MarketingEltérések[[#Headers],[Nov.]]),1),INDEX(MarketingTervezett[],,1),0),MATCH(MarketingEltérések[[#Headers],[Nov.]],MarketingTényleges[#Headers],0)) -> 500.00 Ft | N22: =INDEX(MarketingTervezett[],MATCH(INDEX(MarketingEltérések[],ROW()-ROW(MarketingEltérések[[#Headers],[Dec.]]),1),INDEX(MarketingTervezett[],,1),0),MATCH(MarketingEltérések[[#Headers],[Dec.]],MarketingTervezett[#Headers],0))-INDEX(MarketingTényleges[],MATCH(INDEX(MarketingEltérések[],ROW()-ROW(MarketingEltérések[[#Headers],[Dec.]]),1),INDEX(MarketingTervezett[],,1),0),MATCH(MarketingEltérések[[#Headers],[Dec.]],MarketingTényleges[#Headers],0)) -> 500.00 Ft | O22: =SUM(MarketingEltérések[[#This Row],[Jan.]:[Dec.]]) -> 3,000.00 Ft
B23: A webhely frissítései | C23: =INDEX(MarketingTervezett[],MATCH(INDEX(MarketingEltérések[],ROW()-ROW(MarketingEltérések[[#Headers],[Jan.]]),1),INDEX(MarketingTervezett[],,1),0),MATCH(MarketingEltérések[[#Headers],[Jan.]],MarketingTervezett[#Headers],0))-INDEX(MarketingTényleges[],MATCH(INDEX(MarketingEltérések[],ROW()-ROW(MarketingEltérések[[#Headers],[Jan.]]),1),INDEX(MarketingTervezett[],,1),0),MATCH(MarketingEltérések[[#Headers],[Jan.]],MarketingTényleges[#Headers],0)) -> 0.00 Ft | D23: =INDEX(MarketingTervezett[],MATCH(INDEX(MarketingEltérések[],ROW()-ROW(MarketingEltérések[[#Headers],[Febr.]]),1),INDEX(MarketingTervezett[],,1),0),MATCH(MarketingEltérések[[#Headers],[Febr.]],MarketingTervezett[#Headers],0))-INDEX(MarketingTényleges[],MATCH(INDEX(MarketingEltérések[],ROW()-ROW(MarketingEltérések[[#Headers],[Febr.]]),1),INDEX(MarketingTervezett[],,1),0),MATCH(MarketingEltérések[[#Headers],[Febr.]],MarketingTényleges[#Headers],0)) -> 0.00 Ft | E23: =INDEX(MarketingTervezett[],MATCH(INDEX(MarketingEltérések[],ROW()-ROW(MarketingEltérések[[#Headers],[Márc.]]),1),INDEX(MarketingTervezett[],,1),0),MATCH(MarketingEltérések[[#Headers],[Márc.]],MarketingTervezett[#Headers],0))-INDEX(MarketingTényleges[],MATCH(INDEX(MarketingEltérések[],ROW()-ROW(MarketingEltérések[[#Headers],[Márc.]]),1),INDEX(MarketingTervezett[],,1),0),MATCH(MarketingEltérések[[#Headers],[Márc.]],MarketingTényleges[#Headers],0)) -> 0.00 Ft | F23: =INDEX(MarketingTervezett[],MATCH(INDEX(MarketingEltérések[],ROW()-ROW(MarketingEltérések[[#Headers],[Ápr.]]),1),INDEX(MarketingTervezett[],,1),0),MATCH(MarketingEltérések[[#Headers],[Ápr.]],MarketingTervezett[#Headers],0))-INDEX(MarketingTényleges[],MATCH(INDEX(MarketingEltérések[],ROW()-ROW(MarketingEltérések[[#Headers],[Ápr.]]),1),INDEX(MarketingTervezett[],,1),0),MATCH(MarketingEltérések[[#Headers],[Ápr.]],MarketingTényleges[#Headers],0)) -> 0.00 Ft | G23: =INDEX(MarketingTervezett[],MATCH(INDEX(MarketingEltérések[],ROW()-ROW(MarketingEltérések[[#Headers],[Máj.]]),1),INDEX(MarketingTervezett[],,1),0),MATCH(MarketingEltérések[[#Headers],[Máj.]],MarketingTervezett[#Headers],0))-INDEX(MarketingTényleges[],MATCH(INDEX(MarketingEltérések[],ROW()-ROW(MarketingEltérések[[#Headers],[Máj.]]),1),INDEX(MarketingTervezett[],,1),0),MATCH(MarketingEltérések[[#Headers],[Máj.]],MarketingTényleges[#Headers],0)) -> 0.00 Ft | H23: =INDEX(MarketingTervezett[],MATCH(INDEX(MarketingEltérések[],ROW()-ROW(MarketingEltérések[[#Headers],[Jún.]]),1),INDEX(MarketingTervezett[],,1),0),MATCH(MarketingEltérések[[#Headers],[Jún.]],MarketingTervezett[#Headers],0))-INDEX(MarketingTényleges[],MATCH(INDEX(MarketingEltérések[],ROW()-ROW(MarketingEltérések[[#Headers],[Jún.]]),1),INDEX(MarketingTervezett[],,1),0),MATCH(MarketingEltérések[[#Headers],[Jún.]],MarketingTényleges[#Headers],0)) -> -500.00 Ft | I23: =INDEX(MarketingTervezett[],MATCH(INDEX(MarketingEltérések[],ROW()-ROW(MarketingEltérések[[#Headers],[Júl.]]),1),INDEX(MarketingTervezett[],,1),0),MATCH(MarketingEltérések[[#Headers],[Júl.]],MarketingTervezett[#Headers],0))-INDEX(MarketingTényleges[],MATCH(INDEX(MarketingEltérések[],ROW()-ROW(MarketingEltérések[[#Headers],[Júl.]]),1),INDEX(MarketingTervezett[],,1),0),MATCH(MarketingEltérések[[#Headers],[Júl.]],MarketingTényleges[#Headers],0)) -> 200.00 Ft | J23: =INDEX(MarketingTervezett[],MATCH(INDEX(MarketingEltérések[],ROW()-ROW(MarketingEltérések[[#Headers],[Aug.]]),1),INDEX(MarketingTervezett[],,1),0),MATCH(MarketingEltérések[[#Headers],[Aug.]],MarketingTervezett[#Headers],0))-INDEX(MarketingTényleges[],MATCH(INDEX(MarketingEltérések[],ROW()-ROW(MarketingEltérések[[#Headers],[Aug.]]),1),INDEX(MarketingTervezett[],,1),0),MATCH(MarketingEltérések[[#Headers],[Aug.]],MarketingTényleges[#Headers],0)) -> 200.00 Ft | K23: =INDEX(MarketingTervezett[],MATCH(INDEX(MarketingEltérések[],ROW()-ROW(MarketingEltérések[[#Headers],[Szept.]]),1),INDEX(MarketingTervezett[],,1),0),MATCH(MarketingEltérések[[#Headers],[Szept.]],MarketingTervezett[#Headers],0))-INDEX(MarketingTényleges[],MATCH(INDEX(MarketingEltérések[],ROW()-ROW(MarketingEltérések[[#Headers],[Szept.]]),1),INDEX(MarketingTervezett[],,1),0),MATCH(MarketingEltérések[[#Headers],[Szept.]],MarketingTényleges[#Headers],0)) -> 200.00 Ft | L23: =INDEX(MarketingTervezett[],MATCH(INDEX(MarketingEltérések[],ROW()-ROW(MarketingEltérések[[#Headers],[Okt.]]),1),INDEX(MarketingTervezett[],,1),0),MATCH(MarketingEltérések[[#Headers],[Okt.]],MarketingTervezett[#Headers],0))-INDEX(MarketingTényleges[],MATCH(INDEX(MarketingEltérések[],ROW()-ROW(MarketingEltérések[[#Headers],[Okt.]]),1),INDEX(MarketingTervezett[],,1),0),MATCH(MarketingEltérések[[#Headers],[Okt.]],MarketingTényleges[#Headers],0)) -> 200.00 Ft | M23: =INDEX(MarketingTervezett[],MATCH(INDEX(MarketingEltérések[],ROW()-ROW(MarketingEltérések[[#Headers],[Nov.]]),1),INDEX(MarketingTervezett[],,1),0),MATCH(MarketingEltérések[[#Headers],[Nov.]],MarketingTervezett[#Headers],0))-INDEX(MarketingTényleges[],MATCH(INDEX(MarketingEltérések[],ROW()-ROW(MarketingEltérések[[#Headers],[Nov.]]),1),INDEX(MarketingTervezett[],,1),0),MATCH(MarketingEltérések[[#Headers],[Nov.]],MarketingTényleges[#Headers],0)) -> 200.00 Ft | N23: =INDEX(MarketingTervezett[],MATCH(INDEX(MarketingEltérések[],ROW()-ROW(MarketingEltérések[[#Headers],[Dec.]]),1),INDEX(MarketingTervezett[],,1),0),MATCH(MarketingEltérések[[#Headers],[Dec.]],MarketingTervezett[#Headers],0))-INDEX(MarketingTényleges[],MATCH(INDEX(MarketingEltérések[],ROW()-ROW(MarketingEltérések[[#Headers],[Dec.]]),1),INDEX(MarketingTervezett[],,1),0),MATCH(MarketingEltérések[[#Headers],[Dec.]],MarketingTényleges[#Headers],0)) -> 1,000.00 Ft | O23: =SUM(MarketingEltérések[[#This Row],[Jan.]:[Dec.]]) -> 1,500.00 Ft
B24: Segédanyagok előkészítése | C24: =INDEX(MarketingTervezett[],MATCH(INDEX(MarketingEltérések[],ROW()-ROW(MarketingEltérések[[#Headers],[Jan.]]),1),INDEX(MarketingTervezett[],,1),0),MATCH(MarketingEltérések[[#Headers],[Jan.]],MarketingTervezett[#Headers],0))-INDEX(MarketingTényleges[],MATCH(INDEX(MarketingEltérések[],ROW()-ROW(MarketingEltérések[[#Headers],[Jan.]]),1),INDEX(MarketingTervezett[],,1),0),MATCH(MarketingEltérések[[#Headers],[Jan.]],MarketingTényleges[#Headers],0)) -> 200.00 Ft | D24: =INDEX(MarketingTervezett[],MATCH(INDEX(MarketingEltérések[],ROW()-ROW(MarketingEltérések[[#Headers],[Febr.]]),1),INDEX(MarketingTervezett[],,1),0),MATCH(MarketingEltérések[[#Headers],[Febr.]],MarketingTervezett[#Headers],0))-INDEX(MarketingTényleges[],MATCH(INDEX(MarketingEltérések[],ROW()-ROW(MarketingEltérések[[#Headers],[Febr.]]),1),INDEX(MarketingTervezett[],,1),0),MATCH(MarketingEltérések[[#Headers],[Febr.]],MarketingTényleges[#Headers],0)) -> 0.00 Ft | E24: =INDEX(MarketingTervezett[],MATCH(INDEX(MarketingEltérések[],ROW()-ROW(MarketingEltérések[[#Headers],[Márc.]]),1),INDEX(MarketingTervezett[],,1),0),MATCH(MarketingEltérések[[#Headers],[Márc.]],MarketingTervezett[#Headers],0))-INDEX(MarketingTényleges[],MATCH(INDEX(MarketingEltérések[],ROW()-ROW(MarketingEltérések[[#Headers],[Márc.]]),1),INDEX(MarketingTervezett[],,1),0),MATCH(MarketingEltérések[[#Headers],[Márc.]],MarketingTényleges[#Headers],0)) -> 0.00 Ft | F24: =INDEX(MarketingTervezett[],MATCH(INDEX(MarketingEltérések[],ROW()-ROW(MarketingEltérések[[#Headers],[Ápr.]]),1),INDEX(MarketingTervezett[],,1),0),MATCH(MarketingEltérések[[#Headers],[Ápr.]],MarketingTervezett[#Headers],0))-INDEX(MarketingTényleges[],MATCH(INDEX(MarketingEltérések[],ROW()-ROW(MarketingEltérések[[#Headers],[Ápr.]]),1),INDEX(MarketingTervezett[],,1),0),MATCH(MarketingEltérések[[#Headers],[Ápr.]],MarketingTényleges[#Headers],0)) -> -500.00 Ft | G24: =INDEX(MarketingTervezett[],MATCH(INDEX(MarketingEltérések[],ROW()-ROW(MarketingEltérések[[#Headers],[Máj.]]),1),INDEX(MarketingTervezett[],,1),0),MATCH(MarketingEltérések[[#Headers],[Máj.]],MarketingTervezett[#Headers],0))-INDEX(MarketingTényleges[],MATCH(INDEX(MarketingEltérések[],ROW()-ROW(MarketingEltérések[[#Headers],[Máj.]]),1),INDEX(MarketingTervezett[],,1),0),MATCH(MarketingEltérések[[#Headers],[Máj.]],MarketingTényleges[#Headers],0)) -> 0.00 Ft | H24: =INDEX(MarketingTervezett[],MATCH(INDEX(MarketingEltérések[],ROW()-ROW(MarketingEltérések[[#Headers],[Jún.]]),1),INDEX(MarketingTervezett[],,1),0),MATCH(MarketingEltérések[[#Headers],[Jún.]],MarketingTervezett[#Headers],0))-INDEX(MarketingTényleges[],MATCH(INDEX(MarketingEltérések[],ROW()-ROW(MarketingEltérések[[#Headers],[Jún.]]),1),INDEX(MarketingTervezett[],,1),0),MATCH(MarketingEltérések[[#Headers],[Jún.]],MarketingTényleges[#Headers],0)) -> 0.00 Ft | I24: =INDEX(MarketingTervezett[],MATCH(INDEX(MarketingEltérések[],ROW()-ROW(MarketingEltérések[[#Headers],[Júl.]]),1),INDEX(MarketingTervezett[],,1),0),MATCH(MarketingEltérések[[#Headers],[Júl.]],MarketingTervezett[#Headers],0))-INDEX(MarketingTényleges[],MATCH(INDEX(MarketingEltérések[],ROW()-ROW(MarketingEltérések[[#Headers],[Júl.]]),1),INDEX(MarketingTervezett[],,1),0),MATCH(MarketingEltérések[[#Headers],[Júl.]],MarketingTényleges[#Headers],0)) -> 5,000.00 Ft | J24: =INDEX(MarketingTervezett[],MATCH(INDEX(MarketingEltérések[],ROW()-ROW(MarketingEltérések[[#Headers],[Aug.]]),1),INDEX(MarketingTervezett[],,1),0),MATCH(MarketingEltérések[[#Headers],[Aug.]],MarketingTervezett[#Headers],0))-INDEX(MarketingTényleges[],MATCH(INDEX(MarketingEltérések[],ROW()-ROW(MarketingEltérések[[#Headers],[Aug.]]),1),INDEX(MarketingTervezett[],,1),0),MATCH(MarketingEltérések[[#Headers],[Aug.]],MarketingTényleges[#Headers],0)) -> 0.00 Ft | K24: =INDEX(MarketingTervezett[],MATCH(INDEX(MarketingEltérések[],ROW()-ROW(MarketingEltérések[[#Headers],[Szept.]]),1),INDEX(MarketingTervezett[],,1),0),MATCH(MarketingEltérések[[#Headers],[Szept.]],MarketingTervezett[#Headers],0))-INDEX(MarketingTényleges[],MATCH(INDEX(MarketingEltérések[],ROW()-ROW(MarketingEltérések[[#Headers],[Szept.]]),1),INDEX(MarketingTervezett[],,1),0),MATCH(MarketingEltérések[[#Headers],[Szept.]],MarketingTényleges[#Headers],0)) -> 0.00 Ft | L24: =INDEX(MarketingTervezett[],MATCH(INDEX(MarketingEltérések[],ROW()-ROW(MarketingEltérések[[#Headers],[Okt.]]),1),INDEX(MarketingTervezett[],,1),0),MATCH(MarketingEltérések[[#Headers],[Okt.]],MarketingTervezett[#Headers],0))-INDEX(MarketingTényleges[],MATCH(INDEX(MarketingEltérések[],ROW()-ROW(MarketingEltérések[[#Headers],[Okt.]]),1),INDEX(MarketingTervezett[],,1),0),MATCH(MarketingEltérések[[#Headers],[Okt.]],MarketingTényleges[#Headers],0)) -> 5,000.00 Ft | M24: =INDEX(MarketingTervezett[],MATCH(INDEX(MarketingEltérések[],ROW()-ROW(MarketingEltérések[[#Headers],[Nov.]]),1),INDEX(MarketingTervezett[],,1),0),MATCH(MarketingEltérések[[#Headers],[Nov.]],MarketingTervezett[#Headers],0))-INDEX(MarketingTényleges[],MATCH(INDEX(MarketingEltérések[],ROW()-ROW(MarketingEltérések[[#Headers],[Nov.]]),1),INDEX(MarketingTervezett[],,1),0),MATCH(MarketingEltérések[[#Headers],[Nov.]],MarketingTényleges[#Headers],0)) -> 0.00 Ft | N24: =INDEX(MarketingTervezett[],MATCH(INDEX(MarketingEltérések[],ROW()-ROW(MarketingEltérések[[#Headers],[Dec.]]),1),INDEX(MarketingTervezett[],,1),0),MATCH(MarketingEltérések[[#Headers],[Dec.]],MarketingTervezett[#Headers],0))-INDEX(MarketingTényleges[],MATCH(INDEX(MarketingEltérések[],ROW()-ROW(MarketingEltérések[[#Headers],[Dec.]]),1),INDEX(MarketingTervezett[],,1),0),MATCH(MarketingEltérések[[#Headers],[Dec.]],MarketingTényleges[#Headers],0)) -> 0.00 Ft | O24: =SUM(MarketingEltérések[[#This Row],[Jan.]:[Dec.]]) -> 9,700.00 Ft
B25: Segédanyagok nyomtatása | C25: =INDEX(MarketingTervezett[],MATCH(INDEX(MarketingEltérések[],ROW()-ROW(MarketingEltérések[[#Headers],[Jan.]]),1),INDEX(MarketingTervezett[],,1),0),MATCH(MarketingEltérések[[#Headers],[Jan.]],MarketingTervezett[#Headers],0))-INDEX(MarketingTényleges[],MATCH(INDEX(MarketingEltérések[],ROW()-ROW(MarketingEltérések[[#Headers],[Jan.]]),1),INDEX(MarketingTervezett[],,1),0),MATCH(MarketingEltérések[[#Headers],[Jan.]],MarketingTényleges[#Headers],0)) -> 100.00 Ft | D25: =INDEX(MarketingTervezett[],MATCH(INDEX(MarketingEltérések[],ROW()-ROW(MarketingEltérések[[#Headers],[Febr.]]),1),INDEX(MarketingTervezett[],,1),0),MATCH(MarketingEltérések[[#Headers],[Febr.]],MarketingTervezett[#Headers],0))-INDEX(MarketingTényleges[],MATCH(INDEX(MarketingEltérések[],ROW()-ROW(MarketingEltérések[[#Headers],[Febr.]]),1),INDEX(MarketingTervezett[],,1),0),MATCH(MarketingEltérések[[#Headers],[Febr.]],MarketingTényleges[#Headers],0)) -> -300.00 Ft | E25: =INDEX(MarketingTervezett[],MATCH(INDEX(MarketingEltérések[],ROW()-ROW(MarketingEltérések[[#Headers],[Márc.]]),1),INDEX(MarketingTervezett[],,1),0),MATCH(MarketingEltérések[[#Headers],[Márc.]],MarketingTervezett[#Headers],0))-INDEX(MarketingTényleges[],MATCH(INDEX(MarketingEltérések[],ROW()-ROW(MarketingEltérések[[#Headers],[Márc.]]),1),INDEX(MarketingTervezett[],,1),0),MATCH(MarketingEltérések[[#Headers],[Márc.]],MarketingTényleges[#Headers],0)) -> 100.00 Ft | F25: =INDEX(MarketingTervezett[],MATCH(INDEX(MarketingEltérések[],ROW()-ROW(MarketingEltérések[[#Headers],[Ápr.]]),1),INDEX(MarketingTervezett[],,1),0),MATCH(MarketingEltérések[[#Headers],[Ápr.]],MarketingTervezett[#Headers],0))-INDEX(MarketingTényleges[],MATCH(INDEX(MarketingEltérések[],ROW()-ROW(MarketingEltérések[[#Headers],[Ápr.]]),1),INDEX(MarketingTervezett[],,1),0),MATCH(MarketingEltérések[[#Headers],[Ápr.]],MarketingTényleges[#Headers],0)) -> 100.00 Ft | G25: =INDEX(MarketingTervezett[],MATCH(INDEX(MarketingEltérések[],ROW()-ROW(MarketingEltérések[[#Headers],[Máj.]]),1),INDEX(MarketingTervezett[],,1),0),MATCH(MarketingEltérések[[#Headers],[Máj.]],MarketingTervezett[#Headers],0))-INDEX(MarketingTényleges[],MATCH(INDEX(MarketingEltérések[],ROW()-ROW(MarketingEltérések[[#Headers],[Máj.]]),1),INDEX(MarketingTervezett[],,1),0),MATCH(MarketingEltérések[[#Headers],[Máj.]],MarketingTényleges[#Headers],0)) -> -400.00 Ft | H25: =INDEX(MarketingTervezett[],MATCH(INDEX(MarketingEltérések[],ROW()-ROW(MarketingEltérések[[#Headers],[Jún.]]),1),INDEX(MarketingTervezett[],,1),0),MATCH(MarketingEltérések[[#Headers],[Jún.]],MarketingTervezett[#Headers],0))-INDEX(MarketingTényleges[],MATCH(INDEX(MarketingEltérések[],ROW()-ROW(MarketingEltérések[[#Headers],[Jún.]]),1),INDEX(MarketingTervezett[],,1),0),MATCH(MarketingEltérések[[#Headers],[Jún.]],MarketingTényleges[#Headers],0)) -> 20.00 Ft | I25: =INDEX(MarketingTervezett[],MATCH(INDEX(MarketingEltérések[],ROW()-ROW(MarketingEltérések[[#Headers],[Júl.]]),1),INDEX(MarketingTervezett[],,1),0),MATCH(MarketingEltérések[[#Headers],[Júl.]],MarketingTervezett[#Headers],0))-INDEX(MarketingTényleges[],MATCH(INDEX(MarketingEltérések[],ROW()-ROW(MarketingEltérések[[#Headers],[Júl.]]),1),INDEX(MarketingTervezett[],,1),0),MATCH(MarketingEltérések[[#Headers],[Júl.]],MarketingTényleges[#Headers],0)) -> 200.00 Ft | J25: =INDEX(MarketingTervezett[],MATCH(INDEX(MarketingEltérések[],ROW()-ROW(MarketingEltérések[[#Headers],[Aug.]]),1),INDEX(MarketingTervezett[],,1),0),MATCH(MarketingEltérések[[#Headers],[Aug.]],MarketingTervezett[#Headers],0))-INDEX(MarketingTényleges[],MATCH(INDEX(MarketingEltérések[],ROW()-ROW(MarketingEltérések[[#Headers],[Aug.]]),1),INDEX(MarketingTervezett[],,1),0),MATCH(MarketingEltérések[[#Headers],[Aug.]],MarketingTényleges[#Headers],0)) -> 200.00 Ft | K25: =INDEX(MarketingTervezett[],MATCH(INDEX(MarketingEltérések[],ROW()-ROW(MarketingEltérések[[#Headers],[Szept.]]),1),INDEX(MarketingTervezett[],,1),0),MATCH(MarketingEltérések[[#Headers],[Szept.]],MarketingTervezett[#Headers],0))-INDEX(MarketingTényleges[],MATCH(INDEX(MarketingEltérések[],ROW()-ROW(MarketingEltérések[[#Headers],[Szept.]]),1),INDEX(MarketingTervezett[],,1),0),MATCH(MarketingEltérések[[#Headers],[Szept.]],MarketingTényleges[#Headers],0)) -> 200.00 Ft | L25: =INDEX(MarketingTervezett[],MATCH(INDEX(MarketingEltérések[],ROW()-ROW(MarketingEltérések[[#Headers],[Okt.]]),1),INDEX(MarketingTervezett[],,1),0),MATCH(MarketingEltérések[[#Headers],[Okt.]],MarketingTervezett[#Headers],0))-INDEX(MarketingTényleges[],MATCH(INDEX(MarketingEltérések[],ROW()-ROW(MarketingEltérések[[#Headers],[Okt.]]),1),INDEX(MarketingTervezett[],,1),0),MATCH(MarketingEltérések[[#Headers],[Okt.]],MarketingTényleges[#Headers],0)) -> 200.00 Ft | M25: =INDEX(MarketingTervezett[],MATCH(INDEX(MarketingEltérések[],ROW()-ROW(MarketingEltérések[[#Headers],[Nov.]]),1),INDEX(MarketingTervezett[],,1),0),MATCH(MarketingEltérések[[#Headers],[Nov.]],MarketingTervezett[#Headers],0))-INDEX(MarketingTényleges[],MATCH(INDEX(MarketingEltérések[],ROW()-ROW(MarketingEltérések[[#Headers],[Nov.]]),1),INDEX(MarketingTervezett[],,1),0),MATCH(MarketingEltérések[[#Headers],[Nov.]],MarketingTényleges[#Headers],0)) -> 200.00 Ft | N25: =INDEX(MarketingTervezett[],MATCH(INDEX(MarketingEltérések[],ROW()-ROW(MarketingEltérések[[#Headers],[Dec.]]),1),INDEX(MarketingTervezett[],,1),0),MATCH(MarketingEltérések[[#Headers],[Dec.]],MarketingTervezett[#Headers],0))-INDEX(MarketingTényleges[],MATCH(INDEX(MarketingEltérések[],ROW()-ROW(MarketingEltérések[[#Headers],[Dec.]]),1),INDEX(MarketingTervezett[],,1),0),MATCH(MarketingEltérések[[#Headers],[Dec.]],MarketingTényleges[#Headers],0)) -> 200.00 Ft | O25: =SUM(MarketingEltérések[[#This Row],[Jan.]:[Dec.]]) -> 820.00 Ft
B26: Marketingrendezvények | C26: =INDEX(MarketingTervezett[],MATCH(INDEX(MarketingEltérések[],ROW()-ROW(MarketingEltérések[[#Headers],[Jan.]]),1),INDEX(MarketingTervezett[],,1),0),MATCH(MarketingEltérések[[#Headers],[Jan.]],MarketingTervezett[#Headers],0))-INDEX(MarketingTényleges[],MATCH(INDEX(MarketingEltérések[],ROW()-ROW(MarketingEltérések[[#Headers],[Jan.]]),1),INDEX(MarketingTervezett[],,1),0),MATCH(MarketingEltérések[[#Headers],[Jan.]],MarketingTényleges[#Headers],0)) -> 200.00 Ft | D26: =INDEX(MarketingTervezett[],MATCH(INDEX(MarketingEltérések[],ROW()-ROW(MarketingEltérések[[#Headers],[Febr.]]),1),INDEX(MarketingTervezett[],,1),0),MATCH(MarketingEltérések[[#Headers],[Febr.]],MarketingTervezett[#Headers],0))-INDEX(MarketingTényleges[],MATCH(INDEX(MarketingEltérések[],ROW()-ROW(MarketingEltérések[[#Headers],[Febr.]]),1),INDEX(MarketingTervezett[],,1),0),MATCH(MarketingEltérések[[#Headers],[Febr.]],MarketingTényleges[#Headers],0)) -> -200.00 Ft | E26: =INDEX(MarketingTervezett[],MATCH(INDEX(MarketingEltérések[],ROW()-ROW(MarketingEltérések[[#Headers],[Márc.]]),1),INDEX(MarketingTervezett[],,1),0),MATCH(MarketingEltérések[[#Headers],[Márc.]],MarketingTervezett[#Headers],0))-INDEX(MarketingTényleges[],MATCH(INDEX(MarketingEltérések[],ROW()-ROW(MarketingEltérések[[#Headers],[Márc.]]),1),INDEX(MarketingTervezett[],,1),0),MATCH(MarketingEltérések[[#Headers],[Márc.]],MarketingTényleges[#Headers],0)) -> -200.00 Ft | F26: =INDEX(MarketingTervezett[],MATCH(INDEX(MarketingEltérések[],ROW()-ROW(MarketingEltérések[[#Headers],[Ápr.]]),1),INDEX(MarketingTervezett[],,1),0),MATCH(MarketingEltérések[[#Headers],[Ápr.]],MarketingTervezett[#Headers],0))-INDEX(MarketingTényleges[],MATCH(INDEX(MarketingEltérések[],ROW()-ROW(MarketingEltérések[[#Headers],[Ápr.]]),1),INDEX(MarketingTervezett[],,1),0),MATCH(MarketingEltérések[[#Headers],[Ápr.]],MarketingTényleges[#Headers],0)) -> 300.00 Ft | G26: =INDEX(MarketingTervezett[],MATCH(INDEX(MarketingEltérések[],ROW()-ROW(MarketingEltérések[[#Headers],[Máj.]]),1),INDEX(MarketingTervezett[],,1),0),MATCH(MarketingEltérések[[#Headers],[Máj.]],MarketingTervezett[#Headers],0))-INDEX(MarketingTényleges[],MATCH(INDEX(MarketingEltérések[],ROW()-ROW(MarketingEltérések[[#Headers],[Máj.]]),1),INDEX(MarketingTervezett[],,1),0),MATCH(MarketingEltérések[[#Headers],[Máj.]],MarketingTényleges[#Headers],0)) -> 500.00 Ft | H26: =INDEX(MarketingTervezett[],MATCH(INDEX(MarketingEltérések[],ROW()-ROW(MarketingEltérések[[#Headers],[Jún.]]),1),INDEX(MarketingTervezett[],,1),0),MATCH(MarketingEltérések[[#Headers],[Jún.]],MarketingTervezett[#Headers],0))-INDEX(MarketingTényleges[],MATCH(INDEX(MarketingEltérések[],ROW()-ROW(MarketingEltérések[[#Headers],[Jún.]]),1),INDEX(MarketingTervezett[],,1),0),MATCH(MarketingEltérések[[#Headers],[Jún.]],MarketingTényleges[#Headers],0)) -> -300.00 Ft | I26: =INDEX(MarketingTervezett[],MATCH(INDEX(MarketingEltérések[],ROW()-ROW(MarketingEltérések[[#Headers],[Júl.]]),1),INDEX(MarketingTervezett[],,1),0),MATCH(MarketingEltérések[[#Headers],[Júl.]],MarketingTervezett[#Headers],0))-INDEX(MarketingTényleges[],MATCH(INDEX(MarketingEltérések[],ROW()-ROW(MarketingEltérések[[#Headers],[Júl.]]),1),INDEX(MarketingTervezett[],,1),0),MATCH(MarketingEltérések[[#Headers],[Júl.]],MarketingTényleges[#Headers],0)) -> 2,000.00 Ft | J26: =INDEX(MarketingTervezett[],MATCH(INDEX(MarketingEltérések[],ROW()-ROW(MarketingEltérések[[#Headers],[Aug.]]),1),INDEX(MarketingTervezett[],,1),0),MATCH(MarketingEltérések[[#Headers],[Aug.]],MarketingTervezett[#Headers],0))-INDEX(MarketingTényleges[],MATCH(INDEX(MarketingEltérések[],ROW()-ROW(MarketingEltérések[[#Headers],[Aug.]]),1),INDEX(MarketingTervezett[],,1),0),MATCH(MarketingEltérések[[#Headers],[Aug.]],MarketingTényleges[#Headers],0)) -> 5,000.00 Ft | K26: =INDEX(MarketingTervezett[],MATCH(INDEX(MarketingEltérések[],ROW()-ROW(MarketingEltérések[[#Headers],[Szept.]]),1),INDEX(MarketingTervezett[],,1),0),MATCH(MarketingEltérések[[#Headers],[Szept.]],MarketingTervezett[#Headers],0))-INDEX(MarketingTényleges[],MATCH(INDEX(MarketingEltérések[],ROW()-ROW(MarketingEltérések[[#Headers],[Szept.]]),1),INDEX(MarketingTervezett[],,1),0),MATCH(MarketingEltérések[[#Headers],[Szept.]],MarketingTényleges[#Headers],0)) -> 2,000.00 Ft | L26: =INDEX(MarketingTervezett[],MATCH(INDEX(MarketingEltérések[],ROW()-ROW(MarketingEltérések[[#Headers],[Okt.]]),1),INDEX(MarketingTervezett[],,1),0),MATCH(MarketingEltérések[[#Headers],[Okt.]],MarketingTervezett[#Headers],0))-INDEX(MarketingTényleges[],MATCH(INDEX(MarketingEltérések[],ROW()-ROW(MarketingEltérések[[#Headers],[Okt.]]),1),INDEX(MarketingTervezett[],,1),0),MATCH(MarketingEltérések[[#Headers],[Okt.]],MarketingTényleges[#Headers],0)) -> 2,000.00 Ft | M26: =INDEX(MarketingTervezett[],MATCH(INDEX(MarketingEltérések[],ROW()-ROW(MarketingEltérések[[#Headers],[Nov.]]),1),INDEX(MarketingTervezett[],,1),0),MATCH(MarketingEltérések[[#Headers],[Nov.]],MarketingTervezett[#Headers],0))-INDEX(MarketingTényleges[],MATCH(INDEX(MarketingEltérések[],ROW()-ROW(MarketingEltérések[[#Headers],[Nov.]]),1),INDEX(MarketingTervezett[],,1),0),MATCH(MarketingEltérések[[#Headers],[Nov.]],MarketingTényleges[#Headers],0)) -> 2,000.00 Ft | N26: =INDEX(MarketingTervezett[],MATCH(INDEX(MarketingEltérések[],ROW()-ROW(MarketingEltérések[[#Headers],[Dec.]]),1),INDEX(MarketingTervezett[],,1),0),MATCH(MarketingEltérések[[#Headers],[Dec.]],MarketingTervezett[#Headers],0))-INDEX(MarketingTényleges[],MATCH(INDEX(MarketingEltérések[],ROW()-ROW(MarketingEltérések[[#Headers],[Dec.]]),1),INDEX(MarketingTervezett[],,1),0),MATCH(MarketingEltérések[[#Headers],[Dec.]],MarketingTényleges[#Headers],0)) -> 5,000.00 Ft | O26: =SUM(MarketingEltérések[[#This Row],[Jan.]:[Dec.]]) -> 18,300.00 Ft
B27: Vegyes költségek | C27: =INDEX(MarketingTervezett[],MATCH(INDEX(MarketingEltérések[],ROW()-ROW(MarketingEltérések[[#Headers],[Jan.]]),1),INDEX(MarketingTervezett[],,1),0),MATCH(MarketingEltérések[[#Headers],[Jan.]],MarketingTervezett[#Headers],0))-INDEX(MarketingTényleges[],MATCH(INDEX(MarketingEltérések[],ROW()-ROW(MarketingEltérések[[#Headers],[Jan.]]),1),INDEX(MarketingTervezett[],,1),0),MATCH(MarketingEltérések[[#Headers],[Jan.]],MarketingTényleges[#Headers],0)) -> 55.00 Ft | D27: =INDEX(MarketingTervezett[],MATCH(INDEX(MarketingEltérések[],ROW()-ROW(MarketingEltérések[[#Headers],[Febr.]]),1),INDEX(MarketingTervezett[],,1),0),MATCH(MarketingEltérések[[#Headers],[Febr.]],MarketingTervezett[#Headers],0))-INDEX(MarketingTényleges[],MATCH(INDEX(MarketingEltérések[],ROW()-ROW(MarketingEltérések[[#Headers],[Febr.]]),1),INDEX(MarketingTervezett[],,1),0),MATCH(MarketingEltérések[[#Headers],[Febr.]],MarketingTényleges[#Headers],0)) -> 44.00 Ft | E27: =INDEX(MarketingTervezett[],MATCH(INDEX(MarketingEltérések[],ROW()-ROW(MarketingEltérések[[#Headers],[Márc.]]),1),INDEX(MarketingTervezett[],,1),0),MATCH(MarketingEltérések[[#Headers],[Márc.]],MarketingTervezett[#Headers],0))-INDEX(MarketingTényleges[],MATCH(INDEX(MarketingEltérések[],ROW()-ROW(MarketingEltérések[[#Headers],[Márc.]]),1),INDEX(MarketingTervezett[],,1),0),MATCH(MarketingEltérések[[#Headers],[Márc.]],MarketingTényleges[#Headers],0)) -> 77.00 Ft | F27: =INDEX(MarketingTervezett[],MATCH(INDEX(MarketingEltérések[],ROW()-ROW(MarketingEltérések[[#Headers],[Ápr.]]),1),INDEX(MarketingTervezett[],,1),0),MATCH(MarketingEltérések[[#Headers],[Ápr.]],MarketingTervezett[#Headers],0))-INDEX(MarketingTényleges[],MATCH(INDEX(MarketingEltérések[],ROW()-ROW(MarketingEltérések[[#Headers],[Ápr.]]),1),INDEX(MarketingTervezett[],,1),0),MATCH(MarketingEltérések[[#Headers],[Ápr.]],MarketingTényleges[#Headers],0)) -> -23.00 Ft | G27: =INDEX(MarketingTervezett[],MATCH(INDEX(MarketingEltérések[],ROW()-ROW(MarketingEltérések[[#Headers],[Máj.]]),1),INDEX(MarketingTervezett[],,1),0),MATCH(MarketingEltérések[[#Headers],[Máj.]],MarketingTervezett[#Headers],0))-INDEX(MarketingTényleges[],MATCH(INDEX(MarketingEltérések[],ROW()-ROW(MarketingEltérések[[#Headers],[Máj.]]),1),INDEX(MarketingTervezett[],,1),0),MATCH(MarketingEltérések[[#Headers],[Máj.]],MarketingTényleges[#Headers],0)) -> 13.00 Ft | H27: =INDEX(MarketingTervezett[],MATCH(INDEX(MarketingEltérések[],ROW()-ROW(MarketingEltérések[[#Headers],[Jún.]]),1),INDEX(MarketingTervezett[],,1),0),MATCH(MarketingEltérések[[#Headers],[Jún.]],MarketingTervezett[#Headers],0))-INDEX(MarketingTényleges[],MATCH(INDEX(MarketingEltérések[],ROW()-ROW(MarketingEltérések[[#Headers],[Jún.]]),1),INDEX(MarketingTervezett[],,1),0),MATCH(MarketingEltérések[[#Headers],[Jún.]],MarketingTényleges[#Headers],0)) -> -45.00 Ft | I27: =INDEX(MarketingTervezett[],MATCH(INDEX(MarketingEltérések[],ROW()-ROW(MarketingEltérések[[#Headers],[Júl.]]),1),INDEX(MarketingTervezett[],,1),0),MATCH(MarketingEltérések[[#Headers],[Júl.]],MarketingTervezett[#Headers],0))-INDEX(MarketingTényleges[],MATCH(INDEX(MarketingEltérések[],ROW()-ROW(MarketingEltérések[[#Headers],[Júl.]]),1),INDEX(MarketingTervezett[],,1),0),MATCH(MarketingEltérések[[#Headers],[Júl.]],MarketingTényleges[#Headers],0)) -> 200.00 Ft | J27: =INDEX(MarketingTervezett[],MATCH(INDEX(MarketingEltérések[],ROW()-ROW(MarketingEltérések[[#Headers],[Aug.]]),1),INDEX(MarketingTervezett[],,1),0),MATCH(MarketingEltérések[[#Headers],[Aug.]],MarketingTervezett[#Headers],0))-INDEX(MarketingTényleges[],MATCH(INDEX(MarketingEltérések[],ROW()-ROW(MarketingEltérések[[#Headers],[Aug.]]),1),INDEX(MarketingTervezett[],,1),0),MATCH(MarketingEltérések[[#Headers],[Aug.]],MarketingTényleges[#Headers],0)) -> 200.00 Ft | K27: =INDEX(MarketingTervezett[],MATCH(INDEX(MarketingEltérések[],ROW()-ROW(MarketingEltérések[[#Headers],[Szept.]]),1),INDEX(MarketingTervezett[],,1),0),MATCH(MarketingEltérések[[#Headers],[Szept.]],MarketingTervezett[#Headers],0))-INDEX(MarketingTényleges[],MATCH(INDEX(MarketingEltérések[],ROW()-ROW(MarketingEltérések[[#Headers],[Szept.]]),1),INDEX(MarketingTervezett[],,1),0),MATCH(MarketingEltérések[[#Headers],[Szept.]],MarketingTényleges[#Headers],0)) -> 200.00 Ft | L27: =INDEX(MarketingTervezett[],MATCH(INDEX(MarketingEltérések[],ROW()-ROW(MarketingEltérések[[#Headers],[Okt.]]),1),INDEX(MarketingTervezett[],,1),0),MATCH(MarketingEltérések[[#Headers],[Okt.]],MarketingTervezett[#Headers],0))-INDEX(MarketingTényleges[],MATCH(INDEX(MarketingEltérések[],ROW()-ROW(MarketingEltérések[[#Headers],[Okt.]]),1),INDEX(MarketingTervezett[],,1),0),MATCH(MarketingEltérések[[#Headers],[Okt.]],MarketingTényleges[#Headers],0)) -> 200.00 Ft | M27: =INDEX(MarketingTervezett[],MATCH(INDEX(MarketingEltérések[],ROW()-ROW(MarketingEltérések[[#Headers],[Nov.]]),1),INDEX(MarketingTervezett[],,1),0),MATCH(MarketingEltérések[[#Headers],[Nov.]],MarketingTervezett[#Headers],0))-INDEX(MarketingTényleges[],MATCH(INDEX(MarketingEltérések[],ROW()-ROW(MarketingEltérések[[#Headers],[Nov.]]),1),INDEX(MarketingTervezett[],,1),0),MATCH(MarketingEltérések[[#Headers],[Nov.]],MarketingTényleges[#Headers],0)) -> 200.00 Ft | N27: =INDEX(MarketingTervezett[],MATCH(INDEX(MarketingEltérések[],ROW()-ROW(MarketingEltérések[[#Headers],[Dec.]]),1),INDEX(MarketingTervezett[],,1),0),MATCH(MarketingEltérések[[#Headers],[Dec.]],MarketingTervezett[#Headers],0))-INDEX(MarketingTényleges[],MATCH(INDEX(MarketingEltérések[],ROW()-ROW(MarketingEltérések[[#Headers],[Dec.]]),1),INDEX(MarketingTervezett[],,1),0),MATCH(MarketingEltérések[[#Headers],[Dec.]],MarketingTényleges[#Headers],0)) -> 200.00 Ft | O27: =SUM(MarketingEltérések[[#This Row],[Jan.]:[Dec.]]) -> 1,321.00 Ft
B28: Részösszeg | C28: =SUBTOTAL(109,MarketingEltérések[Jan.]) -> 555.00 Ft | D28: =SUBTOTAL(109,MarketingEltérések[Febr.]) -> -456.00 Ft | E28: =SUBTOTAL(109,MarketingEltérések[Márc.]) -> -23.00 Ft | F28: =SUBTOTAL(109,MarketingEltérések[Ápr.]) -> -123.00 Ft | G28: =SUBTOTAL(109,MarketingEltérések[Máj.]) -> 113.00 Ft | H28: =SUBTOTAL(109,MarketingEltérések[Jún.]) -> -825.00 Ft | I28: =SUBTOTAL(109,MarketingEltérések[Júl.]) -> 8,100.00 Ft | J28: =SUBTOTAL(109,MarketingEltérések[Aug.]) -> 6,100.00 Ft | K28: =SUBTOTAL(109,MarketingEltérések[Szept.]) -> 3,100.00 Ft | L28: =SUBTOTAL(109,MarketingEltérések[Okt.]) -> 8,100.00 Ft | M28: =SUBTOTAL(109,MarketingEltérések[Nov.]) -> 3,100.00 Ft | N28: =SUBTOTAL(109,MarketingEltérések[Dec.]) -> 6,900.00 Ft | O28: =SUBTOTAL(109,MarketingEltérések[ÉV]) -> 34,641.00 Ft
A30: A jobbra lévő cellában kezdődő Képzési és utazási eltérések táblázatban a sablon automatikusan kiszámítja a képzési és utazási költségek eltérését. A következő utasítás az A35 cellában található. | B30: Képzés/utazás | C30: Jan. | D30: Febr. | E30: Márc. | F30: Ápr. | G30: Máj. | H30: Jún. | I30: Júl. | J30: Aug. | K30: Szept. | L30: Okt. | M30: Nov. | N30: Dec. | O30: ÉV
B31: Tanfolyamok | C31: =INDEX(KépzésiÉsUtazásiTervezett[],MATCH(INDEX(KépzésiÉsOktatásiEltérések[],ROW()-ROW(KépzésiÉsOktatásiEltérések[[#Headers],[Jan.]]),1),INDEX(KépzésiÉsUtazásiTervezett[],,1),0),MATCH(KépzésiÉsOktatásiEltérések[[#Headers],[Jan.]],KépzésiÉsUtazásiTervezett[#Headers],0))-INDEX(KépzésiÉsUtazásiTényleges[],MATCH(INDEX(KépzésiÉsOktatásiEltérések[],ROW()-ROW(KépzésiÉsOktatásiEltérések[[#Headers],[Jan.]]),1),INDEX(KépzésiÉsUtazásiTervezett[],,1),0),MATCH(KépzésiÉsOktatásiEltérések[[#Headers],[Jan.]],KépzésiÉsUtazásiTényleges[#Headers],0)) -> 400.00 Ft | D31: =INDEX(KépzésiÉsUtazásiTervezett[],MATCH(INDEX(KépzésiÉsOktatásiEltérések[],ROW()-ROW(KépzésiÉsOktatásiEltérések[[#Headers],[Febr.]]),1),INDEX(KépzésiÉsUtazásiTervezett[],,1),0),MATCH(KépzésiÉsOktatásiEltérések[[#Headers],[Febr.]],KépzésiÉsUtazásiTervezett[#Headers],0))-INDEX(KépzésiÉsUtazásiTényleges[],MATCH(INDEX(KépzésiÉsOktatásiEltérések[],ROW()-ROW(KépzésiÉsOktatásiEltérések[[#Headers],[Febr.]]),1),INDEX(KépzésiÉsUtazásiTervezett[],,1),0),MATCH(KépzésiÉsOktatásiEltérések[[#Headers],[Febr.]],KépzésiÉsUtazásiTényleges[#Headers],0)) -> -400.00 Ft | E31: =INDEX(KépzésiÉsUtazásiTervezett[],MATCH(INDEX(KépzésiÉsOktatásiEltérések[],ROW()-ROW(KépzésiÉsOktatásiEltérések[[#Headers],[Márc.]]),1),INDEX(KépzésiÉsUtazásiTervezett[],,1),0),MATCH(KépzésiÉsOktatásiEltérések[[#Headers],[Márc.]],KépzésiÉsUtazásiTervezett[#Headers],0))-INDEX(KépzésiÉsUtazásiTényleges[],MATCH(INDEX(KépzésiÉsOktatásiEltérések[],ROW()-ROW(KépzésiÉsOktatásiEltérések[[#Headers],[Márc.]]),1),INDEX(KépzésiÉsUtazásiTervezett[],,1),0),MATCH(KépzésiÉsOktatásiEltérések[[#Headers],[Márc.]],KépzésiÉsUtazásiTényleges[#Headers],0)) -> 600.00 Ft | F31: =INDEX(KépzésiÉsUtazásiTervezett[],MATCH(INDEX(KépzésiÉsOktatásiEltérések[],ROW()-ROW(KépzésiÉsOktatásiEltérések[[#Headers],[Ápr.]]),1),INDEX(KépzésiÉsUtazásiTervezett[],,1),0),MATCH(KépzésiÉsOktatásiEltérések[[#Headers],[Ápr.]],KépzésiÉsUtazásiTervezett[#Headers],0))-INDEX(KépzésiÉsUtazásiTényleges[],MATCH(INDEX(KépzésiÉsOktatásiEltérések[],ROW()-ROW(KépzésiÉsOktatásiEltérések[[#Headers],[Ápr.]]),1),INDEX(KépzésiÉsUtazásiTervezett[],,1),0),MATCH(KépzésiÉsOktatásiEltérések[[#Headers],[Ápr.]],KépzésiÉsUtazásiTényleges[#Headers],0)) -> 400.00 Ft | G31: =INDEX(KépzésiÉsUtazásiTervezett[],MATCH(INDEX(KépzésiÉsOktatásiEltérések[],ROW()-ROW(KépzésiÉsOktatásiEltérések[[#Headers],[Máj.]]),1),INDEX(KépzésiÉsUtazásiTervezett[],,1),0),MATCH(KépzésiÉsOktatásiEltérések[[#Headers],[Máj.]],KépzésiÉsUtazásiTervezett[#Headers],0))-INDEX(KépzésiÉsUtazásiTényleges[],MATCH(INDEX(KépzésiÉsOktatásiEltérések[],ROW()-ROW(KépzésiÉsOktatásiEltérések[[#Headers],[Máj.]]),1),INDEX(KépzésiÉsUtazásiTervezett[],,1),0),MATCH(KépzésiÉsOktatásiEltérések[[#Headers],[Máj.]],KépzésiÉsUtazásiTényleges[#Headers],0)) -> 800.00 Ft | H31: =INDEX(KépzésiÉsUtazásiTervezett[],MATCH(INDEX(KépzésiÉsOktatásiEltérések[],ROW()-ROW(KépzésiÉsOktatásiEltérések[[#Headers],[Jún.]]),1),INDEX(KépzésiÉsUtazásiTervezett[],,1),0),MATCH(KépzésiÉsOktatásiEltérések[[#Headers],[Jún.]],KépzésiÉsUtazásiTervezett[#Headers],0))-INDEX(KépzésiÉsUtazásiTényleges[],MATCH(INDEX(KépzésiÉsOktatásiEltérések[],ROW()-ROW(KépzésiÉsOktatásiEltérések[[#Headers],[Jún.]]),1),INDEX(KépzésiÉsUtazásiTervezett[],,1),0),MATCH(KépzésiÉsOktatásiEltérések[[#Headers],[Jún.]],KépzésiÉsUtazásiTényleges[#Headers],0)) -> -800.00 Ft | I31: =INDEX(KépzésiÉsUtazásiTervezett[],MATCH(INDEX(KépzésiÉsOktatásiEltérések[],ROW()-ROW(KépzésiÉsOktatásiEltérések[[#Headers],[Júl.]]),1),INDEX(KépzésiÉsUtazásiTervezett[],,1),0),MATCH(KépzésiÉsOktatásiEltérések[[#Headers],[Júl.]],KépzésiÉsUtazásiTervezett[#Headers],0))-INDEX(KépzésiÉsUtazásiTényleges[],MATCH(INDEX(KépzésiÉsOktatásiEltérések[],ROW()-ROW(KépzésiÉsOktatásiEltérések[[#Headers],[Júl.]]),1),INDEX(KépzésiÉsUtazásiTervezett[],,1),0),MATCH(KépzésiÉsOktatásiEltérések[[#Headers],[Júl.]],KépzésiÉsUtazásiTényleges[#Headers],0)) -> 2,000.00 Ft | J31: =INDEX(KépzésiÉsUtazásiTervezett[],MATCH(INDEX(KépzésiÉsOktatásiEltérések[],ROW()-ROW(KépzésiÉsOktatásiEltérések[[#Headers],[Aug.]]),1),INDEX(KépzésiÉsUtazásiTervezett[],,1),0),MATCH(KépzésiÉsOktatásiEltérések[[#Headers],[Aug.]],KépzésiÉsUtazásiTervezett[#Headers],0))-INDEX(KépzésiÉsUtazásiTényleges[],MATCH(INDEX(KépzésiÉsOktatásiEltérések[],ROW()-ROW(KépzésiÉsOktatásiEltérések[[#Headers],[Aug.]]),1),INDEX(KépzésiÉsUtazásiTervezett[],,1),0),MATCH(KépzésiÉsOktatásiEltérések[[#Headers],[Aug.]],KépzésiÉsUtazásiTényleges[#Headers],0)) -> 2,000.00 Ft | K31: =INDEX(KépzésiÉsUtazásiTervezett[],MATCH(INDEX(KépzésiÉsOktatásiEltérések[],ROW()-ROW(KépzésiÉsOktatásiEltérések[[#Headers],[Szept.]]),1),INDEX(KépzésiÉsUtazásiTervezett[],,1),0),MATCH(KépzésiÉsOktatásiEltérések[[#Headers],[Szept.]],KépzésiÉsUtazásiTervezett[#Headers],0))-INDEX(KépzésiÉsUtazásiTényleges[],MATCH(INDEX(KépzésiÉsOktatásiEltérések[],ROW()-ROW(KépzésiÉsOktatásiEltérések[[#Headers],[Szept.]]),1),INDEX(KépzésiÉsUtazásiTervezett[],,1),0),MATCH(KépzésiÉsOktatásiEltérések[[#Headers],[Szept.]],KépzésiÉsUtazásiTényleges[#Headers],0)) -> 2,000.00 Ft | L31: =INDEX(KépzésiÉsUtazásiTervezett[],MATCH(INDEX(KépzésiÉsOktatásiEltérések[],ROW()-ROW(KépzésiÉsOktatásiEltérések[[#Headers],[Okt.]]),1),INDEX(KépzésiÉsUtazásiTervezett[],,1),0),MATCH(KépzésiÉsOktatásiEltérések[[#Headers],[Okt.]],KépzésiÉsUtazásiTervezett[#Headers],0))-INDEX(KépzésiÉsUtazásiTényleges[],MATCH(INDEX(KépzésiÉsOktatásiEltérések[],ROW()-ROW(KépzésiÉsOktatásiEltérések[[#Headers],[Okt.]]),1),INDEX(KépzésiÉsUtazásiTervezett[],,1),0),MATCH(KépzésiÉsOktatásiEltérések[[#Headers],[Okt.]],KépzésiÉsUtazásiTényleges[#Headers],0)) -> 2,000.00 Ft | M31: =INDEX(KépzésiÉsUtazásiTervezett[],MATCH(INDEX(KépzésiÉsOktatásiEltérések[],ROW()-ROW(KépzésiÉsOktatásiEltérések[[#Headers],[Nov.]]),1),INDEX(KépzésiÉsUtazásiTervezett[],,1),0),MATCH(KépzésiÉsOktatásiEltérések[[#Headers],[Nov.]],KépzésiÉsUtazásiTervezett[#Headers],0))-INDEX(KépzésiÉsUtazásiTényleges[],MATCH(INDEX(KépzésiÉsOktatásiEltérések[],ROW()-ROW(KépzésiÉsOktatásiEltérések[[#Headers],[Nov.]]),1),INDEX(KépzésiÉsUtazásiTervezett[],,1),0),MATCH(KépzésiÉsOktatásiEltérések[[#Headers],[Nov.]],KépzésiÉsUtazásiTényleges[#Headers],0)) -> 2,000.00 Ft | N31: =INDEX(KépzésiÉsUtazásiTervezett[],MATCH(INDEX(KépzésiÉsOktatásiEltérések[],ROW()-ROW(KépzésiÉsOktatásiEltérések[[#Headers],[Dec.]]),1),INDEX(KépzésiÉsUtazásiTervezett[],,1),0),MATCH(KépzésiÉsOktatásiEltérések[[#Headers],[Dec.]],KépzésiÉsUtazásiTervezett[#Headers],0))-INDEX(KépzésiÉsUtazásiTényleges[],MATCH(INDEX(KépzésiÉsOktatásiEltérések[],ROW()-ROW(KépzésiÉsOktatásiEltérések[[#Headers],[Dec.]]),1),INDEX(KépzésiÉsUtazásiTervezett[],,1),0),MATCH(KépzésiÉsOktatásiEltérések[[#Headers],[Dec.]],KépzésiÉsUtazásiTényleges[#Headers],0)) -> 2,000.00 Ft | O31: =SUM(KépzésiÉsOktatásiEltérések[[#This Row],[Jan.]:[Dec.]]) -> 13,000.00 Ft
B32: Képzéshez kapcsolódó utazási költségek | C32: =INDEX(KépzésiÉsUtazásiTervezett[],MATCH(INDEX(KépzésiÉsOktatásiEltérések[],ROW()-ROW(KépzésiÉsOktatásiEltérések[[#Headers],[Jan.]]),1),INDEX(KépzésiÉsUtazásiTervezett[],,1),0),MATCH(KépzésiÉsOktatásiEltérések[[#Headers],[Jan.]],KépzésiÉsUtazásiTervezett[#Headers],0))-INDEX(KépzésiÉsUtazásiTényleges[],MATCH(INDEX(KépzésiÉsOktatásiEltérések[],ROW()-ROW(KépzésiÉsOktatásiEltérések[[#Headers],[Jan.]]),1),INDEX(KépzésiÉsUtazásiTervezett[],,1),0),MATCH(KépzésiÉsOktatásiEltérések[[#Headers],[Jan.]],KépzésiÉsUtazásiTényleges[#Headers],0)) -> 800.00 Ft | D32: =INDEX(KépzésiÉsUtazásiTervezett[],MATCH(INDEX(KépzésiÉsOktatásiEltérések[],ROW()-ROW(KépzésiÉsOktatásiEltérések[[#Headers],[Febr.]]),1),INDEX(KépzésiÉsUtazásiTervezett[],,1),0),MATCH(KépzésiÉsOktatásiEltérések[[#Headers],[Febr.]],KépzésiÉsUtazásiTervezett[#Headers],0))-INDEX(KépzésiÉsUtazásiTényleges[],MATCH(INDEX(KépzésiÉsOktatásiEltérések[],ROW()-ROW(KépzésiÉsOktatásiEltérések[[#Headers],[Febr.]]),1),INDEX(KépzésiÉsUtazásiTervezett[],,1),0),MATCH(KépzésiÉsOktatásiEltérések[[#Headers],[Febr.]],KépzésiÉsUtazásiTényleges[#Headers],0)) -> -200.00 Ft | E32: =INDEX(KépzésiÉsUtazásiTervezett[],MATCH(INDEX(KépzésiÉsOktatásiEltérések[],ROW()-ROW(KépzésiÉsOktatásiEltérések[[#Headers],[Márc.]]),1),INDEX(KépzésiÉsUtazásiTervezett[],,1),0),MATCH(KépzésiÉsOktatásiEltérések[[#Headers],[Márc.]],KépzésiÉsUtazásiTervezett[#Headers],0))-INDEX(KépzésiÉsUtazásiTényleges[],MATCH(INDEX(KépzésiÉsOktatásiEltérések[],ROW()-ROW(KépzésiÉsOktatásiEltérések[[#Headers],[Márc.]]),1),INDEX(KépzésiÉsUtazásiTervezett[],,1),0),MATCH(KépzésiÉsOktatásiEltérések[[#Headers],[Márc.]],KépzésiÉsUtazásiTényleges[#Headers],0)) -> 600.00 Ft | F32: =INDEX(KépzésiÉsUtazásiTervezett[],MATCH(INDEX(KépzésiÉsOktatásiEltérések[],ROW()-ROW(KépzésiÉsOktatásiEltérések[[#Headers],[Ápr.]]),1),INDEX(KépzésiÉsUtazásiTervezett[],,1),0),MATCH(KépzésiÉsOktatásiEltérések[[#Headers],[Ápr.]],KépzésiÉsUtazásiTervezett[#Headers],0))-INDEX(KépzésiÉsUtazásiTényleges[],MATCH(INDEX(KépzésiÉsOktatásiEltérések[],ROW()-ROW(KépzésiÉsOktatásiEltérések[[#Headers],[Ápr.]]),1),INDEX(KépzésiÉsUtazásiTervezett[],,1),0),MATCH(KépzésiÉsOktatásiEltérések[[#Headers],[Ápr.]],KépzésiÉsUtazásiTényleges[#Headers],0)) -> 800.00 Ft | G32: =INDEX(KépzésiÉsUtazásiTervezett[],MATCH(INDEX(KépzésiÉsOktatásiEltérések[],ROW()-ROW(KépzésiÉsOktatásiEltérések[[#Headers],[Máj.]]),1),INDEX(KépzésiÉsUtazásiTervezett[],,1),0),MATCH(KépzésiÉsOktatásiEltérések[[#Headers],[Máj.]],KépzésiÉsUtazásiTervezett[#Headers],0))-INDEX(KépzésiÉsUtazásiTényleges[],MATCH(INDEX(KépzésiÉsOktatásiEltérések[],ROW()-ROW(KépzésiÉsOktatásiEltérések[[#Headers],[Máj.]]),1),INDEX(KépzésiÉsUtazásiTervezett[],,1),0),MATCH(KépzésiÉsOktatásiEltérések[[#Headers],[Máj.]],KépzésiÉsUtazásiTényleges[#Headers],0)) -> 1,200.00 Ft | H32: =INDEX(KépzésiÉsUtazásiTervezett[],MATCH(INDEX(KépzésiÉsOktatásiEltérések[],ROW()-ROW(KépzésiÉsOktatásiEltérések[[#Headers],[Jún.]]),1),INDEX(KépzésiÉsUtazásiTervezett[],,1),0),MATCH(KépzésiÉsOktatásiEltérések[[#Headers],[Jún.]],KépzésiÉsUtazásiTervezett[#Headers],0))-INDEX(KépzésiÉsUtazásiTényleges[],MATCH(INDEX(KépzésiÉsOktatásiEltérések[],ROW()-ROW(KépzésiÉsOktatásiEltérések[[#Headers],[Jún.]]),1),INDEX(KépzésiÉsUtazásiTervezett[],,1),0),MATCH(KépzésiÉsOktatásiEltérések[[#Headers],[Jún.]],KépzésiÉsUtazásiTényleges[#Headers],0)) -> -1,500.00 Ft | I32: =INDEX(KépzésiÉsUtazásiTervezett[],MATCH(INDEX(KépzésiÉsOktatásiEltérések[],ROW()-ROW(KépzésiÉsOktatásiEltérések[[#Headers],[Júl.]]),1),INDEX(KépzésiÉsUtazásiTervezett[],,1),0),MATCH(KépzésiÉsOktatásiEltérések[[#Headers],[Júl.]],KépzésiÉsUtazásiTervezett[#Headers],0))-INDEX(KépzésiÉsUtazásiTényleges[],MATCH(INDEX(KépzésiÉsOktatásiEltérések[],ROW()-ROW(KépzésiÉsOktatásiEltérések[[#Headers],[Júl.]]),1),INDEX(KépzésiÉsUtazásiTervezett[],,1),0),MATCH(KépzésiÉsOktatásiEltérések[[#Headers],[Júl.]],KépzésiÉsUtazásiTényleges[#Headers],0)) -> 2,000.00 Ft | J32: =INDEX(KépzésiÉsUtazásiTervezett[],MATCH(INDEX(KépzésiÉsOktatásiEltérések[],ROW()-ROW(KépzésiÉsOktatásiEltérések[[#Headers],[Aug.]]),1),INDEX(KépzésiÉsUtazásiTervezett[],,1),0),MATCH(KépzésiÉsOktatásiEltérések[[#Headers],[Aug.]],KépzésiÉsUtazásiTervezett[#Headers],0))-INDEX(KépzésiÉsUtazásiTényleges[],MATCH(INDEX(KépzésiÉsOktatásiEltérések[],ROW()-ROW(KépzésiÉsOktatásiEltérések[[#Headers],[Aug.]]),1),INDEX(KépzésiÉsUtazásiTervezett[],,1),0),MATCH(KépzésiÉsOktatásiEltérések[[#Headers],[Aug.]],KépzésiÉsUtazásiTényleges[#Headers],0)) -> 2,000.00 Ft | K32: =INDEX(KépzésiÉsUtazásiTervezett[],MATCH(INDEX(KépzésiÉsOktatásiEltérések[],ROW()-ROW(KépzésiÉsOktatásiEltérések[[#Headers],[Szept.]]),1),INDEX(KépzésiÉsUtazásiTervezett[],,1),0),MATCH(KépzésiÉsOktatásiEltérések[[#Headers],[Szept.]],KépzésiÉsUtazásiTervezett[#Headers],0))-INDEX(KépzésiÉsUtazásiTényleges[],MATCH(INDEX(KépzésiÉsOktatásiEltérések[],ROW()-ROW(KépzésiÉsOktatásiEltérések[[#Headers],[Szept.]]),1),INDEX(KépzésiÉsUtazásiTervezett[],,1),0),MATCH(KépzésiÉsOktatásiEltérések[[#Headers],[Szept.]],KépzésiÉsUtazásiTényleges[#Headers],0)) -> 2,000.00 Ft | L32: =INDEX(KépzésiÉsUtazásiTervezett[],MATCH(INDEX(KépzésiÉsOktatásiEltérések[],ROW()-ROW(KépzésiÉsOktatásiEltérések[[#Headers],[Okt.]]),1),INDEX(KépzésiÉsUtazásiTervezett[],,1),0),MATCH(KépzésiÉsOktatásiEltérések[[#Headers],[Okt.]],KépzésiÉsUtazásiTervezett[#Headers],0))-INDEX(KépzésiÉsUtazásiTényleges[],MATCH(INDEX(KépzésiÉsOktatásiEltérések[],ROW()-ROW(KépzésiÉsOktatásiEltérések[[#Headers],[Okt.]]),1),INDEX(KépzésiÉsUtazásiTervezett[],,1),0),MATCH(KépzésiÉsOktatásiEltérések[[#Headers],[Okt.]],KépzésiÉsUtazásiTényleges[#Headers],0)) -> 2,000.00 Ft | M32: =INDEX(KépzésiÉsUtazásiTervezett[],MATCH(INDEX(KépzésiÉsOktatásiEltérések[],ROW()-ROW(KépzésiÉsOktatásiEltérések[[#Headers],[Nov.]]),1),INDEX(KépzésiÉsUtazásiTervezett[],,1),0),MATCH(KépzésiÉsOktatásiEltérések[[#Headers],[Nov.]],KépzésiÉsUtazásiTervezett[#Headers],0))-INDEX(KépzésiÉsUtazásiTényleges[],MATCH(INDEX(KépzésiÉsOktatásiEltérések[],ROW()-ROW(KépzésiÉsOktatásiEltérések[[#Headers],[Nov.]]),1),INDEX(KépzésiÉsUtazásiTervezett[],,1),0),MATCH(KépzésiÉsOktatásiEltérések[[#Headers],[Nov.]],KépzésiÉsUtazásiTényleges[#Headers],0)) -> 2,000.00 Ft | N32: =INDEX(KépzésiÉsUtazásiTervezett[],MATCH(INDEX(KépzésiÉsOktatásiEltérések[],ROW()-ROW(KépzésiÉsOktatásiEltérések[[#Headers],[Dec.]]),1),INDEX(KépzésiÉsUtazásiTervezett[],,1),0),MATCH(KépzésiÉsOktatásiEltérések[[#Headers],[Dec.]],KépzésiÉsUtazásiTervezett[#Headers],0))-INDEX(KépzésiÉsUtazásiTényleges[],MATCH(INDEX(KépzésiÉsOktatásiEltérések[],ROW()-ROW(KépzésiÉsOktatásiEltérések[[#Headers],[Dec.]]),1),INDEX(KépzésiÉsUtazásiTervezett[],,1),0),MATCH(KépzésiÉsOktatásiEltérések[[#Headers],[Dec.]],KépzésiÉsUtazásiTényleges[#Headers],0)) -> 2,000.00 Ft | O32: =SUM(KépzésiÉsOktatásiEltérések[[#This Row],[Jan.]:[Dec.]]) -> 13,700.00 Ft
B33: Részösszeg | C33: =SUBTOTAL(109,KépzésiÉsOktatásiEltérések[Jan.]) -> 1,200.00 Ft | D33: =SUBTOTAL(109,KépzésiÉsOktatásiEltérések[Febr.]) -> -600.00 Ft | E33: =SUBTOTAL(109,KépzésiÉsOktatásiEltérések[Márc.]) -> 1,200.00 Ft | F33: =SUBTOTAL(109,KépzésiÉsOktatásiEltérések[Ápr.]) -> 1,200.00 Ft | G33: =SUBTOTAL(109,KépzésiÉsOktatásiEltérések[Máj.]) -> 2,000.00 Ft | H33: =SUBTOTAL(109,KépzésiÉsOktatásiEltérések[Jún.]) -> -2,300.00 Ft | I33: =SUBTOTAL(109,KépzésiÉsOktatásiEltérések[Júl.]) -> 4,000.00 Ft | J33: =SUBTOTAL(109,KépzésiÉsOktatásiEltérések[Aug.]) -> 4,000.00 Ft | K33: =SUBTOTAL(109,KépzésiÉsOktatásiEltérések[Szept.]) -> 4,000.00 Ft | L33: =SUBTOTAL(109,KépzésiÉsOktatásiEltérések[Okt.]) -> 4,000.00 Ft | M33: =SUBTOTAL(109,KépzésiÉsOktatásiEltérések[Nov.]) -> 4,000.00 Ft | N33: =SUBTOTAL(109,KépzésiÉsOktatásiEltérések[Dec.]) -> 4,000.00 Ft | O33: =SUBTOTAL(109,KépzésiÉsOktatásiEltérések[ÉV]) -> 26,700.00 Ft
A35: A jobbra lévő cellában költségek eltérései összes eltérés táblázatban a sablon automatikusan összesíti a költségeltéréseket. | B35: ÖSSZESEN | C35: Jan. | D35: Febr. | E35: Márc. | F35: Ápr. | G35: Máj. | H35: Jún. | I35: Júl. | J35: Aug. | K35: Szept. | L35: Okt. | M35: Nov. | N35: Dec. | O35: Év
B36: Tényleges havi költség | C36: =KépzésiÉsOktatásiEltérések[[#Totals],[Jan.]]+MarketingEltérések[[#Totals],[Jan.]]+IrodaiEltérések[[#Totals],[Jan.]]+AlkalmazottiEltérés[[#Totals],[Jan.]] -> 1,738.00 Ft | D36: =KépzésiÉsOktatásiEltérések[[#Totals],[Febr.]]+MarketingEltérések[[#Totals],[Febr.]]+IrodaiEltérések[[#Totals],[Febr.]]+AlkalmazottiEltérés[[#Totals],[Febr.]] -> -984.00 Ft | E36: =KépzésiÉsOktatásiEltérések[[#Totals],[Márc.]]+MarketingEltérések[[#Totals],[Márc.]]+IrodaiEltérések[[#Totals],[Márc.]]+AlkalmazottiEltérés[[#Totals],[Márc.]] -> 1,255.00 Ft | F36: =KépzésiÉsOktatásiEltérések[[#Totals],[Ápr.]]+MarketingEltérések[[#Totals],[Ápr.]]+IrodaiEltérések[[#Totals],[Ápr.]]+AlkalmazottiEltérés[[#Totals],[Ápr.]] -> 301.00 Ft | G36: =KépzésiÉsOktatásiEltérések[[#Totals],[Máj.]]+MarketingEltérések[[#Totals],[Máj.]]+IrodaiEltérések[[#Totals],[Máj.]]+AlkalmazottiEltérés[[#Totals],[Máj.]] -> 1,440.00 Ft | H36: =KépzésiÉsOktatásiEltérések[[#Totals],[Jún.]]+MarketingEltérések[[#Totals],[Jún.]]+IrodaiEltérések[[#Totals],[Jún.]]+AlkalmazottiEltérés[[#Totals],[Jún.]] -> -3,744.00 Ft | I36: =KépzésiÉsOktatásiEltérések[[#Totals],[Júl.]]+MarketingEltérések[[#Totals],[Júl.]]+IrodaiEltérések[[#Totals],[Júl.]]+AlkalmazottiEltérés[[#Totals],[Júl.]] -> 134,695.00 Ft | J36: =KépzésiÉsOktatásiEltérések[[#Totals],[Aug.]]+MarketingEltérések[[#Totals],[Aug.]]+IrodaiEltérések[[#Totals],[Aug.]]+AlkalmazottiEltérés[[#Totals],[Aug.]] -> 138,918.00 Ft | K36: =KépzésiÉsOktatásiEltérések[[#Totals],[Szept.]]+MarketingEltérések[[#Totals],[Szept.]]+IrodaiEltérések[[#Totals],[Szept.]]+AlkalmazottiEltérés[[#Totals],[Szept.]] -> 135,918.00 Ft | L36: =KépzésiÉsOktatásiEltérések[[#Totals],[Okt.]]+MarketingEltérések[[#Totals],[Okt.]]+IrodaiEltérések[[#Totals],[Okt.]]+AlkalmazottiEltérés[[#Totals],[Okt.]] -> 140,918.00 Ft | M36: =KépzésiÉsOktatásiEltérések[[#Totals],[Nov.]]+MarketingEltérések[[#Totals],[Nov.]]+IrodaiEltérések[[#Totals],[Nov.]]+AlkalmazottiEltérés[[#Totals],[Nov.]] -> 136,218.00 Ft | N36: =KépzésiÉsOktatásiEltérések[[#Totals],[Dec.]]+MarketingEltérések[[#Totals],[Dec.]]+IrodaiEltérések[[#Totals],[Dec.]]+AlkalmazottiEltérés[[#Totals],[Dec.]] -> 140,018.00 Ft | O36: =KépzésiÉsOktatásiEltérések[[#Totals],[ÉV]]+MarketingEltérések[[#Totals],[ÉV]]+IrodaiEltérések[[#Totals],[ÉV]]+AlkalmazottiEltérés[[#Totals],[ÉV]] -> 826,691.00 Ft
B37: ÖSSZES Tényleges költség | C37: =SUM($C$36:C36) -> 1,738.00 Ft | D37: =SUM($C$36:D36) -> 754.00 Ft | E37: =SUM($C$36:E36) -> 2,009.00 Ft | F37: =SUM($C$36:F36) -> 2,310.00 Ft | G37: =SUM($C$36:G36) -> 3,750.00 Ft | H37: =SUM($C$36:H36) -> 6.00 Ft | I37: =SUM($C$36:I36) -> 134,701.00 Ft | J37: =SUM($C$36:J36) -> 273,619.00 Ft | K37: =SUM($C$36:K36) -> 409,537.00 Ft | L37: =SUM($C$36:L36) -> 550,455.00 Ft | M37: =SUM($C$36:M36) -> 686,673.00 Ft | N37: =SUM($C$36:N36) -> 826,691.00 Ft

Sheet KÖLTSÉGEK ELEMZÉSE
A1: Az ezen a munkalapon látható költségkategóriákban automatikusan frissül az éves tervezett és tényleges költségek, a Költségek eltérései és az eltérés százaléka értéke. Ennek az oszlopnak a celláiban a munkalap használatát megkönnyítő útmutatás olvasható. Első lépésként nyomja le a lefelé nyilat.
A2: A jobbra lévő cellában automatikusan frissül a cég neve. Szúrja be az emblémát az F2 cellába. | B2: ='TERVEZETT KÖLTSÉGEK'!B2:D3 -> Cég neve | F2: Ebben a cellában az embléma helyőrzője található.
A3: A munkalap címe az E3 cellában található. A következő utasítás az A5 cellában található. | E3: =munkalap_címe -> Részletes költségbecslés
A5: A sablon automatikusan kiszámítja a jobbra lévő cellában látható Elemzés táblázatban feltüntetett tervezett költségek, tényleges költségek, költségek eltérései és eltérés százaléka. A következő utasítás az A12 cellában található. | B5: Költségkategória | C5: Tervezett költségek | D5: Tényleges költségek | E5: Költségek eltérései | F5: Eltérés százaléka
B6: Alkalmazotti költségek | C6: =AlkalmazottiTervezett[[#Totals],[ÉV]] -> 1,355,090.00 Ft | D6: =AlkalmazottiTényleges[[#Totals],[ÉV]] -> 659,130.00 Ft | E6: =C6-D6 -> 695,960.00 Ft | F6: =E6/C6 -> 51%
B7: ='TERVEZETT KÖLTSÉGEK'!B10 -> Irodaköltségek | C7: =IrodaiTervezett[[#Totals],[ÉV]] -> 138,740.00 Ft | D7: =IrodaiTényleges[[#Totals],[ÉV]] -> 69,350.00 Ft | E7: =C7-D7 -> 69,390.00 Ft | F7: =E7/C7 -> 50%
B8: ='TERVEZETT KÖLTSÉGEK'!B21 -> Marketingköltségek | C8: =MarketingTervezett[[#Totals],[ÉV]] -> 67,800.00 Ft | D8: =MarketingTényleges[[#Totals],[ÉV]] -> 33,159.00 Ft | E8: =C8-D8 -> 34,641.00 Ft | F8: =E8/C8 -> 51%
B9: ='TERVEZETT KÖLTSÉGEK'!B30 -> Képzés/utazás | C9: =KépzésiÉsUtazásiTervezett[[#Totals],[ÉV]] -> 48,000.00 Ft | D9: =KépzésiÉsUtazásiTényleges[[#Totals],[ÉV]] -> 21,300.00 Ft | E9: =C9-D9 -> 26,700.00 Ft | F9: =E9/C9 -> 56%
B10: ='TERVEZETT KÖLTSÉGEK'!B35 -> ÖSSZESEN | C10: ='TERVEZETT KÖLTSÉGEK'!O36 -> 1,609,630.00 Ft | D10: ='TÉNYLEGES KÖLTSÉGEK'!O36 -> 782,939.00 Ft | E10: =C10-D10 -> 826,691.00 Ft | F10: =E10/C10 -> 51%
A12: A jobbra lévő cellában a Tervezett költségek kördiagram, a D12 cellában a Tényleges költségek kördiagram található. A következő utasítás az A14 cellában található. | B12: Ebben a cellában a különféle kategóriák tervezett költségeit ábrázoló diagram látható. | D12: Ebben a cellában a különféle kategóriák tényleges költségeit ábrázoló diagram látható.
A14: A jobbra lévő cellában található diagramon a havi költségek bontásban láthatók a tervezett és a tényleges költségek, illetve az különbség.
